Invoice_Payment_Date,Org_Level_2_Desc,Supplier_Name,Nominal_Desc,Invoice_Line_Net_Amount,Internal_Category_Code,
19/08/2016,BUSINESS & CUSTOMER SERVICES,Transport Trading Ltd,DIRECT TRANSPORT," 3,211,926.00 ",Public Transport.Passenger Transport.NA,Q2
04/08/2016,PUBLIC HEALTH,NHS Lambeth Clinical Commissioning Group,PAYMENT TO HEALTH AUTHORITIES," 2,787,739.00 ",Healthcare.Public Health.NA,Q2
01/07/2016,BUSINESS & CUSTOMER SERVICES,Capita Business Services Ltd,CONSULTANCY FEES," 2,586,866.00 ",Consultancy.Business.NA,Q2
20/07/2016,CAPITAL CC,Greater London Authority,GRANTS AND CONTRIBUTIONS," 2,439,378.55 ",Consultancy.Technical & Feasibility.NA,Q2
09/09/2016,CAPITAL CC,Muse Developments Ltd,"MAINTENANCE - EQUIPMENT, FURNITURE AND MATERIALS"," 2,219,975.00 ","Works - Construction, Repair & Maint.Architect.NA",Q2
06/09/2016,PUBLIC HEALTH,NHS Lambeth Clinical Commissioning Group,PAYMENT TO HEALTH AUTHORITIES," 1,858,492.74 ",Healthcare.Public Health.NA,Q2
12/08/2016,CAPITAL CC,Muse Developments Ltd,"MAINTENANCE - EQUIPMENT, FURNITURE AND MATERIALS"," 1,652,908.00 ","Works - Construction, Repair & Maint.Architect.NA",Q2
14/07/2016,CAPITAL CC,Muse Developments Ltd,"MAINTENANCE - EQUIPMENT, FURNITURE AND MATERIALS"," 1,592,657.00 ","Works - Construction, Repair & Maint.Architect.NA",Q2
28/07/2016,CAPITAL CC,Extraspace Solutions (Uk)ltd,"PURCHASE - EQUIPMENT, FURNITURE AND MATERIALS"," 1,400,000.00 ",Education.Supplies.NA,Q2
25/07/2016,"NEIGHBOURHOODS, ENVIRONMENT & EMPLOYMENT",Western Riverside Waste Authority,WASTE DISPOSAL COSTS," 1,255,211.21 ",Environmental Services.Waste Management.NA,Q2
30/09/2016,CAPITAL CC,Greater London Authority,GRANTS AND CONTRIBUTIONS," 1,215,155.11 ",Consultancy.Technical & Feasibility.NA,Q2
22/08/2016,"NEIGHBOURHOODS, ENVIRONMENT & EMPLOYMENT",Western Riverside Waste Authority,WASTE DISPOSAL COSTS," 1,184,947.06 ",Environmental Services.Waste Management.NA,Q2
26/09/2016,"NEIGHBOURHOODS, ENVIRONMENT & EMPLOYMENT",Western Riverside Waste Authority,WASTE DISPOSAL COSTS," 1,182,015.91 ",Environmental Services.Waste Management.NA,Q2
13/07/2016,PUBLIC HEALTH,Kings College Hospital NHS Foundation Trust,PAYMENT TO HEALTH AUTHORITIES," 1,065,215.00 ",Healthcare.Public Health.NA,Q2
25/08/2016,PUBLIC HEALTH,South London & Maudsley (nhs) Trust,PAYMENT TO HEALTH AUTHORITIES," 975,537.25 ",Healthcare.Public Health.NA,Q2
20/09/2016,PUBLIC HEALTH,South London & Maudsley (nhs) Trust,PAYMENT TO HEALTH AUTHORITIES," 975,537.25 ",Healthcare.Public Health.NA,Q2
09/08/2016,CAPITAL CC,Mears Ltd,FACILITIES MANAGEMENT," 932,740.49 ","Works - Construction, Repair & Maint.Buildings.Repair & Maintenance",Q2
09/08/2016,CAPITAL CC,Mears Ltd,FACILITIES MANAGEMENT," 932,740.49 ","Works - Construction, Repair & Maint.Buildings.Repair & Maintenance",Q2
06/09/2016,PUBLIC HEALTH,NHS Lambeth Clinical Commissioning Group,PAYMENT TO HEALTH AUTHORITIES," 929,246.37 ",Healthcare.Public Health.NA,Q2
19/09/2016,CAPITAL CC,Mitie Property Services (UK) Ltd_d,"MAINTENANCE - EQUIPMENT, FURNITURE AND MATERIALS"," 888,841.64 ","Works - Construction, Repair & Maint.Buildings.Construction",Q2
19/07/2016,"STRATEGIC HOUSING, REGENERATION & COMMUNITIES (HRA)",Regenter Myatts Field North Ltd,"MAINTENANCE - EQUIPMENT, FURNITURE AND MATERIALS"," 866,377.70 ","Works - Construction, Repair & Maint.Buildings.Construction",Q2
22/08/2016,"STRATEGIC HOUSING, REGENERATION & COMMUNITIES (HRA)",Regenter Myatts Field North Ltd,"MAINTENANCE - EQUIPMENT, FURNITURE AND MATERIALS"," 865,640.35 ","Works - Construction, Repair & Maint.Buildings.Construction",Q2
22/09/2016,"STRATEGIC HOUSING, REGENERATION & COMMUNITIES (HRA)",Regenter Myatts Field North Ltd,"MAINTENANCE - EQUIPMENT, FURNITURE AND MATERIALS"," 838,313.76 ","Works - Construction, Repair & Maint.Buildings.Construction",Q2
11/08/2016,"STRATEGIC HOUSING, REGENERATION & COMMUNITIES (HRA)",Regenter Myatts Field North Ltd,"MAINTENANCE - EQUIPMENT, FURNITURE AND MATERIALS"," 824,988.74 ","Works - Construction, Repair & Maint.Buildings.Construction",Q2
09/08/2016,"STRATEGIC HOUSING, REGENERATION & COMMUNITIES (HRA)",Regenter Myatts Field North Ltd,"MAINTENANCE - EQUIPMENT, FURNITURE AND MATERIALS"," 824,988.74 ","Works - Construction, Repair & Maint.Buildings.Construction",Q2
23/08/2016,"NEIGHBOURHOODS, ENVIRONMENT & EMPLOYMENT",CVU_d,"MAINTENANCE - EQUIPMENT, FURNITURE AND MATERIALS"," 748,949.73 ","Works - Construction, Repair & Maint.Roads.Construction",Q2
26/08/2016,CAPITAL CC,Extraspace Solutions (Uk)ltd,"PURCHASE - EQUIPMENT, FURNITURE AND MATERIALS"," 740,000.00 ",Education.Supplies.NA,Q2
13/07/2016,CAPITAL CC,Veolia ES (UK) Ltd,REFUSE COLLECTION," 660,795.21 ",Environmental Services.Waste Management.Waste Collection,Q2
11/08/2016,HUMAN RESOURCES & ORGANISATIONAL DEVELOPMENT,Matrix SCM Ltd,AGENCY STAFF," 581,944.75 ",Human Resources.Temporary & Agency Staff.NA,Q2
23/09/2016,CAPITAL CC,Mears Ltd,FACILITIES MANAGEMENT," 569,476.37 ","Works - Construction, Repair & Maint.Buildings.Repair & Maintenance",Q2
28/07/2016,HUMAN RESOURCES & ORGANISATIONAL DEVELOPMENT,Matrix SCM Ltd,AGENCY STAFF," 542,268.80 ",Human Resources.Temporary & Agency Staff.NA,Q2
21/07/2016,"NEIGHBOURHOODS, ENVIRONMENT & EMPLOYMENT",Veolia ES (UK) Ltd,REFUSE COLLECTION," 535,448.32 ",Environmental Services.Waste Management.Waste Collection,Q2
23/08/2016,"NEIGHBOURHOODS, ENVIRONMENT & EMPLOYMENT",Veolia ES (UK) Ltd,REFUSE COLLECTION," 535,448.32 ",Environmental Services.Waste Management.Waste Collection,Q2
21/09/2016,"NEIGHBOURHOODS, ENVIRONMENT & EMPLOYMENT",Veolia ES (UK) Ltd,REFUSE COLLECTION," 535,448.32 ",Environmental Services.Waste Management.Waste Collection,Q2
17/08/2016,CAPITAL CC,Mears Ltd,FACILITIES MANAGEMENT," 532,973.03 ","Works - Construction, Repair & Maint.Buildings.Repair & Maintenance",Q2
18/07/2016,HUMAN RESOURCES & ORGANISATIONAL DEVELOPMENT,Matrix SCM Ltd,AGENCY STAFF," 520,083.69 ",Human Resources.Temporary & Agency Staff.NA,Q2
18/07/2016,HUMAN RESOURCES & ORGANISATIONAL DEVELOPMENT,Matrix SCM Ltd,AGENCY STAFF," 515,101.71 ",Human Resources.Temporary & Agency Staff.NA,Q2
26/08/2016,CAPITAL CC,Apollo Property Services Group Ltd,"MAINTENANCE - EQUIPMENT, FURNITURE AND MATERIALS"," 505,018.54 ","Works - Construction, Repair & Maint.Buildings.Construction",Q2
21/07/2016,"NEIGHBOURHOODS, ENVIRONMENT & EMPLOYMENT",Veolia ES (UK) Ltd,STREET SWEEPING," 503,862.52 ",Environmental Services.Street Cleansing.NA,Q2
23/08/2016,"NEIGHBOURHOODS, ENVIRONMENT & EMPLOYMENT",Veolia ES (UK) Ltd,STREET SWEEPING," 503,862.52 ",Environmental Services.Street Cleansing.NA,Q2
21/09/2016,"NEIGHBOURHOODS, ENVIRONMENT & EMPLOYMENT",Veolia ES (UK) Ltd,STREET SWEEPING," 503,862.52 ",Environmental Services.Street Cleansing.NA,Q2
09/09/2016,EDUCATION & LEARNING,London Grid for Learning,ICT SOFTWARE," 499,096.30 ",Information Communication Technology.Software.Commercial Off-The-Shelf,Q2
01/09/2016,HUMAN RESOURCES & ORGANISATIONAL DEVELOPMENT,Matrix SCM Ltd,AGENCY STAFF," 498,843.72 ",Human Resources.Temporary & Agency Staff.NA,Q2
14/09/2016,BUSINESS & CUSTOMER SERVICES,Capita Business Services Ltd,CONSULTANCY FEES," 493,578.53 ",Consultancy.Business.NA,Q2
26/08/2016,CAPITAL CC,Apollo Property Services Group Ltd,"MAINTENANCE - EQUIPMENT, FURNITURE AND MATERIALS"," 490,288.96 ","Works - Construction, Repair & Maint.Buildings.Construction",Q2
29/07/2016,HUMAN RESOURCES & ORGANISATIONAL DEVELOPMENT,Matrix SCM Ltd,AGENCY STAFF," 488,499.35 ",Human Resources.Temporary & Agency Staff.NA,Q2
05/08/2016,BUSINESS & CUSTOMER SERVICES,Capita Business Services Ltd,CONSULTANCY FEES," 487,953.99 ",Consultancy.Business.NA,Q2
22/09/2016,HUMAN RESOURCES & ORGANISATIONAL DEVELOPMENT,Matrix SCM Ltd,AGENCY STAFF," 481,507.70 ",Human Resources.Temporary & Agency Staff.NA,Q2
19/08/2016,HUMAN RESOURCES & ORGANISATIONAL DEVELOPMENT,Matrix SCM Ltd,AGENCY STAFF," 481,249.88 ",Human Resources.Temporary & Agency Staff.NA,Q2
26/07/2016,CAPITAL CC,Mears Ltd,FACILITIES MANAGEMENT," 474,210.57 ","Works - Construction, Repair & Maint.Buildings.Repair & Maintenance",Q2
29/09/2016,HUMAN RESOURCES & ORGANISATIONAL DEVELOPMENT,Matrix SCM Ltd,AGENCY STAFF," 474,168.73 ",Human Resources.Temporary & Agency Staff.NA,Q2
08/09/2016,HUMAN RESOURCES & ORGANISATIONAL DEVELOPMENT,Matrix SCM Ltd,AGENCY STAFF," 471,583.94 ",Human Resources.Temporary & Agency Staff.NA,Q2
01/07/2016,CAPITAL CC,Mears Ltd,FACILITIES MANAGEMENT," 469,219.74 ","Works - Construction, Repair & Maint.Buildings.Repair & Maintenance",Q2
06/09/2016,CAPITAL CC,Breyer Group Plc_d,"MAINTENANCE - EQUIPMENT, FURNITURE AND MATERIALS"," 468,649.12 ","Works - Construction, Repair & Maint.Buildings.Construction",Q2
08/07/2016,CAPITAL CC,Elliott Group Limited,PREMISES HIRE - FACILITIES," 456,000.00 ",Facilities & Management Services.Portable Building Hire.NA,Q2
21/07/2016,HUMAN RESOURCES & ORGANISATIONAL DEVELOPMENT,Matrix SCM Ltd,AGENCY STAFF," 447,771.49 ",Human Resources.Temporary & Agency Staff.NA,Q2
12/09/2016,CAPITAL CC,Breyer Group Plc_d,"MAINTENANCE - EQUIPMENT, FURNITURE AND MATERIALS"," 441,806.94 ","Works - Construction, Repair & Maint.Buildings.Construction",Q2
13/07/2016,"NEIGHBOURHOODS, ENVIRONMENT & EMPLOYMENT",CVU_d,"MAINTENANCE - EQUIPMENT, FURNITURE AND MATERIALS"," 441,772.30 ","Works - Construction, Repair & Maint.Roads.Construction",Q2
19/08/2016,HUMAN RESOURCES & ORGANISATIONAL DEVELOPMENT,Matrix SCM Ltd,AGENCY STAFF," 428,969.44 ",Human Resources.Temporary & Agency Staff.NA,Q2
05/07/2016,"NEIGHBOURHOODS, ENVIRONMENT & EMPLOYMENT",CVU_d,"MAINTENANCE - EQUIPMENT, FURNITURE AND MATERIALS"," 422,738.57 ","Works - Construction, Repair & Maint.Roads.Construction",Q2
16/09/2016,HUMAN RESOURCES & ORGANISATIONAL DEVELOPMENT,Matrix SCM Ltd,AGENCY STAFF," 420,743.59 ",Human Resources.Temporary & Agency Staff.NA,Q2
15/08/2016,CAPITAL CC,Muse Developments Ltd,"MAINTENANCE - EQUIPMENT, FURNITURE AND MATERIALS"," 403,379.00 ","Works - Construction, Repair & Maint.Architect.NA",Q2
23/08/2016,CAPITAL CC,Elliott Group Limited,PREMISES HIRE - FACILITIES," 397,000.00 ",Facilities & Management Services.Portable Building Hire.NA,Q2
10/08/2016,CAPITAL CC,T Brown Group Ltd_d,BUILDING ALTERATIONS AND MATERIALS," 392,137.62 ",Building Construction Materials.Heating & Air Conditioning.NA,Q2
11/07/2016,"STRATEGIC HOUSING, REGENERATION & COMMUNITIES (HRA)",Roupell Park Resident Management Organisation Ltd,PROFESSIONAL SERVICES - GENERAL," 385,528.80 ",Housing Management.Arms Length Management Organisations.NA,Q2
17/08/2016,CAPITAL CC,Breyer Group Plc_d,"MAINTENANCE - EQUIPMENT, FURNITURE AND MATERIALS"," 377,257.44 ","Works - Construction, Repair & Maint.Buildings.Construction",Q2
06/09/2016,CAPITAL CC,Breyer Group Plc_d,"MAINTENANCE - EQUIPMENT, FURNITURE AND MATERIALS"," 368,649.12 ","Works - Construction, Repair & Maint.Buildings.Construction",Q2
29/09/2016,CAPITAL CC,ME Construction Ltd,FACILITIES MANAGEMENT," 363,870.02 ","Works - Construction, Repair & Maint.Buildings.Repair & Maintenance",Q2
29/07/2016,PUBLIC HEALTH,Kings College Hospital NHS Foundation Trust,PAYMENT TO HEALTH AUTHORITIES," 355,067.00 ",Healthcare.Public Health.NA,Q2
11/07/2016,PUBLIC HEALTH,Guys & St Thomas NHS Foundation Trust,PAYMENT TO HEALTH AUTHORITIES," 343,117.75 ",Healthcare.Public Health.NA,Q2
29/07/2016,PUBLIC HEALTH,Guys & St Thomas NHS Foundation Trust,PAYMENT TO HEALTH AUTHORITIES," 343,117.75 ",Healthcare.Public Health.NA,Q2
23/08/2016,CAPITAL CC,Elliott Group Limited,PREMISES HIRE - FACILITIES," 342,000.00 ",Facilities & Management Services.Portable Building Hire.NA,Q2
22/09/2016,CAPITAL CC,T Brown Group Ltd_d,BUILDING ALTERATIONS AND MATERIALS," 329,871.45 ",Building Construction Materials.Heating & Air Conditioning.NA,Q2
11/07/2016,"STRATEGIC HOUSING, REGENERATION & COMMUNITIES (HRA)",Roupell Park Resident Management Organisation Ltd,PRIVATE CONTRACTORS PAYMENT - OTHER," 321,274.00 ",Housing Management.Arms Length Management Organisations.NA,Q2
11/07/2016,PUBLIC HEALTH,Guys & St Thomas NHS Foundation Trust,PAYMENT TO HEALTH AUTHORITIES," 320,304.34 ",Healthcare.Public Health.NA,Q2
29/07/2016,PUBLIC HEALTH,Guys & St Thomas NHS Foundation Trust,PAYMENT TO HEALTH AUTHORITIES," 320,304.34 ",Healthcare.Public Health.NA,Q2
27/09/2016,CAPITAL CC,Apollo Property Services Group Ltd,"MAINTENANCE - EQUIPMENT, FURNITURE AND MATERIALS"," 317,776.96 ","Works - Construction, Repair & Maint.Buildings.Construction",Q2
21/09/2016,CAPITAL CC,T Brown Group Ltd_d,BUILDING ALTERATIONS AND MATERIALS," 317,495.76 ",Building Construction Materials.Heating & Air Conditioning.NA,Q2
02/09/2016,CAPITAL CC,Lakehouse Contracts Ltd_d,"MAINTENANCE - EQUIPMENT, FURNITURE AND MATERIALS"," 314,774.48 ","Works - Construction, Repair & Maint.Buildings.Construction",Q2
09/09/2016,CAPITAL CC,Muse Developments Ltd,"MAINTENANCE - EQUIPMENT, FURNITURE AND MATERIALS"," 314,048.00 ","Works - Construction, Repair & Maint.Architect.NA",Q2
12/07/2016,CAPITAL CC,Elliott Group Limited,PREMISES HIRE - FACILITIES," 314,000.00 ",Facilities & Management Services.Portable Building Hire.NA,Q2
22/09/2016,CAPITAL CC,Mears Ltd,FACILITIES MANAGEMENT," 301,716.94 ","Works - Construction, Repair & Maint.Buildings.Repair & Maintenance",Q2
26/08/2016,PUBLIC HEALTH,Kings College Hospital NHS Foundation Trust,PAYMENT TO HEALTH AUTHORITIES," 297,913.00 ",Healthcare.Public Health.NA,Q2
20/07/2016,CAPITAL CC,Oco Ltd_d,BUILDING ALTERATIONS AND MATERIALS," 297,237.91 ",Building Construction Materials.Heating & Air Conditioning.NA,Q2
04/08/2016,CAPITAL CC,Breyer Group Plc_d,"MAINTENANCE - EQUIPMENT, FURNITURE AND MATERIALS"," 294,293.61 ","Works - Construction, Repair & Maint.Buildings.Construction",Q2
11/08/2016,"NEIGHBOURHOODS, ENVIRONMENT & EMPLOYMENT",NSL Services Group Ltd,CONSULTANCY FEES," 291,091.43 ",Consultancy.Business.NA,Q2
25/07/2016,CORPORATE ITEMS,Lee Valley Regional Park Authority,LEVIES PAID," 287,964.84 ",Arts & Leisure Services.Outsourced Service.NA,Q2
22/08/2016,CORPORATE ITEMS,Lee Valley Regional Park Authority,LEVIES PAID," 287,964.84 ",Arts & Leisure Services.Outsourced Service.NA,Q2
02/09/2016,"NEIGHBOURHOODS, ENVIRONMENT & EMPLOYMENT",F M Conway Ltd_d,"MAINTENANCE - EQUIPMENT, FURNITURE AND MATERIALS"," 285,631.49 ","Works - Construction, Repair & Maint.Roads.Repair & Maintenance",Q2
14/07/2016,"NEIGHBOURHOODS, ENVIRONMENT & EMPLOYMENT",NSL Services Group Ltd,CONSULTANCY FEES," 284,084.62 ",Consultancy.Business.NA,Q2
07/09/2016,"NEIGHBOURHOODS, ENVIRONMENT & EMPLOYMENT",NSL Services Group Ltd,CONSULTANCY FEES," 282,758.78 ",Consultancy.Business.NA,Q2
23/09/2016,CAPITAL CC,T Brown Group Ltd_d,BUILDING ALTERATIONS AND MATERIALS," 265,131.68 ",Building Construction Materials.Heating & Air Conditioning.NA,Q2
27/09/2016,CAPITAL CC,Breyer Group Plc_d,"MAINTENANCE - EQUIPMENT, FURNITURE AND MATERIALS"," 260,508.43 ","Works - Construction, Repair & Maint.Buildings.Construction",Q2
19/09/2016,CAPITAL CC,T Brown Group Ltd_d,BUILDING ALTERATIONS AND MATERIALS," 260,094.86 ",Building Construction Materials.Heating & Air Conditioning.NA,Q2
01/09/2016,CAPITAL CC,Mitie Property Services (UK) Ltd_d,"MAINTENANCE - EQUIPMENT, FURNITURE AND MATERIALS"," 258,566.03 ","Works - Construction, Repair & Maint.Buildings.Construction",Q2
02/09/2016,CAPITAL CC,Mulalley & Co Ltd,FACILITIES MANAGEMENT," 256,970.99 ","Works - Construction, Repair & Maint.Buildings.Repair & Maintenance",Q2
21/07/2016,"NEIGHBOURHOODS, ENVIRONMENT & EMPLOYMENT",F M Conway Ltd_d,"MAINTENANCE - EQUIPMENT, FURNITURE AND MATERIALS"," 256,374.19 ","Works - Construction, Repair & Maint.Roads.Repair & Maintenance",Q2
29/09/2016,HOUSING SERVICES (HRA),Mears Ltd,FACILITIES MANAGEMENT," 250,045.60 ","Works - Construction, Repair & Maint.Buildings.Repair & Maintenance",Q2
11/08/2016,HOUSING SERVICES (HRA),Mears Ltd,FACILITIES MANAGEMENT," 249,903.58 ","Works - Construction, Repair & Maint.Buildings.Repair & Maintenance",Q2
11/08/2016,HOUSING SERVICES (HRA),Mears Ltd,FACILITIES MANAGEMENT," 249,903.58 ","Works - Construction, Repair & Maint.Buildings.Repair & Maintenance",Q2
26/08/2016,HOUSING SERVICES (HRA),Mears Ltd,FACILITIES MANAGEMENT," 249,903.58 ","Works - Construction, Repair & Maint.Buildings.Repair & Maintenance",Q2
23/08/2016,BUSINESS & CUSTOMER SERVICES,London Councils,MEMBERSHIP AND SUBSCRIPTIONS," 245,724.00 ",Financial Services.Subscriptions.NA,Q2
26/08/2016,CAPITAL CC,Apollo Property Services Group Ltd,"MAINTENANCE - EQUIPMENT, FURNITURE AND MATERIALS"," 244,596.29 ","Works - Construction, Repair & Maint.Buildings.Construction",Q2
02/08/2016,CAPITAL CC,Breyer Group Plc_d,"MAINTENANCE - EQUIPMENT, FURNITURE AND MATERIALS"," 244,053.63 ","Works - Construction, Repair & Maint.Buildings.Construction",Q2
04/08/2016,CAPITAL CC,Apollo Property Services Group Ltd,"MAINTENANCE - EQUIPMENT, FURNITURE AND MATERIALS"," 243,750.00 ","Works - Construction, Repair & Maint.Buildings.Construction",Q2
28/09/2016,CAPITAL CC,Apollo Property Services Group Ltd,"MAINTENANCE - EQUIPMENT, FURNITURE AND MATERIALS"," 241,225.10 ","Works - Construction, Repair & Maint.Buildings.Construction",Q2
12/07/2016,CAPITAL CC,Precision Lift Services Ltd_d,CYCLICAL/PLANNED MAINTENANCE - MECHANICAL AND ELECTRICAL," 239,858.92 ",Facilities & Management Services.Lifts.NA,Q2
16/08/2016,ADULT SOCIAL CARE,Age UK Lambeth,PRIVATE CONTRACTORS PAYMENT - OTHER," 237,216.00 ",Social Community Care Supplies & Service.Adult.NA,Q2
27/07/2016,ADULT SOCIAL CARE,Windmill Care Centre,NURSING HOMES - PRIVATE CONTRACTORS PAYMENT," 232,765.71 ",Social Community Care Supplies & Service.Adult.Residential Care,Q2
26/08/2016,ADULT SOCIAL CARE,Windmill Care Centre,NURSING HOMES - PRIVATE CONTRACTORS PAYMENT," 232,765.71 ",Social Community Care Supplies & Service.Adult.Residential Care,Q2
05/08/2016,CAPITAL CC,ME Construction Ltd,FACILITIES MANAGEMENT," 231,142.71 ","Works - Construction, Repair & Maint.Buildings.Repair & Maintenance",Q2
02/09/2016,CAPITAL CC,Breyer Group Plc_d,"MAINTENANCE - EQUIPMENT, FURNITURE AND MATERIALS"," 229,951.04 ","Works - Construction, Repair & Maint.Buildings.Construction",Q2
26/09/2016,CORPORATE ITEMS,Environment Agency,LEVIES PAID," 229,099.00 ",Financial Services.Subscriptions.NA,Q2
25/08/2016,CAPITAL CC,Arcadis LLP,CONSULTANCY FEES," 228,466.45 ","Works - Construction, Repair & Maint.Consultancy.NA",Q2
02/09/2016,CAPITAL CC,Breyer Group Plc_d,"MAINTENANCE - EQUIPMENT, FURNITURE AND MATERIALS"," 228,444.88 ","Works - Construction, Repair & Maint.Buildings.Construction",Q2
21/09/2016,EDUCATION & LEARNING,Veolia ES (UK) Ltd,DIRECT TRANSPORT," 227,275.26 ",Public Transport.Passenger Transport.NA,Q2
28/09/2016,ADULT SOCIAL CARE,Windmill Care Centre,NURSING HOMES - PRIVATE CONTRACTORS PAYMENT," 225,257.15 ",Social Community Care Supplies & Service.Adult.Residential Care,Q2
20/07/2016,"NEIGHBOURHOODS, ENVIRONMENT & EMPLOYMENT",St Giles Trust,PRIVATE CONTRACTORS PAYMENT - OTHER," 225,219.00 ",Social Community Care Supplies & Service.Adult.Advice & Counselling Services,Q2
27/09/2016,STRATEGY & COMMISSIONING - ADULTS,Healthwatch Lambeth,PAYMENT TO HEALTH AUTHORITIES," 225,115.00 ",Healthcare.Public Health.NA,Q2
03/08/2016,CAPITAL CC,Mears Ltd,FACILITIES MANAGEMENT," 224,763.01 ","Works - Construction, Repair & Maint.Buildings.Repair & Maintenance",Q2
26/07/2016,EDUCATION & LEARNING,Veolia ES (UK) Ltd,DIRECT TRANSPORT," 223,696.12 ",Public Transport.Passenger Transport.NA,Q2
26/07/2016,EDUCATION & LEARNING,Veolia ES (UK) Ltd,DIRECT TRANSPORT," 223,696.12 ",Public Transport.Passenger Transport.NA,Q2
26/07/2016,EDUCATION & LEARNING,Veolia ES (UK) Ltd,DIRECT TRANSPORT," 223,696.12 ",Public Transport.Passenger Transport.NA,Q2
26/07/2016,EDUCATION & LEARNING,Veolia ES (UK) Ltd,DIRECT TRANSPORT," 223,696.12 ",Public Transport.Passenger Transport.NA,Q2
26/07/2016,EDUCATION & LEARNING,Veolia ES (UK) Ltd,DIRECT TRANSPORT," 223,696.12 ",Public Transport.Passenger Transport.NA,Q2
26/07/2016,EDUCATION & LEARNING,Veolia ES (UK) Ltd,DIRECT TRANSPORT," 223,696.12 ",Public Transport.Passenger Transport.NA,Q2
26/07/2016,EDUCATION & LEARNING,Veolia ES (UK) Ltd,DIRECT TRANSPORT," 223,696.12 ",Public Transport.Passenger Transport.NA,Q2
26/07/2016,EDUCATION & LEARNING,Veolia ES (UK) Ltd,DIRECT TRANSPORT," 223,696.12 ",Public Transport.Passenger Transport.NA,Q2
23/08/2016,EDUCATION & LEARNING,Veolia ES (UK) Ltd,DIRECT TRANSPORT," 223,696.12 ",Public Transport.Passenger Transport.NA,Q2
18/07/2016,"NEIGHBOURHOODS, ENVIRONMENT & EMPLOYMENT",Lambeth Lighting Services,"PURCHASE - EQUIPMENT, FURNITURE AND MATERIALS"," 221,740.56 ",Highway Equipment & Materials.Street Lighting.NA,Q2
24/08/2016,"NEIGHBOURHOODS, ENVIRONMENT & EMPLOYMENT",Lambeth Lighting Services,"PURCHASE - EQUIPMENT, FURNITURE AND MATERIALS"," 221,740.56 ",Highway Equipment & Materials.Street Lighting.NA,Q2
09/09/2016,"NEIGHBOURHOODS, ENVIRONMENT & EMPLOYMENT",Lambeth Lighting Services,"PURCHASE - EQUIPMENT, FURNITURE AND MATERIALS"," 221,740.56 ",Highway Equipment & Materials.Street Lighting.NA,Q2
15/08/2016,HOUSING SERVICES (HRA),Morrison Facilities Services Ltd_d,CLEANING SERVICES," 221,325.20 ",Cleaning & Janitorial.Cleaning Service.External,Q2
27/09/2016,CAPITAL CC,Apollo Property Services Group Ltd,"MAINTENANCE - EQUIPMENT, FURNITURE AND MATERIALS"," 219,672.38 ","Works - Construction, Repair & Maint.Buildings.Construction",Q2
15/08/2016,HOUSING SERVICES (HRA),Morrison Facilities Services Ltd_d,CLEANING SERVICES," 219,061.73 ",Cleaning & Janitorial.Cleaning Service.External,Q2
12/09/2016,HOUSING SERVICES (HRA),Morrison Facilities Services Ltd_d,CLEANING SERVICES," 219,061.73 ",Cleaning & Janitorial.Cleaning Service.External,Q2
23/09/2016,HOUSING SERVICES (HRA),Morrison Facilities Services Ltd_d,CLEANING SERVICES," 219,061.73 ",Cleaning & Janitorial.Cleaning Service.External,Q2
05/07/2016,"STRATEGIC HOUSING, REGENERATION & COMMUNITIES (HRA)",Cowley RMO Ltd,PRIVATE CONTRACTORS PAYMENT - OTHER," 211,278.75 ",Housing Management.Arms Length Management Organisations.NA,Q2
12/07/2016,CAPITAL CC,Focus Education (Lambeth) Ltd,PROFESSIONAL SERVICES - GENERAL," 208,883.13 ",Education.School Services.NA,Q2
03/08/2016,CAPITAL CC,Focus Education (Lambeth) Ltd,PROFESSIONAL SERVICES - GENERAL," 208,883.13 ",Education.School Services.NA,Q2
14/09/2016,MAJOR CAPITAL PROGRAMMES,Focus Education (Lambeth) Ltd,PROFESSIONAL SERVICES - GENERAL," 208,883.13 ",Education.School Services.NA,Q2
24/08/2016,FINANCE,KPMG,AUDIT FEES," 207,841.00 ",Financial Services.Audit.NA,Q2
27/07/2016,ADULT SOCIAL CARE,Limetree Healthcare Ltd,NURSING HOMES - PRIVATE CONTRACTORS PAYMENT," 206,052.57 ",Social Community Care Supplies & Service.Adult.Residential Care,Q2
26/08/2016,ADULT SOCIAL CARE,Limetree Healthcare Ltd,NURSING HOMES - PRIVATE CONTRACTORS PAYMENT," 206,052.57 ",Social Community Care Supplies & Service.Adult.Residential Care,Q2
22/09/2016,CAPITAL CC,ME Construction Ltd,FACILITIES MANAGEMENT," 203,032.12 ","Works - Construction, Repair & Maint.Buildings.Repair & Maintenance",Q2
18/08/2016,CAPITAL CC,Frosts Landscape Construction Ltd,OPEN SPACES WORKS," 202,493.88 ","Works - Construction, Repair & Maint.Open Spaces.Construction",Q2
10/08/2016,CAPITAL CC,Apollo Property Services Group Ltd,"MAINTENANCE - EQUIPMENT, FURNITURE AND MATERIALS"," 201,873.18 ","Works - Construction, Repair & Maint.Buildings.Construction",Q2
28/07/2016,ADULT SOCIAL CARE,Medequip Assistive Technology Ltd,SPECIALIST EQUIPMENT FOR SERVICE PROVISION," 200,637.38 ",Social Community Care Supplies & Service.Supplies.Equipment,Q2
28/09/2016,ADULT SOCIAL CARE,Limetree Healthcare Ltd,NURSING HOMES - PRIVATE CONTRACTORS PAYMENT," 199,405.72 ",Social Community Care Supplies & Service.Adult.Residential Care,Q2
05/09/2016,"NEIGHBOURHOODS, ENVIRONMENT & EMPLOYMENT",Veolia ES (UK) Ltd,OPEN SPACES WORKS," 198,986.73 ","Works - Construction, Repair & Maint.Open Spaces.Repair & Maintenance",Q2
22/09/2016,"NEIGHBOURHOODS, ENVIRONMENT & EMPLOYMENT",Veolia ES (UK) Ltd,OPEN SPACES WORKS," 198,986.73 ","Works - Construction, Repair & Maint.Open Spaces.Repair & Maintenance",Q2
22/09/2016,"NEIGHBOURHOODS, ENVIRONMENT & EMPLOYMENT",Veolia ES (UK) Ltd,OPEN SPACES WORKS," 198,986.73 ","Works - Construction, Repair & Maint.Open Spaces.Repair & Maintenance",Q2
22/09/2016,"NEIGHBOURHOODS, ENVIRONMENT & EMPLOYMENT",Veolia ES (UK) Ltd,OPEN SPACES WORKS," 198,986.73 ","Works - Construction, Repair & Maint.Open Spaces.Repair & Maintenance",Q2
01/09/2016,CAPITAL CC,Mulalley & Co Ltd,FACILITIES MANAGEMENT," 188,106.69 ","Works - Construction, Repair & Maint.Buildings.Repair & Maintenance",Q2
25/08/2016,ADULT SOCIAL CARE,Medequip Assistive Technology Ltd,SPECIALIST EQUIPMENT FOR SERVICE PROVISION," 186,742.24 ",Social Community Care Supplies & Service.Supplies.Equipment,Q2
18/08/2016,BUSINESS & CUSTOMER SERVICES,London Councils,MEMBERSHIP AND SUBSCRIPTIONS," 185,452.00 ",Financial Services.Subscriptions.NA,Q2
12/08/2016,CAPITAL CC,Mears Ltd,FACILITIES MANAGEMENT," 183,962.46 ","Works - Construction, Repair & Maint.Buildings.Repair & Maintenance",Q2
12/09/2016,CAPITAL CC,Sandwood Design & Build Ltd,"MAINTENANCE - EQUIPMENT, FURNITURE AND MATERIALS"," 178,965.00 ","Works - Construction, Repair & Maint.Buildings.Construction",Q2
26/09/2016,ADULT SOCIAL CARE,Guys & St Thomas NHS Foundation Trust,PAYMENT TO HEALTH AUTHORITIES," 177,675.00 ",Healthcare.Services.NA,Q2
22/09/2016,"NEIGHBOURHOODS, ENVIRONMENT & EMPLOYMENT",Veolia ES (UK) Ltd,OPEN SPACES WORKS," 176,977.78 ","Works - Construction, Repair & Maint.Open Spaces.Repair & Maintenance",Q2
22/08/2016,"NEIGHBOURHOODS, ENVIRONMENT & EMPLOYMENT",F M Conway Ltd_d,"MAINTENANCE - EQUIPMENT, FURNITURE AND MATERIALS"," 175,666.84 ","Works - Construction, Repair & Maint.Roads.Repair & Maintenance",Q2
28/09/2016,ADULT SOCIAL CARE,Medequip Assistive Technology Ltd,SPECIALIST EQUIPMENT FOR SERVICE PROVISION," 175,141.44 ",Social Community Care Supplies & Service.Supplies.Equipment,Q2
19/09/2016,CAPITAL CC,Mitie Property Services (UK) Ltd_d,"MAINTENANCE - EQUIPMENT, FURNITURE AND MATERIALS"," 173,987.49 ","Works - Construction, Repair & Maint.Buildings.Construction",Q2
12/09/2016,"STRATEGIC HOUSING, REGENERATION & COMMUNITIES (HRA)",Chartwell Properties Ltd,RENTS PAYABLE," 173,700.00 ",Financial Services.Rents.NA,Q2
27/07/2016,ADULT SOCIAL CARE,Queens Oak Care Centre,NURSING HOMES - PRIVATE CONTRACTORS PAYMENT," 173,139.43 ",Social Community Care Supplies & Service.Adult.Residential Care,Q2
26/08/2016,ADULT SOCIAL CARE,Queens Oak Care Centre,NURSING HOMES - PRIVATE CONTRACTORS PAYMENT," 173,139.43 ",Social Community Care Supplies & Service.Adult.Residential Care,Q2
11/07/2016,PUBLIC HEALTH,Chelsea & Westminster Hospital NHS Foundation Trust,PAYMENT TO HEALTH AUTHORITIES," 172,688.52 ",Healthcare.Public Health.NA,Q2
11/07/2016,PUBLIC HEALTH,Chelsea & Westminster Hospital NHS Foundation Trust,PAYMENT TO HEALTH AUTHORITIES," 172,688.52 ",Healthcare.Public Health.NA,Q2
11/07/2016,PUBLIC HEALTH,Chelsea & Westminster Hospital NHS Foundation Trust,PAYMENT TO HEALTH AUTHORITIES," 172,688.52 ",Healthcare.Public Health.NA,Q2
05/07/2016,"STRATEGIC HOUSING, REGENERATION & COMMUNITIES (HRA)",Blenheim Gardens TMO,PRIVATE CONTRACTORS PAYMENT - OTHER," 171,894.00 ",Housing Management.Arms Length Management Organisations.NA,Q2
01/09/2016,CAPITAL CC,Mulalley & Co Ltd,FACILITIES MANAGEMENT," 171,188.32 ","Works - Construction, Repair & Maint.Buildings.Repair & Maintenance",Q2
20/07/2016,ADULT SOCIAL CARE,South London & Maudsley (nhs) Trust,PRIVATE CONTRACTORS PAYMENT - OTHER," 170,000.00 ",Social Community Care Supplies & Service.Adult.NA,Q2
04/08/2016,CAPITAL CC,Mulalley & Co Ltd,FACILITIES MANAGEMENT," 168,633.39 ","Works - Construction, Repair & Maint.Buildings.Repair & Maintenance",Q2
28/09/2016,ADULT SOCIAL CARE,Queens Oak Care Centre,NURSING HOMES - PRIVATE CONTRACTORS PAYMENT," 167,554.28 ",Social Community Care Supplies & Service.Adult.Residential Care,Q2
01/08/2016,CAPITAL CC,Mears Ltd,FACILITIES MANAGEMENT," 167,441.39 ","Works - Construction, Repair & Maint.Buildings.Repair & Maintenance",Q2
01/09/2016,CAPITAL CC,Apollo Property Services Group Ltd,"MAINTENANCE - EQUIPMENT, FURNITURE AND MATERIALS"," 167,216.51 ","Works - Construction, Repair & Maint.Buildings.Construction",Q2
31/08/2016,ADULT SOCIAL CARE,Allied Healthcare (UK) Ltd,DOMICILIARY CARE - THIRD PARTY," 166,239.27 ",Social Community Care Supplies & Service.Adult.Domiciliary Care,Q2
25/07/2016,PUBLIC HEALTH,SH24 C.I.C,PAYMENT TO HEALTH AUTHORITIES," 166,000.00 ",Healthcare.Public Health.NA,Q2
18/07/2016,ADULT SOCIAL CARE,Allied Healthcare (UK) Ltd,DOMICILIARY CARE - THIRD PARTY," 165,991.88 ",Social Community Care Supplies & Service.Adult.Domiciliary Care,Q2
12/09/2016,ADULT SOCIAL CARE,Allied Healthcare (UK) Ltd,DOMICILIARY CARE - THIRD PARTY," 164,031.81 ",Social Community Care Supplies & Service.Adult.Domiciliary Care,Q2
25/08/2016,CAPITAL CC,Arcadis LLP,CONSULTANCY FEES," 161,026.15 ","Works - Construction, Repair & Maint.Consultancy.NA",Q2
19/09/2016,CAPITAL CC,ME Construction Ltd,FACILITIES MANAGEMENT," 160,837.90 ","Works - Construction, Repair & Maint.Buildings.Repair & Maintenance",Q2
28/09/2016,BUSINESS TRANSFORMATION,Swiss Post Solutions Ltd,PRINTING," 157,044.06 ",Facilities & Management Services.Printing.NA,Q2
10/08/2016,CAPITAL CC,Apollo Property Services Group Ltd,"MAINTENANCE - EQUIPMENT, FURNITURE AND MATERIALS"," 156,591.35 ","Works - Construction, Repair & Maint.Buildings.Construction",Q2
21/07/2016,"NEIGHBOURHOODS, ENVIRONMENT & EMPLOYMENT",Veolia ES (UK) Ltd,REFUSE COLLECTION," 156,444.50 ",Environmental Services.Waste Management.Waste Collection for Recycling,Q2
23/08/2016,"NEIGHBOURHOODS, ENVIRONMENT & EMPLOYMENT",Veolia ES (UK) Ltd,REFUSE COLLECTION," 156,444.50 ",Environmental Services.Waste Management.Waste Collection for Recycling,Q2
21/09/2016,"NEIGHBOURHOODS, ENVIRONMENT & EMPLOYMENT",Veolia ES (UK) Ltd,REFUSE COLLECTION," 156,444.50 ",Environmental Services.Waste Management.Waste Collection for Recycling,Q2
19/09/2016,PUBLIC HEALTH,Mildmay Hospital UK,PAYMENT TO HEALTH AUTHORITIES," 152,531.00 ",Healthcare.Public Health.NA,Q2
05/08/2016,BUSINESS & CUSTOMER SERVICES,Bbh-lsl (Fundco 4) Ltd,PAYMENT TO PRIVATE SECTOR LANDLORDS (PSL)," 151,899.17 ",Housing Management.Letting Agents.NA,Q2
04/08/2016,BUSINESS & CUSTOMER SERVICES,Bbh-lsl (Fundco 4) Ltd,PAYMENT TO PRIVATE SECTOR LANDLORDS (PSL)," 151,899.17 ",Housing Management.Letting Agents.NA,Q2
15/08/2016,BUSINESS & CUSTOMER SERVICES,Bbh-lsl (Fundco 4) Ltd,PAYMENT TO PRIVATE SECTOR LANDLORDS (PSL)," 151,899.17 ",Housing Management.Letting Agents.NA,Q2
15/08/2016,BUSINESS & CUSTOMER SERVICES,Bbh-lsl (Fundco 4) Ltd,PAYMENT TO PRIVATE SECTOR LANDLORDS (PSL)," 151,899.17 ",Housing Management.Letting Agents.NA,Q2
09/08/2016,BUSINESS & CUSTOMER SERVICES,Bbh-lsl (Fundco 4) Ltd,PAYMENT TO PRIVATE SECTOR LANDLORDS (PSL)," 151,899.17 ",Housing Management.Letting Agents.NA,Q2
29/09/2016,BUSINESS & CUSTOMER SERVICES,Bbh-lsl (Fundco 4) Ltd,PAYMENT TO PRIVATE SECTOR LANDLORDS (PSL)," 151,899.17 ",Housing Management.Letting Agents.NA,Q2
28/07/2016,BUSINESS & CUSTOMER SERVICES,Bbh-lsl (Fundco 4) Ltd,PAYMENT TO PRIVATE SECTOR LANDLORDS (PSL)," 149,450.46 ",Housing Management.Letting Agents.NA,Q2
25/08/2016,CAPITAL CC,Arcadis LLP,CONSULTANCY FEES," 147,823.58 ","Works - Construction, Repair & Maint.Consultancy.NA",Q2
31/08/2016,CAPITAL CC,F M Conway Ltd_d,"MAINTENANCE - EQUIPMENT, FURNITURE AND MATERIALS"," 145,600.11 ","Works - Construction, Repair & Maint.Roads.Repair & Maintenance",Q2
11/07/2016,ADULT SOCIAL CARE,Aspire Wellbeing,DAYCARE - PRIVATE CONTRACTORS PAYMENT," 144,740.00 ",Social Community Care Supplies & Service.Adult.Day Care,Q2
26/07/2016,CAPITAL CC,Mears Ltd,FACILITIES MANAGEMENT," 144,684.55 ","Works - Construction, Repair & Maint.Buildings.Repair & Maintenance",Q2
19/09/2016,CAPITAL CC,Mitie Property Services (UK) Ltd_d,"MAINTENANCE - EQUIPMENT, FURNITURE AND MATERIALS"," 144,187.00 ","Works - Construction, Repair & Maint.Buildings.Construction",Q2
26/08/2016,BUSINESS TRANSFORMATION,Swiss Post Solutions Ltd,PRINTING," 141,703.83 ",Facilities & Management Services.Printing.NA,Q2
16/09/2016,PUBLIC HEALTH,Mildmay Hospital UK,PAYMENT TO HEALTH AUTHORITIES," 140,328.00 ",Healthcare.Public Health.NA,Q2
16/09/2016,PUBLIC HEALTH,Mildmay Hospital UK,PAYMENT TO HEALTH AUTHORITIES," 140,328.00 ",Healthcare.Public Health.NA,Q2
12/08/2016,BUSINESS TRANSFORMATION,Virgin Media Business,LAND LINE TELEPHONE COSTS," 138,531.95 ",Information Communication Technology.Telecommunications.NA,Q2
01/08/2016,CAPITAL CC,Breyer Group Plc_d,"MAINTENANCE - EQUIPMENT, FURNITURE AND MATERIALS"," 137,654.65 ","Works - Construction, Repair & Maint.Buildings.Construction",Q2
05/07/2016,"STRATEGIC HOUSING, REGENERATION & COMMUNITIES (HRA)",Cetra Housing Co-Operative Ltd,PRIVATE CONTRACTORS PAYMENT - OTHER," 137,559.25 ",Housing Management.Housing Association Services.NA,Q2
08/09/2016,POLICY & COMMUNICATIONS,London Councils,MEMBERSHIP AND SUBSCRIPTIONS," 136,958.00 ",Financial Services.Subscriptions.NA,Q2
10/08/2016,CAPITAL CC,Apollo Property Services Group Ltd,"MAINTENANCE - EQUIPMENT, FURNITURE AND MATERIALS"," 136,936.87 ","Works - Construction, Repair & Maint.Buildings.Construction",Q2
27/07/2016,BUSINESS TRANSFORMATION,British Telecommunications plc,LAND LINE TELEPHONE COSTS," 135,776.25 ",Information Communication Technology.Telecommunications.NA,Q2
15/09/2016,PUBLIC HEALTH,Carat,PAYMENT TO HEALTH AUTHORITIES," 135,740.10 ",Healthcare.Public Health.NA,Q2
21/09/2016,BUSINESS TRANSFORMATION,British Telecommunications plc,LAND LINE TELEPHONE COSTS," 135,236.78 ",Information Communication Technology.Telecommunications.NA,Q2
29/09/2016,ADULT SOCIAL CARE,Medequip Assistive Technology Ltd,SPECIALIST EQUIPMENT FOR SERVICE PROVISION," 134,781.60 ",Social Community Care Supplies & Service.Supplies.Equipment,Q2
14/07/2016,HOUSING SERVICES (HRA),General Dynamics Information Technology Ltd,ICT MAINTENANCE AND SUPPORT," 132,916.00 ",Information Communication Technology.Services.Application Service Provision,Q2
12/07/2016,HOUSING SERVICES (HRA),General Dynamics Information Technology Ltd,ICT MAINTENANCE AND SUPPORT," 132,916.00 ",Information Communication Technology.Services.Application Service Provision,Q2
22/08/2016,HOUSING SERVICES (HRA),General Dynamics Information Technology Ltd,ICT MAINTENANCE AND SUPPORT," 132,916.00 ",Information Communication Technology.Services.Application Service Provision,Q2
19/09/2016,HOUSING SERVICES (HRA),General Dynamics Information Technology Ltd,ICT MAINTENANCE AND SUPPORT," 132,916.00 ",Information Communication Technology.Services.Application Service Provision,Q2
20/07/2016,CAPITAL CC,F M Conway Ltd_d,"MAINTENANCE - EQUIPMENT, FURNITURE AND MATERIALS"," 129,399.98 ","Works - Construction, Repair & Maint.Roads.Repair & Maintenance",Q2
26/08/2016,CAPITAL CC,Apollo Property Services Group Ltd,"MAINTENANCE - EQUIPMENT, FURNITURE AND MATERIALS"," 129,362.68 ","Works - Construction, Repair & Maint.Buildings.Construction",Q2
05/07/2016,"STRATEGIC HOUSING, REGENERATION & COMMUNITIES (HRA)",Waltham Estate Resident Management Organisation,PRIVATE CONTRACTORS PAYMENT - OTHER," 128,607.25 ",Housing Management.Arms Length Management Organisations.NA,Q2
13/07/2016,CAPITAL CC,Sandwood Design & Build Ltd,"MAINTENANCE - EQUIPMENT, FURNITURE AND MATERIALS"," 128,525.00 ","Works - Construction, Repair & Maint.Buildings.Construction",Q2
23/09/2016,CAPITAL CC,Mitie Property Services (UK) Ltd_d,"MAINTENANCE - EQUIPMENT, FURNITURE AND MATERIALS"," 128,451.91 ","Works - Construction, Repair & Maint.Buildings.Construction",Q2
04/07/2016,"NEIGHBOURHOODS, ENVIRONMENT & EMPLOYMENT",F M Conway Ltd_d,"MAINTENANCE - EQUIPMENT, FURNITURE AND MATERIALS"," 125,035.50 ","Works - Construction, Repair & Maint.Roads.Repair & Maintenance",Q2
20/07/2016,CAPITAL CC,F M Conway Ltd_d,"MAINTENANCE - EQUIPMENT, FURNITURE AND MATERIALS"," 123,991.63 ","Works - Construction, Repair & Maint.Roads.Repair & Maintenance",Q2
28/09/2016,CAPITAL CC,Apollo Property Services Group Ltd,"MAINTENANCE - EQUIPMENT, FURNITURE AND MATERIALS"," 121,370.31 ","Works - Construction, Repair & Maint.Buildings.Construction",Q2
18/08/2016,CAPITAL CC,Sandwood Design & Build Ltd,"MAINTENANCE - EQUIPMENT, FURNITURE AND MATERIALS"," 121,250.00 ","Works - Construction, Repair & Maint.Buildings.Construction",Q2
24/08/2016,STRATEGY & COMMISSIONING - ADULTS,NHS Lambeth Clinical Commissioning Group,PAYMENT TO HEALTH AUTHORITIES," 121,110.00 ",Healthcare.Public Health.NA,Q2
05/08/2016,CAPITAL CC,Mitie Property Services (UK) Ltd_d,"MAINTENANCE - EQUIPMENT, FURNITURE AND MATERIALS"," 120,969.61 ","Works - Construction, Repair & Maint.Buildings.Construction",Q2
22/07/2016,CAPITAL CC,Apollo Property Services Group Ltd,"MAINTENANCE - EQUIPMENT, FURNITURE AND MATERIALS"," 119,958.41 ","Works - Construction, Repair & Maint.Buildings.Construction",Q2
26/07/2016,CAPITAL CC,Oco Ltd_d,BUILDING ALTERATIONS AND MATERIALS," 119,860.38 ",Building Construction Materials.Heating & Air Conditioning.NA,Q2
22/07/2016,BUSINESS & CUSTOMER SERVICES,Cofely Workplace Ltd,SECURITY SERVICES (EXCLUDING PREMISES)," 119,287.83 ",Facilities & Management Services.Security.NA,Q2
02/09/2016,"NEIGHBOURHOODS, ENVIRONMENT & EMPLOYMENT",F M Conway Ltd_d,"MAINTENANCE - EQUIPMENT, FURNITURE AND MATERIALS"," 118,482.89 ","Works - Construction, Repair & Maint.Roads.Repair & Maintenance",Q2
29/09/2016,PUBLIC HEALTH,The Metro Centre Ltd,PAYMENT TO HEALTH AUTHORITIES," 118,284.50 ",Healthcare.Public Health.NA,Q2
05/07/2016,"STRATEGIC HOUSING, REGENERATION & COMMUNITIES (HRA)",Cottington Close TMC,PRIVATE CONTRACTORS PAYMENT - OTHER," 116,404.75 ",Housing Management.Arms Length Management Organisations.NA,Q2
30/09/2016,"STRATEGIC HOUSING, REGENERATION & COMMUNITIES (HRA)",Cottington Close TMC,PRIVATE CONTRACTORS PAYMENT - OTHER," 116,404.75 ",Housing Management.Arms Length Management Organisations.NA,Q2
14/09/2016,PUBLIC HEALTH,London Community Rehabilitation Company,PRIVATE CONTRACTORS PAYMENT - OTHER," 115,662.00 ",Social Community Care Supplies & Service.Adult.Advice & Counselling Services,Q2
27/07/2016,BUSINESS TRANSFORMATION,Virgin Media Business,LAND LINE TELEPHONE COSTS," 114,876.42 ",Information Communication Technology.Telecommunications.NA,Q2
30/09/2016,CAPITAL CC,Oco Ltd_d,BUILDING ALTERATIONS AND MATERIALS," 113,956.26 ",Building Construction Materials.Heating & Air Conditioning.NA,Q2
20/09/2016,CAPITAL CC,Mulalley & Co Ltd,FACILITIES MANAGEMENT," 112,518.88 ","Works - Construction, Repair & Maint.Buildings.Repair & Maintenance",Q2
02/08/2016,ADULT SOCIAL CARE,Westminster City Council,CONSULTANCY FEES," 112,466.40 ",Consultancy.Business.NA,Q2
14/07/2016,"NEIGHBOURHOODS, ENVIRONMENT & EMPLOYMENT",NSL Services Group Ltd,CONSULTANCY FEES," 112,344.47 ",Consultancy.Business.NA,Q2
11/08/2016,"NEIGHBOURHOODS, ENVIRONMENT & EMPLOYMENT",NSL Services Group Ltd,CONSULTANCY FEES," 112,344.47 ",Consultancy.Business.NA,Q2
07/09/2016,"NEIGHBOURHOODS, ENVIRONMENT & EMPLOYMENT",NSL Services Group Ltd,CONSULTANCY FEES," 112,344.47 ",Consultancy.Business.NA,Q2
15/07/2016,ADULT SOCIAL CARE,Medequip Assistive Technology Ltd,SPECIALIST EQUIPMENT FOR SERVICE PROVISION," 112,292.41 ",Social Community Care Supplies & Service.Supplies.Equipment,Q2
23/09/2016,PUBLIC HEALTH,The Metro Centre Ltd,PAYMENT TO HEALTH AUTHORITIES," 111,187.43 ",Healthcare.Public Health.NA,Q2
23/09/2016,PUBLIC HEALTH,The Metro Centre Ltd,PAYMENT TO HEALTH AUTHORITIES," 111,187.43 ",Healthcare.Public Health.NA,Q2
05/08/2016,CAPITAL CC,ME Construction Ltd,FACILITIES MANAGEMENT," 110,764.99 ","Works - Construction, Repair & Maint.Buildings.Repair & Maintenance",Q2
08/07/2016,"NEIGHBOURHOODS, ENVIRONMENT & EMPLOYMENT",Furnace Managed Services Ltd,BEREAVEMENT SERVICES EQUIPMENT," 109,567.78 ",Cemetery & Crematorium.Equipment.NA,Q2
26/07/2016,ADULT SOCIAL CARE,The Hesley Group Ltd,RESIDENTIAL PLACEMENTS - PRIVATE CONTRACTORS PAYMENT," 107,725.00 ",Social Community Care Supplies & Service.Adult.Residential Care,Q2
27/07/2016,BUSINESS TRANSFORMATION,British Telecommunications plc,LAND LINE TELEPHONE COSTS," 106,770.67 ",Information Communication Technology.Telecommunications.NA,Q2
19/09/2016,CAPITAL CC,Breyer Group Plc_d,"MAINTENANCE - EQUIPMENT, FURNITURE AND MATERIALS"," 106,707.79 ","Works - Construction, Repair & Maint.Buildings.Construction",Q2
20/09/2016,CAPITAL CC,T Brown Group Ltd_d,BUILDING ALTERATIONS AND MATERIALS," 105,921.74 ",Building Construction Materials.Heating & Air Conditioning.NA,Q2
03/08/2016,ADULT SOCIAL CARE,MiHomecare Ltd,DOMICILIARY CARE - THIRD PARTY," 105,902.58 ",Social Community Care Supplies & Service.Adult.Domiciliary Care,Q2
24/08/2016,ADULT SOCIAL CARE,MiHomecare Ltd,DOMICILIARY CARE - THIRD PARTY," 105,671.66 ",Social Community Care Supplies & Service.Adult.Domiciliary Care,Q2
12/09/2016,HOUSING SERVICES (HRA),Apollo Property Services Group Ltd,OPEN SPACES WORKS," 105,080.00 ","Works - Construction, Repair & Maint.Open Spaces.Repair & Maintenance",Q2
03/08/2016,ADULT SOCIAL CARE,MiHomecare Ltd,DOMICILIARY CARE - THIRD PARTY," 105,043.02 ",Social Community Care Supplies & Service.Adult.Domiciliary Care,Q2
02/09/2016,HOUSING SERVICES (HRA),Apollo Property Services Group Ltd,FACILITIES MANAGEMENT," 104,133.41 ","Works - Construction, Repair & Maint.Buildings.Repair & Maintenance",Q2
02/09/2016,HOUSING SERVICES (HRA),Apollo Property Services Group Ltd,FACILITIES MANAGEMENT," 104,133.41 ","Works - Construction, Repair & Maint.Buildings.Repair & Maintenance",Q2
13/09/2016,HOUSING SERVICES (HRA),Apollo Property Services Group Ltd,FACILITIES MANAGEMENT," 104,133.41 ","Works - Construction, Repair & Maint.Buildings.Repair & Maintenance",Q2
13/09/2016,HOUSING SERVICES (HRA),Apollo Property Services Group Ltd,FACILITIES MANAGEMENT," 104,133.41 ","Works - Construction, Repair & Maint.Buildings.Repair & Maintenance",Q2
12/09/2016,BUSINESS & CUSTOMER SERVICES,Cofely Workplace Ltd,SECURITY SERVICES (EXCLUDING PREMISES)," 103,882.98 ",Facilities & Management Services.Security.NA,Q2
12/09/2016,HOUSING SERVICES (HRA),Apollo Property Services Group Ltd,OPEN SPACES WORKS," 103,512.20 ","Works - Construction, Repair & Maint.Open Spaces.Repair & Maintenance",Q2
08/08/2016,ADULT SOCIAL CARE,MiHomecare Ltd,DOMICILIARY CARE - THIRD PARTY," 103,102.98 ",Social Community Care Supplies & Service.Adult.Domiciliary Care,Q2
01/08/2016,CORPORATE ITEMS,London Borough of Southwark,PAYMENT TO HEALTH AUTHORITIES," 100,949.17 ",Healthcare.Public Health.NA,Q2
19/09/2016,CORPORATE ITEMS,London Borough of Southwark,PAYMENT TO HEALTH AUTHORITIES," 100,949.17 ",Healthcare.Public Health.NA,Q2
06/09/2016,CAPITAL CC,Breyer Group Plc_d,"MAINTENANCE - EQUIPMENT, FURNITURE AND MATERIALS"," 100,000.00 ","Works - Construction, Repair & Maint.Buildings.Construction",Q2
29/09/2016,CHILDREN'S SERVICES,Swanstaff Recruitment Ltd,STAFF RECRUITMENT COSTS," 100,000.00 ",Human Resources.Recruitment & Assessment.NA,Q2
04/08/2016,"NEIGHBOURHOODS, ENVIRONMENT & EMPLOYMENT",Veolia ES (UK) Ltd,WASTE DISPOSAL COSTS," 99,999.20 ",Environmental Services.Waste Management.NA,Q2
24/08/2016,BUSINESS TRANSFORMATION,Virgin Media Business,ICT MAINTENANCE AND SUPPORT," 99,634.00 ",Information Communication Technology.Services.Disaster Recovery,Q2
27/07/2016,"NEIGHBOURHOODS, ENVIRONMENT & EMPLOYMENT",TfL Surface Transport,VEHICLE REPAIRS AND MAINTENANCE," 99,352.81 ",Public Transport.Maintenance.NA,Q2
02/08/2016,"NEIGHBOURHOODS, ENVIRONMENT & EMPLOYMENT",TfL Surface Transport,VEHICLE REPAIRS AND MAINTENANCE," 99,352.81 ",Public Transport.Maintenance.NA,Q2
14/09/2016,CAPITAL CC,Oco Ltd_d,BUILDING ALTERATIONS AND MATERIALS," 99,223.48 ",Building Construction Materials.Heating & Air Conditioning.NA,Q2
21/07/2016,CAPITAL CC,CVU_d,"MAINTENANCE - EQUIPMENT, FURNITURE AND MATERIALS"," 99,132.08 ","Works - Construction, Repair & Maint.Roads.Construction",Q2
21/07/2016,CAPITAL CC,CVU_d,"MAINTENANCE - EQUIPMENT, FURNITURE AND MATERIALS"," 99,132.08 ","Works - Construction, Repair & Maint.Roads.Construction",Q2
16/09/2016,CAPITAL CC,T Brown Group Ltd_d,BUILDING ALTERATIONS AND MATERIALS," 98,026.21 ",Building Construction Materials.Heating & Air Conditioning.NA,Q2
05/07/2016,CAPITAL CC,Apollo Property Services Group Ltd,"MAINTENANCE - EQUIPMENT, FURNITURE AND MATERIALS"," 97,514.89 ","Works - Construction, Repair & Maint.Buildings.Construction",Q2
30/09/2016,BUSINESS & CUSTOMER SERVICES,Cofely Workplace Ltd,SECURITY SERVICES (EXCLUDING PREMISES)," 97,373.96 ",Facilities & Management Services.Security.NA,Q2
12/09/2016,BUSINESS & CUSTOMER SERVICES,Cofely Workplace Ltd,FACILITIES MANAGEMENT," 96,363.64 ","Works - Construction, Repair & Maint.Buildings.Repair & Maintenance",Q2
22/09/2016,CAPITAL CC,T Brown Group Ltd_d,BUILDING ALTERATIONS AND MATERIALS," 95,634.22 ",Building Construction Materials.Heating & Air Conditioning.NA,Q2
01/07/2016,ADULT SOCIAL CARE,MiHomecare Ltd,DOMICILIARY CARE - THIRD PARTY," 95,480.19 ",Social Community Care Supplies & Service.Adult.Domiciliary Care,Q2
01/09/2016,CAPITAL CC,F M Conway Ltd_d,"MAINTENANCE - EQUIPMENT, FURNITURE AND MATERIALS"," 94,500.40 ","Works - Construction, Repair & Maint.Roads.Repair & Maintenance",Q2
05/09/2016,BUSINESS & CUSTOMER SERVICES,Bbh-lsl (Fundco 4) Ltd,PAYMENT TO PRIVATE SECTOR LANDLORDS (PSL)," 93,808.80 ",Housing Management.Letting Agents.NA,Q2
29/07/2016,ADULT SOCIAL CARE,CT Plus (hackney),DIRECT TRANSPORT," 90,830.00 ",Public Transport.Passenger Transport.NA,Q2
25/07/2016,ADULT SOCIAL CARE,CT Plus (hackney),DIRECT TRANSPORT," 90,830.00 ",Public Transport.Passenger Transport.NA,Q2
25/07/2016,ADULT SOCIAL CARE,CT Plus (hackney),DIRECT TRANSPORT," 90,830.00 ",Public Transport.Passenger Transport.NA,Q2
29/09/2016,"NEIGHBOURHOODS, ENVIRONMENT & EMPLOYMENT",Lambeth Voluntary Action Council,PRIVATE CONTRACTORS PAYMENT - OTHER," 90,500.00 ",Social Community Care Supplies & Service.Adult.Advice & Counselling Services,Q2
11/08/2016,CAPITAL CC,Veolia ES (UK) Ltd,OPEN SPACES WORKS," 89,993.00 ","Works - Construction, Repair & Maint.Open Spaces.Repair & Maintenance",Q2
28/07/2016,BUSINESS TRANSFORMATION,Swiss Post Solutions Ltd,PRINTING," 89,924.17 ",Facilities & Management Services.Printing.NA,Q2
28/07/2016,HOUSING SERVICES (HRA),Oco Ltd_d,RESPONSIVE REPAIRS - MECHANICAL AND ELECTRICAL," 89,595.35 ",Building Construction Materials.Heating & Air Conditioning.NA,Q2
26/07/2016,HOUSING SERVICES (HRA),Oco Ltd_d,RESPONSIVE REPAIRS - MECHANICAL AND ELECTRICAL," 89,595.35 ",Building Construction Materials.Heating & Air Conditioning.NA,Q2
23/08/2016,HOUSING SERVICES (HRA),Oco Ltd_d,RESPONSIVE REPAIRS - MECHANICAL AND ELECTRICAL," 89,595.35 ",Building Construction Materials.Heating & Air Conditioning.NA,Q2
15/09/2016,FINANCE,PricewaterhouseCoopers LLP,AUDIT FEES," 87,500.00 ",Financial Services.Audit.NA,Q2
19/07/2016,"NEIGHBOURHOODS, ENVIRONMENT & EMPLOYMENT",Veolia ES (UK) Ltd,REFUSE COLLECTION," 87,000.00 ",Environmental Services.Waste Management.Waste Collection,Q2
04/07/2016,PUBLIC HEALTH,Women In Prison,ASYLUM SEEKERS - PRIVATE CONTRACTORS PAYMENT," 86,878.00 ",Social Community Care Supplies & Service.Adult.Asylum Seekers Services,Q2
24/08/2016,BUSINESS & CUSTOMER SERVICES,Vauxhall One,GENERAL OFFICE EXPENSES," 85,678.28 ",Consultancy.Technical & Feasibility.NA,Q2
07/09/2016,PUBLIC HEALTH,Blenheim CDP,PRIVATE CONTRACTORS PAYMENT - OTHER," 85,500.00 ",Social Community Care Supplies & Service.Adult.Advice & Counselling Services,Q2
22/07/2016,CAPITAL CC,Apollo Property Services Group Ltd,"MAINTENANCE - EQUIPMENT, FURNITURE AND MATERIALS"," 84,869.05 ","Works - Construction, Repair & Maint.Buildings.Construction",Q2
20/07/2016,CHILDREN'S SERVICES,Morning Lane Associates,CONSULTANCY FEES," 84,800.00 ",Consultancy.Business.NA,Q2
03/08/2016,CORPORATE ITEMS,London Councils,MEMBERSHIP AND SUBSCRIPTIONS," 83,853.00 ",Financial Services.Subscriptions.NA,Q2
28/09/2016,CHILDREN'S SERVICES,Tadley Horizon School,RESIDENTIAL PLACEMENTS - PRIVATE CONTRACTORS PAYMENT," 83,093.33 ",Education.School Services.NA,Q2
21/07/2016,ADULT SOCIAL CARE,The Priory Group ( Egerton Road ),RESIDENTIAL PLACEMENTS - PRIVATE CONTRACTORS PAYMENT," 83,073.02 ",Social Community Care Supplies & Service.Adult.Nursing Homes,Q2
27/07/2016,BUSINESS TRANSFORMATION,XMA Ltd,ICT HARDWARE," 81,682.00 ",Information Communication Technology.Hardware.NA,Q2
22/07/2016,HOUSING SERVICES (HRA),T Brown Group Ltd_d,RESPONSIVE REPAIRS - MECHANICAL AND ELECTRICAL," 81,463.56 ",Building Construction Materials.Heating & Air Conditioning.NA,Q2
02/08/2016,HOUSING SERVICES (HRA),T Brown Group Ltd_d,RESPONSIVE REPAIRS - MECHANICAL AND ELECTRICAL," 81,463.56 ",Building Construction Materials.Heating & Air Conditioning.NA,Q2
31/08/2016,HOUSING SERVICES (HRA),T Brown Group Ltd_d,RESPONSIVE REPAIRS - MECHANICAL AND ELECTRICAL," 81,463.56 ",Building Construction Materials.Heating & Air Conditioning.NA,Q2
30/09/2016,FINANCE,Lambert Smith Hampton Group Ltd,CONSULTANCY FEES," 80,996.24 ",Consultancy.Technical & Feasibility.NA,Q2
27/07/2016,ADULT SOCIAL CARE,Queens Oak Care Centre,RESIDENTIAL PLACEMENTS - PRIVATE CONTRACTORS PAYMENT," 80,856.86 ",Social Community Care Supplies & Service.Adult.Residential Care,Q2
26/08/2016,ADULT SOCIAL CARE,Queens Oak Care Centre,RESIDENTIAL PLACEMENTS - PRIVATE CONTRACTORS PAYMENT," 80,856.86 ",Social Community Care Supplies & Service.Adult.Residential Care,Q2
28/07/2016,BUSINESS TRANSFORMATION,XMA Ltd,ICT HARDWARE," 79,350.00 ",Information Communication Technology.Hardware.NA,Q2
28/09/2016,ADULT SOCIAL CARE,Queens Oak Care Centre,RESIDENTIAL PLACEMENTS - PRIVATE CONTRACTORS PAYMENT," 78,248.57 ",Social Community Care Supplies & Service.Adult.Residential Care,Q2
12/09/2016,HOUSING SERVICES (HRA),Apollo Property Services Group Ltd,OPEN SPACES WORKS," 78,148.25 ","Works - Construction, Repair & Maint.Open Spaces.Repair & Maintenance",Q2
05/07/2016,"STRATEGIC HOUSING, REGENERATION & COMMUNITIES (HRA)",Holland Rise & Whitebeam Close TMO,PRIVATE CONTRACTORS PAYMENT - OTHER," 77,467.50 ",Housing Management.Arms Length Management Organisations.NA,Q2
25/07/2016,FINANCE,Wilks Head & Eve,SURVEYS," 77,150.00 ","Works - Construction, Repair & Maint.Buildings.Surveys",Q2
18/08/2016,CAPITAL CC,Mears Ltd,FACILITIES MANAGEMENT," 76,307.27 ","Works - Construction, Repair & Maint.Buildings.Repair & Maintenance",Q2
26/09/2016,ADULT SOCIAL CARE,Guys & St Thomas NHS Foundation Trust,PAYMENT TO HEALTH AUTHORITIES," 75,707.00 ",Healthcare.Services.NA,Q2
09/09/2016,"PLANNING, TRANSPORT & DEVELOPMENT",F M Conway Ltd_d,"MAINTENANCE - EQUIPMENT, FURNITURE AND MATERIALS"," 75,144.29 ","Works - Construction, Repair & Maint.Roads.Repair & Maintenance",Q2
30/09/2016,PUBLIC HEALTH,Photofusion Ltd,PAYMENT TO HEALTH AUTHORITIES," 75,000.00 ",Healthcare.Public Health.NA,Q2
16/09/2016,CAPITAL CC,F M Conway Ltd_d,"MAINTENANCE - EQUIPMENT, FURNITURE AND MATERIALS"," 74,653.32 ","Works - Construction, Repair & Maint.Roads.Repair & Maintenance",Q2
08/09/2016,CAPITAL CC,Precision Lift Services Ltd_d,CYCLICAL/PLANNED MAINTENANCE - MECHANICAL AND ELECTRICAL," 73,926.50 ",Facilities & Management Services.Lifts.NA,Q2
19/07/2016,BUSINESS & CUSTOMER SERVICES,Brixton BID Limited,GENERAL OFFICE EXPENSES," 73,791.88 ",Consultancy.Business.NA,Q2
12/08/2016,"NEIGHBOURHOODS, ENVIRONMENT & EMPLOYMENT",City Suburban Tree Surgeons Ltd,GROUNDS MAINTENANCE," 73,754.76 ",Horticultural.Tree Trimming.NA,Q2
12/08/2016,"NEIGHBOURHOODS, ENVIRONMENT & EMPLOYMENT",City Suburban Tree Surgeons Ltd,OPEN SPACES WORKS," 73,754.76 ","Works - Construction, Repair & Maint.Open Spaces.Repair & Maintenance",Q2
12/07/2016,PUBLIC HEALTH,"Change, Grow, Live (CGL)",PAYMENT TO HEALTH AUTHORITIES," 73,750.00 ",Healthcare.Public Health.NA,Q2
23/09/2016,PUBLIC HEALTH,"Change, Grow, Live (CGL)",PAYMENT TO HEALTH AUTHORITIES," 73,750.00 ",Healthcare.Public Health.NA,Q2
12/09/2016,BUSINESS & CUSTOMER SERVICES,Cofely Workplace Ltd,CLEANING SERVICES," 73,629.42 ",Cleaning & Janitorial.Cleaning Service.Internal,Q2
26/07/2016,BUSINESS TRANSFORMATION,Canon (UK) Ltd,PHOTOCOPYING," 73,548.98 ",Facilities & Management Services.Reprographics.NA,Q2
12/08/2016,"NEIGHBOURHOODS, ENVIRONMENT & EMPLOYMENT",City Suburban Tree Surgeons Ltd,OPEN SPACES WORKS," 73,482.58 ","Works - Construction, Repair & Maint.Open Spaces.Repair & Maintenance",Q2
22/07/2016,BUSINESS & CUSTOMER SERVICES,Cofely Workplace Ltd,CLEANING SERVICES," 73,469.75 ",Cleaning & Janitorial.Cleaning Service.Internal,Q2
22/07/2016,BUSINESS & CUSTOMER SERVICES,Cofely Workplace Ltd,FACILITIES MANAGEMENT," 73,469.75 ","Works - Construction, Repair & Maint.Buildings.Repair & Maintenance",Q2
12/08/2016,CAPITAL CC,Mears Ltd,FACILITIES MANAGEMENT," 73,252.94 ","Works - Construction, Repair & Maint.Buildings.Repair & Maintenance",Q2
25/08/2016,ADULT SOCIAL CARE,South London & Maudsley (nhs) Trust,PRIVATE CONTRACTORS PAYMENT - OTHER," 72,422.00 ",Social Community Care Supplies & Service.Adult.NA,Q2
20/07/2016,CAPITAL CC,F M Conway Ltd_d,"MAINTENANCE - EQUIPMENT, FURNITURE AND MATERIALS"," 71,125.32 ","Works - Construction, Repair & Maint.Roads.Repair & Maintenance",Q2
04/08/2016,BUSINESS TRANSFORMATION,Specialist Computer Centers Plc,ICT SOFTWARE," 70,894.68 ",Information Communication Technology.Software.NA,Q2
30/09/2016,BUSINESS & CUSTOMER SERVICES,Cofely Workplace Ltd,CLEANING SERVICES," 69,631.23 ",Cleaning & Janitorial.Cleaning Service.Internal,Q2
19/09/2016,"NEIGHBOURHOODS, ENVIRONMENT & EMPLOYMENT",London Councils,CONSULTANCY FEES," 68,384.00 ",Consultancy.Strategic Planning.NA,Q2
28/09/2016,"NEIGHBOURHOODS, ENVIRONMENT & EMPLOYMENT",F M Conway Ltd_d,"MAINTENANCE - EQUIPMENT, FURNITURE AND MATERIALS"," 68,172.61 ","Works - Construction, Repair & Maint.Roads.Repair & Maintenance",Q2
26/08/2016,BUSINESS TRANSFORMATION,Vodafone Ltd,LAND LINE TELEPHONE COSTS," 67,251.21 ",Information Communication Technology.Telecommunications.NA,Q2
30/09/2016,"STRATEGIC HOUSING, REGENERATION & COMMUNITIES (HRA)",Roupell Park Resident Management Organisation Ltd,PRIVATE CONTRACTORS PAYMENT - OTHER," 66,873.67 ",Housing Management.Arms Length Management Organisations.NA,Q2
27/07/2016,ADULT SOCIAL CARE,Limetree Healthcare Ltd,RESIDENTIAL PLACEMENTS - PRIVATE CONTRACTORS PAYMENT," 66,588.00 ",Social Community Care Supplies & Service.Adult.Residential Care,Q2
26/08/2016,ADULT SOCIAL CARE,Limetree Healthcare Ltd,RESIDENTIAL PLACEMENTS - PRIVATE CONTRACTORS PAYMENT," 66,588.00 ",Social Community Care Supplies & Service.Adult.Residential Care,Q2
23/08/2016,HOUSING SERVICES (HRA),Mitie Property Services (UK) Ltd_d,RESPONSIVE REPAIRS - MECHANICAL AND ELECTRICAL," 66,015.74 ","Works - Construction, Repair & Maint.Buildings.Construction",Q2
23/08/2016,HOUSING SERVICES (HRA),Mitie Property Services (UK) Ltd_d,RESPONSIVE REPAIRS - MECHANICAL AND ELECTRICAL," 66,015.74 ","Works - Construction, Repair & Maint.Buildings.Construction",Q2
01/09/2016,HOUSING SERVICES (HRA),Mitie Property Services (UK) Ltd_d,RESPONSIVE REPAIRS - MECHANICAL AND ELECTRICAL," 66,015.74 ","Works - Construction, Repair & Maint.Buildings.Construction",Q2
13/09/2016,CHILDREN'S SERVICES,London Borough of Wandsworth_d,RESIDENTIAL PLACEMENTS - PRIVATE CONTRACTORS PAYMENT," 65,620.17 ",Social Community Care Supplies & Service.Children.Residential Care,Q2
10/08/2016,CAPITAL CC,Apollo Property Services Group Ltd,BUILDING ALTERATIONS AND MATERIALS," 64,992.17 ","Works - Construction, Repair & Maint.Buildings.Construction",Q2
08/08/2016,PUBLIC HEALTH,Thames Reach,PAYMENT TO HEALTH AUTHORITIES," 64,633.00 ",Healthcare.Public Health.NA,Q2
18/08/2016,CAPITAL CC,Breyer Group Plc_d,"MAINTENANCE - EQUIPMENT, FURNITURE AND MATERIALS"," 64,549.50 ","Works - Construction, Repair & Maint.Buildings.Construction",Q2
28/09/2016,ADULT SOCIAL CARE,Limetree Healthcare Ltd,RESIDENTIAL PLACEMENTS - PRIVATE CONTRACTORS PAYMENT," 64,440.00 ",Social Community Care Supplies & Service.Adult.Residential Care,Q2
05/07/2016,"STRATEGIC HOUSING, REGENERATION & COMMUNITIES (HRA)",Wellington Mills Housing TMC,PRIVATE CONTRACTORS PAYMENT - OTHER," 64,339.50 ",Housing Management.Arms Length Management Organisations.NA,Q2
30/09/2016,"STRATEGIC HOUSING, REGENERATION & COMMUNITIES (HRA)",Wellington Mills Housing TMC,PRIVATE CONTRACTORS PAYMENT - OTHER," 64,339.50 ",Housing Management.Arms Length Management Organisations.NA,Q2
05/07/2016,CAPITAL CC,Apollo Property Services Group Ltd,"MAINTENANCE - EQUIPMENT, FURNITURE AND MATERIALS"," 64,244.99 ","Works - Construction, Repair & Maint.Buildings.Construction",Q2
07/09/2016,CAPITAL CC,Oco Ltd_d,BUILDING ALTERATIONS AND MATERIALS," 64,156.33 ",Building Construction Materials.Heating & Air Conditioning.NA,Q2
30/09/2016,BUSINESS & CUSTOMER SERVICES,Cofely Workplace Ltd,FACILITIES MANAGEMENT," 63,954.48 ","Works - Construction, Repair & Maint.Buildings.Repair & Maintenance",Q2
29/07/2016,CHILDREN'S SERVICES,The Hesley Group Ltd,RESIDENTIAL PLACEMENTS - PRIVATE CONTRACTORS PAYMENT," 63,806.74 ",Social Community Care Supplies & Service.Adult.Residential Care,Q2
29/07/2016,PUBLIC HEALTH,Aurora Project Lambeth_d,PAYMENT TO HEALTH AUTHORITIES," 63,581.00 ",Healthcare.Public Health.NA,Q2
22/07/2016,BUSINESS & CUSTOMER SERVICES,Cofely Workplace Ltd,SECURITY SERVICES (EXCLUDING PREMISES)," 61,676.14 ",Facilities & Management Services.Security.NA,Q2
14/07/2016,CAPITAL CC,Breyer Group Plc_d,"MAINTENANCE - EQUIPMENT, FURNITURE AND MATERIALS"," 61,158.60 ","Works - Construction, Repair & Maint.Buildings.Construction",Q2
13/09/2016,CAPITAL CC,C F Moller Architects UK Ltd,"MAINTENANCE - EQUIPMENT, FURNITURE AND MATERIALS"," 61,000.00 ","Works - Construction, Repair & Maint.Architect.NA",Q2
08/07/2016,"NEIGHBOURHOODS, ENVIRONMENT & EMPLOYMENT",Merton & Lambeth Citizens Advice Bureaux Ltd,LEGAL FEES," 61,000.00 ",Legal Services.General Support.NA,Q2
25/07/2016,CAPITAL CC,Pellings LLP,CONSULTANCY FEES," 60,588.43 ","Works - Construction, Repair & Maint.Consultancy.NA",Q2
14/07/2016,"STRATEGIC HOUSING, REGENERATION & COMMUNITIES (HRA)",Pellings LLP,CONSULTANCY FEES," 60,588.43 ","Works - Construction, Repair & Maint.Consultancy.NA",Q2
21/09/2016,CAPITAL CC,T Brown Group Ltd_d,BUILDING ALTERATIONS AND MATERIALS," 60,465.08 ",Building Construction Materials.Heating & Air Conditioning.NA,Q2
19/09/2016,BUSINESS & CUSTOMER SERVICES,Interserve Consulting_d,CONSULTANCY FEES," 60,103.39 ","Works - Construction, Repair & Maint.Consultancy.NA",Q2
07/07/2016,BUSINESS TRANSFORMATION,H M Land Registry,LEGAL FEES," 60,000.00 ",Legal Services.General Support.NA,Q2
22/07/2016,PUBLIC HEALTH,Brook Young People,PAYMENT TO HEALTH AUTHORITIES," 59,607.00 ",Healthcare.Public Health.NA,Q2
13/09/2016,PUBLIC HEALTH,Brook Young People,PAYMENT TO HEALTH AUTHORITIES," 59,607.00 ",Healthcare.Public Health.NA,Q2
13/09/2016,CHILDREN'S SERVICES,London Borough of Wandsworth_d,RESIDENTIAL PLACEMENTS - PRIVATE CONTRACTORS PAYMENT," 59,186.82 ",Social Community Care Supplies & Service.Children.Residential Care,Q2
22/08/2016,"STRATEGIC HOUSING, REGENERATION & COMMUNITIES (HRA)",Regenter Myatts Field North Ltd,"MAINTENANCE - EQUIPMENT, FURNITURE AND MATERIALS"," 59,085.02 ","Works - Construction, Repair & Maint.Buildings.Construction",Q2
03/08/2016,CAPITAL CC,Arcadis LLP,CONSULTANCY FEES," 58,799.00 ","Works - Construction, Repair & Maint.Consultancy.NA",Q2
12/08/2016,CAPITAL CC,Baily Garner LLP,"MAINTENANCE - EQUIPMENT, FURNITURE AND MATERIALS"," 58,644.70 ","Works - Construction, Repair & Maint.Architect.NA",Q2
22/07/2016,PUBLIC HEALTH,Brook Young People,PAYMENT TO HEALTH AUTHORITIES," 57,855.25 ",Healthcare.Public Health.NA,Q2
13/09/2016,PUBLIC HEALTH,Brook Young People,PAYMENT TO HEALTH AUTHORITIES," 57,855.00 ",Healthcare.Public Health.NA,Q2
26/08/2016,PUBLIC HEALTH,Kings College Hospital NHS Foundation Trust,PAYMENT TO HEALTH AUTHORITIES," 57,158.00 ",Healthcare.Public Health.NA,Q2
02/09/2016,"NEIGHBOURHOODS, ENVIRONMENT & EMPLOYMENT",F M Conway Ltd_d,"MAINTENANCE - EQUIPMENT, FURNITURE AND MATERIALS"," 57,100.52 ","Works - Construction, Repair & Maint.Roads.Repair & Maintenance",Q2
12/09/2016,BUSINESS & CUSTOMER SERVICES,Cofely Workplace Ltd,SECURITY SERVICES (EXCLUDING PREMISES)," 56,537.26 ",Facilities & Management Services.Security.NA,Q2
12/09/2016,BUSINESS & CUSTOMER SERVICES,Cofely Workplace Ltd,FACILITIES MANAGEMENT," 56,508.36 ","Works - Construction, Repair & Maint.Buildings.Repair & Maintenance",Q2
30/09/2016,BUSINESS & CUSTOMER SERVICES,Cofely Workplace Ltd,FACILITIES MANAGEMENT," 56,508.36 ","Works - Construction, Repair & Maint.Buildings.Repair & Maintenance",Q2
22/07/2016,BUSINESS & CUSTOMER SERVICES,Cofely Workplace Ltd,FACILITIES MANAGEMENT," 56,334.78 ","Works - Construction, Repair & Maint.Buildings.Repair & Maintenance",Q2
03/08/2016,"NEIGHBOURHOODS, ENVIRONMENT & EMPLOYMENT",London Councils,CONSULTANCY FEES," 55,993.00 ",Consultancy.Strategic Planning.NA,Q2
07/07/2016,"NEIGHBOURHOODS, ENVIRONMENT & EMPLOYMENT",H M Land Registry,LEGAL FEES," 55,182.15 ",Legal Services.General Support.NA,Q2
13/09/2016,ADULT SOCIAL CARE,TOPAZ Social Work CIC,PRIVATE CONTRACTORS PAYMENT - OTHER," 54,354.25 ",Social Community Care Supplies & Service.Adult.NA,Q2
27/07/2016,CAPITAL CC,Corelogic Ltd,ICT SOFTWARE," 54,242.00 ",Information Communication Technology.Software.Customised & Bespoke,Q2
27/09/2016,CHILDREN'S SERVICES,Merton & Lambeth Citizens Advice Bureaux Ltd,PRIVATE CONTRACTORS PAYMENT - OTHER," 54,000.00 ",Social Community Care Supplies & Service.Adult.NA,Q2
25/07/2016,"NEIGHBOURHOODS, ENVIRONMENT & EMPLOYMENT",F M Conway Ltd_d,"MAINTENANCE - EQUIPMENT, FURNITURE AND MATERIALS"," 53,827.27 ","Works - Construction, Repair & Maint.Roads.Repair & Maintenance",Q2
27/07/2016,CHILDREN'S SERVICES,Barnardo Services Ltd,PRIVATE CONTRACTORS PAYMENT - OTHER," 53,333.00 ",Social Community Care Supplies & Service.Children.NA,Q2
12/08/2016,"NEIGHBOURHOODS, ENVIRONMENT & EMPLOYMENT",City Suburban Tree Surgeons Ltd,GROUNDS MAINTENANCE," 52,739.01 ",Horticultural.Tree Trimming.NA,Q2
12/08/2016,"NEIGHBOURHOODS, ENVIRONMENT & EMPLOYMENT",City Suburban Tree Surgeons Ltd,OPEN SPACES WORKS," 52,739.01 ","Works - Construction, Repair & Maint.Open Spaces.Repair & Maintenance",Q2
27/09/2016,HOUSING SERVICES (HRA),Mears Ltd,RESPONSIVE REPAIRS - MECHANICAL AND ELECTRICAL," 52,118.08 ","Works - Construction, Repair & Maint.Buildings.Repair & Maintenance",Q2
30/09/2016,BUSINESS & CUSTOMER SERVICES,Cofely Workplace Ltd,SECURITY SERVICES (EXCLUDING PREMISES)," 51,453.03 ",Facilities & Management Services.Security.NA,Q2
22/09/2016,CAPITAL CC,Mears Ltd,FACILITIES MANAGEMENT," 51,451.56 ","Works - Construction, Repair & Maint.Buildings.Repair & Maintenance",Q2
23/09/2016,CAPITAL CC,Frankham Consultancy Group Ltd,CONSULTANCY FEES," 51,388.00 ","Works - Construction, Repair & Maint.Consultancy.NA",Q2
30/08/2016,FINANCE,Browne Jacobson Solicitors,LEGAL FEES," 51,384.26 ",Legal Services.General Support.NA,Q2
12/08/2016,CAPITAL CC,Mears Ltd,FACILITIES MANAGEMENT," 51,216.24 ","Works - Construction, Repair & Maint.Buildings.Repair & Maintenance",Q2
28/09/2016,CHILDREN'S SERVICES,Blandford House (UK) Ltd,RESIDENTIAL PLACEMENTS - PRIVATE CONTRACTORS PAYMENT," 49,775.14 ",Social Community Care Supplies & Service.Children.Residential Care,Q2
09/09/2016,CAPITAL CC,Mears Ltd,FACILITIES MANAGEMENT," 49,476.84 ","Works - Construction, Repair & Maint.Buildings.Repair & Maintenance",Q2
15/08/2016,BUSINESS & CUSTOMER SERVICES,South Bank Bid Ltd,GENERAL OFFICE EXPENSES," 49,143.66 ",Financial Services.Council Tax & Business Rates.NA,Q2
09/09/2016,"NEIGHBOURHOODS, ENVIRONMENT & EMPLOYMENT",F M Conway Ltd_d,"MAINTENANCE - EQUIPMENT, FURNITURE AND MATERIALS"," 49,062.15 ","Works - Construction, Repair & Maint.Roads.Repair & Maintenance",Q2
21/07/2016,"STRATEGIC HOUSING, REGENERATION & COMMUNITIES",Saint Mungo Association,STREET POPULATION SERVICES - PRIVATE CONTRACTORS PAYMENT," 48,959.20 ","Social Community Care Supplies & Service.Adult.Temporary Accommodation, Hostels",Q2
08/08/2016,"STRATEGIC HOUSING, REGENERATION & COMMUNITIES",Saint Mungo Association,STREET POPULATION SERVICES - PRIVATE CONTRACTORS PAYMENT," 48,959.20 ","Social Community Care Supplies & Service.Adult.Temporary Accommodation, Hostels",Q2
04/07/2016,"NEIGHBOURHOODS, ENVIRONMENT & EMPLOYMENT",F M Conway Ltd_d,"MAINTENANCE - EQUIPMENT, FURNITURE AND MATERIALS"," 48,345.68 ","Works - Construction, Repair & Maint.Roads.Repair & Maintenance",Q2
21/07/2016,"STRATEGIC HOUSING, REGENERATION & COMMUNITIES",Refuge,FLOATING SUPPORT SERVICES - PRIVATE CONTRACTORS PAYMENT," 48,330.24 ",Social Community Care Supplies & Service.Adult.Advice & Counselling Services,Q2
08/08/2016,"STRATEGIC HOUSING, REGENERATION & COMMUNITIES",Refuge,FLOATING SUPPORT SERVICES - PRIVATE CONTRACTORS PAYMENT," 48,330.24 ",Social Community Care Supplies & Service.Adult.Advice & Counselling Services,Q2
16/08/2016,"NEIGHBOURHOODS, ENVIRONMENT & EMPLOYMENT",St Giles Trust,PRIVATE CONTRACTORS PAYMENT - OTHER," 48,261.00 ",Social Community Care Supplies & Service.Adult.Advice & Counselling Services,Q2
15/07/2016,FINANCE,Lambert Smith Hampton Group Ltd,CONSULTANCY FEES," 48,030.72 ",Consultancy.Technical & Feasibility.NA,Q2
22/08/2016,BUSINESS TRANSFORMATION,British Telecommunications plc,LAND LINE TELEPHONE COSTS," 47,074.62 ",Information Communication Technology.Telecommunications.NA,Q2
06/09/2016,ADULT SOCIAL CARE,Mosaic Clubhouse,PRIVATE CONTRACTORS PAYMENT - OTHER," 46,916.67 ",Social Community Care Supplies & Service.Adult.Mental Health Services,Q2
06/09/2016,ADULT SOCIAL CARE,Mosaic Clubhouse,PRIVATE CONTRACTORS PAYMENT - OTHER," 46,916.67 ",Social Community Care Supplies & Service.Adult.Mental Health Services,Q2
06/09/2016,ADULT SOCIAL CARE,Mosaic Clubhouse,PRIVATE CONTRACTORS PAYMENT - OTHER," 46,916.67 ",Social Community Care Supplies & Service.Adult.Mental Health Services,Q2
06/09/2016,ADULT SOCIAL CARE,Mosaic Clubhouse,PRIVATE CONTRACTORS PAYMENT - OTHER," 46,916.67 ",Social Community Care Supplies & Service.Adult.Mental Health Services,Q2
25/07/2016,CAPITAL CC,Pellings LLP,CONSULTANCY FEES," 46,889.44 ","Works - Construction, Repair & Maint.Consultancy.NA",Q2
21/07/2016,"STRATEGIC HOUSING, REGENERATION & COMMUNITIES",Thames Reach,PRIVATE CONTRACTORS PAYMENT - OTHER," 46,884.68 ",Social Community Care Supplies & Service.Adult.Mental Health Services,Q2
08/08/2016,"STRATEGIC HOUSING, REGENERATION & COMMUNITIES",Thames Reach,PRIVATE CONTRACTORS PAYMENT - OTHER," 46,884.68 ",Social Community Care Supplies & Service.Adult.Mental Health Services,Q2
19/07/2016,ADULT SOCIAL CARE,Allied Healthcare (UK) Ltd,DOMICILIARY CARE - THIRD PARTY," 46,528.68 ",Social Community Care Supplies & Service.Adult.Domiciliary Care,Q2
27/07/2016,ADULT SOCIAL CARE,Windmill Care Centre,RESIDENTIAL PLACEMENTS - PRIVATE CONTRACTORS PAYMENT," 46,500.00 ",Social Community Care Supplies & Service.Adult.Residential Care,Q2
26/08/2016,ADULT SOCIAL CARE,Windmill Care Centre,RESIDENTIAL PLACEMENTS - PRIVATE CONTRACTORS PAYMENT," 46,500.00 ",Social Community Care Supplies & Service.Adult.Residential Care,Q2
15/08/2016,FINANCE,EDF Energy Plc,ELECTRICITY," 46,296.13 ",Utilities.Electricity.NA,Q2
21/07/2016,"NEIGHBOURHOODS, ENVIRONMENT & EMPLOYMENT",Veolia ES (UK) Ltd,WASTE DISPOSAL COSTS," 46,167.09 ",Environmental Services.Waste Management.NA,Q2
23/08/2016,"NEIGHBOURHOODS, ENVIRONMENT & EMPLOYMENT",Veolia ES (UK) Ltd,WASTE DISPOSAL COSTS," 46,167.09 ",Environmental Services.Waste Management.NA,Q2
21/09/2016,"NEIGHBOURHOODS, ENVIRONMENT & EMPLOYMENT",Veolia ES (UK) Ltd,WASTE DISPOSAL COSTS," 46,167.09 ",Environmental Services.Waste Management.NA,Q2
12/09/2016,BUSINESS & CUSTOMER SERVICES,Rendall & Rittner Ltd,FACILITIES MANAGEMENT," 46,105.47 ",Facilities & Management Services.Property Management.NA,Q2
21/07/2016,"STRATEGIC HOUSING, REGENERATION & COMMUNITIES",Single Homeless Project,FLOATING SUPPORT SERVICES - PRIVATE CONTRACTORS PAYMENT," 46,027.40 ",Social Community Care Supplies & Service.Adult.Sheltered Accommodation,Q2
08/08/2016,"STRATEGIC HOUSING, REGENERATION & COMMUNITIES",Single Homeless Project,FLOATING SUPPORT SERVICES - PRIVATE CONTRACTORS PAYMENT," 46,027.40 ",Social Community Care Supplies & Service.Adult.Sheltered Accommodation,Q2
04/07/2016,"NEIGHBOURHOODS, ENVIRONMENT & EMPLOYMENT",F M Conway Ltd_d,"MAINTENANCE - EQUIPMENT, FURNITURE AND MATERIALS"," 45,305.19 ","Works - Construction, Repair & Maint.Roads.Repair & Maintenance",Q2
30/08/2016,FINANCE,Lambert Smith Hampton Group Ltd,CONSULTANCY FEES," 45,226.31 ",Consultancy.Technical & Feasibility.NA,Q2
16/08/2016,ADULT SOCIAL CARE,Insight,RESIDENTIAL PLACEMENTS - PRIVATE CONTRACTORS PAYMENT," 45,089.34 ",Social Community Care Supplies & Service.Adult.Residential Care,Q2
04/07/2016,"NEIGHBOURHOODS, ENVIRONMENT & EMPLOYMENT",F M Conway Ltd_d,"MAINTENANCE - EQUIPMENT, FURNITURE AND MATERIALS"," 45,004.70 ","Works - Construction, Repair & Maint.Roads.Repair & Maintenance",Q2
28/09/2016,ADULT SOCIAL CARE,Windmill Care Centre,RESIDENTIAL PLACEMENTS - PRIVATE CONTRACTORS PAYMENT," 45,000.00 ",Social Community Care Supplies & Service.Adult.Residential Care,Q2
12/08/2016,CAPITAL CC,Baily Garner LLP,"MAINTENANCE - EQUIPMENT, FURNITURE AND MATERIALS"," 44,386.95 ","Works - Construction, Repair & Maint.Architect.NA",Q2
31/08/2016,CAPITAL CC,Arcadis LLP,CONSULTANCY FEES," 44,324.39 ","Works - Construction, Repair & Maint.Consultancy.NA",Q2
12/09/2016,ADULT SOCIAL CARE,Allied Healthcare (UK) Ltd,DOMICILIARY CARE - THIRD PARTY," 44,153.16 ",Social Community Care Supplies & Service.Adult.Domiciliary Care,Q2
01/09/2016,ADULT SOCIAL CARE,Allied Healthcare (UK) Ltd,DOMICILIARY CARE - THIRD PARTY," 44,003.68 ",Social Community Care Supplies & Service.Adult.Domiciliary Care,Q2
12/08/2016,CAPITAL CC,Baily Garner LLP,"MAINTENANCE - EQUIPMENT, FURNITURE AND MATERIALS"," 43,912.30 ","Works - Construction, Repair & Maint.Architect.NA",Q2
21/07/2016,"NEIGHBOURHOODS, ENVIRONMENT & EMPLOYMENT",F M Conway Ltd_d,"MAINTENANCE - EQUIPMENT, FURNITURE AND MATERIALS"," 43,657.94 ","Works - Construction, Repair & Maint.Roads.Repair & Maintenance",Q2
11/08/2016,CAPITAL CC,Quinn London Ltd,BUILDING ALTERATIONS AND MATERIALS," 43,483.00 ","Works - Construction, Repair & Maint.Buildings.Construction",Q2
22/07/2016,FINANCE,Lambert Smith Hampton Group Ltd,CONSULTANCY FEES," 43,222.01 ",Consultancy.Technical & Feasibility.NA,Q2
10/08/2016,PUBLIC HEALTH,Central & North West London NHS Foundation Trust,PAYMENT TO HEALTH AUTHORITIES," 42,868.18 ",Healthcare.Public Health.NA,Q2
10/08/2016,PUBLIC HEALTH,Central & North West London NHS Foundation Trust,PAYMENT TO HEALTH AUTHORITIES," 42,868.18 ",Healthcare.Public Health.NA,Q2
09/09/2016,PUBLIC HEALTH,Central & North West London NHS Foundation Trust,PAYMENT TO HEALTH AUTHORITIES," 42,868.18 ",Healthcare.Public Health.NA,Q2
21/09/2016,CORPORATE AFFAIRS,Royal Mail Group Plc,POSTAGE AND COURIER SERVICES," 42,549.90 ",Mail Services.Postage.NA,Q2
05/08/2016,CAPITAL CC,Q-Nomy (UK) Ltd,ICT MAINTENANCE AND SUPPORT," 42,543.00 ",Information Communication Technology.Services.Application Service Provision,Q2
11/07/2016,ADULT SOCIAL CARE,Aspire Wellbeing,DAYCARE - PRIVATE CONTRACTORS PAYMENT," 42,500.00 ",Social Community Care Supplies & Service.Adult.Day Care,Q2
15/08/2016,HOUSING SERVICES (HRA),Morrison Facilities Services Ltd_d,CLEANING SERVICES," 42,335.63 ",Cleaning & Janitorial.Cleaning Service.External,Q2
03/08/2016,BUSINESS TRANSFORMATION,Specialist Computer Centers Plc,ICT SOFTWARE," 42,054.00 ",Information Communication Technology.Software.NA,Q2
03/08/2016,"NEIGHBOURHOODS, ENVIRONMENT & EMPLOYMENT",London Councils,CONSULTANCY FEES," 41,979.00 ",Consultancy.Strategic Planning.NA,Q2
22/09/2016,CHILDREN'S SERVICES,Education Development Trust,PROFESSIONAL SERVICES - GENERAL," 41,600.00 ",Education.School Services.NA,Q2
05/07/2016,CAPITAL CC,APC Building Services (London) Ltd,FACILITIES MANAGEMENT," 41,512.94 ","Works - Construction, Repair & Maint.Buildings.Repair & Maintenance",Q2
27/09/2016,CAPITAL CC,Mears Ltd,FACILITIES MANAGEMENT," 41,449.39 ","Works - Construction, Repair & Maint.Buildings.Repair & Maintenance",Q2
05/07/2016,FINANCE,Solace Enterprises Ltd,AGENCY STAFF," 41,431.28 ",Human Resources.Temporary & Agency Staff.NA,Q2
05/08/2016,CAPITAL CC,Mitie Property Services (UK) Ltd_d,"MAINTENANCE - EQUIPMENT, FURNITURE AND MATERIALS"," 41,147.16 ","Works - Construction, Repair & Maint.Buildings.Construction",Q2
08/09/2016,"NEIGHBOURHOODS, ENVIRONMENT & EMPLOYMENT",Liberty Printers Ltd,PRINTING," 41,129.63 ",Facilities & Management Services.Printing.NA,Q2
28/07/2016,"STRATEGIC HOUSING, REGENERATION & COMMUNITIES",OCS Group UK Ltd t/a Cannon,"PURCHASE - EQUIPMENT, FURNITURE AND MATERIALS"," 41,062.00 ",Street & Traffic Management.Closed-Circuit Television.NA,Q2
26/08/2016,"STRATEGIC HOUSING, REGENERATION & COMMUNITIES",OCS Group UK Ltd t/a Cannon,"PURCHASE - EQUIPMENT, FURNITURE AND MATERIALS"," 41,062.00 ",Street & Traffic Management.Closed-Circuit Television.NA,Q2
28/09/2016,"STRATEGIC HOUSING, REGENERATION & COMMUNITIES",OCS Group UK Ltd t/a Cannon,"PURCHASE - EQUIPMENT, FURNITURE AND MATERIALS"," 41,062.00 ",Street & Traffic Management.Closed-Circuit Television.NA,Q2
12/08/2016,CAPITAL CC,Baily Garner LLP,FACILITIES MANAGEMENT," 40,859.00 ","Works - Construction, Repair & Maint.Buildings.Repair & Maintenance",Q2
19/09/2016,"NEIGHBOURHOODS, ENVIRONMENT & EMPLOYMENT",Regeneris Consulting Ltd,CONSULTANCY FEES," 40,744.00 ",Consultancy.Technical & Feasibility.NA,Q2
28/07/2016,BUSINESS TRANSFORMATION,Swiss Post Solutions Ltd,PRINTING," 40,655.00 ",Facilities & Management Services.Printing.NA,Q2
26/08/2016,BUSINESS TRANSFORMATION,Swiss Post Solutions Ltd,PRINTING," 40,655.00 ",Facilities & Management Services.Printing.NA,Q2
10/08/2016,POLICY & COMMUNICATIONS,Security Force Management Ltd,ARTS AND LEISURE COSTS," 40,640.14 ",Arts & Leisure Services.Organised Activities.NA,Q2
10/08/2016,POLICY & COMMUNICATIONS,Piggotts Company Ltd,EVENTS," 40,494.20 ",Arts & Leisure Services.Events.NA,Q2
23/09/2016,EDUCATION & LEARNING,Capita Business Services Ltd,ICT SOFTWARE," 40,202.95 ",Information Communication Technology.Software.NA,Q2
23/09/2016,CAPITAL CC,Frankham Consultancy Group Ltd,CONSULTANCY FEES," 40,180.59 ","Works - Construction, Repair & Maint.Consultancy.NA",Q2
26/07/2016,PUBLIC HEALTH,Guys & St Thomas NHS Foundation Trust,PAYMENT TO HEALTH AUTHORITIES," 40,000.00 ",Healthcare.Public Health.NA,Q2
23/08/2016,PUBLIC HEALTH,Kings College Hospital NHS Foundation Trust,PAYMENT TO HEALTH AUTHORITIES," 40,000.00 ",Healthcare.Public Health.NA,Q2
28/07/2016,BUSINESS TRANSFORMATION,XMA Ltd,ICT HARDWARE," 39,675.00 ",Information Communication Technology.Hardware.NA,Q2
28/07/2016,BUSINESS TRANSFORMATION,XMA Ltd,ICT HARDWARE," 39,675.00 ",Information Communication Technology.Hardware.NA,Q2
02/09/2016,HOUSING SERVICES (HRA),Apollo Property Services Group Ltd,FACILITIES MANAGEMENT," 39,659.10 ","Works - Construction, Repair & Maint.Buildings.Repair & Maintenance",Q2
02/09/2016,HOUSING SERVICES (HRA),Apollo Property Services Group Ltd,FACILITIES MANAGEMENT," 39,659.10 ","Works - Construction, Repair & Maint.Buildings.Repair & Maintenance",Q2
02/09/2016,HOUSING SERVICES (HRA),Apollo Property Services Group Ltd,FACILITIES MANAGEMENT," 39,659.10 ","Works - Construction, Repair & Maint.Buildings.Repair & Maintenance",Q2
02/09/2016,HOUSING SERVICES (HRA),Apollo Property Services Group Ltd,FACILITIES MANAGEMENT," 39,659.10 ","Works - Construction, Repair & Maint.Buildings.Repair & Maintenance",Q2
13/09/2016,BUSINESS TRANSFORMATION,XMA Ltd,ICT HARDWARE," 39,375.00 ",Information Communication Technology.Hardware.NA,Q2
13/09/2016,BUSINESS TRANSFORMATION,XMA Ltd,ICT HARDWARE," 39,375.00 ",Information Communication Technology.Hardware.NA,Q2
15/08/2016,FINANCE,EDF Energy Plc,ELECTRICITY," 39,369.94 ",Utilities.Electricity.NA,Q2
07/07/2016,ADULT SOCIAL CARE,Draftcreate Ltd,RESIDENTIAL PLACEMENTS - PRIVATE CONTRACTORS PAYMENT," 39,352.88 ",Social Community Care Supplies & Service.Adult.Residential Care,Q2
06/09/2016,ADULT SOCIAL CARE,Mosaic Clubhouse,PRIVATE CONTRACTORS PAYMENT - OTHER," 39,291.67 ",Social Community Care Supplies & Service.Adult.Mental Health Services,Q2
06/09/2016,ADULT SOCIAL CARE,Mosaic Clubhouse,PRIVATE CONTRACTORS PAYMENT - OTHER," 39,291.67 ",Social Community Care Supplies & Service.Adult.Mental Health Services,Q2
06/09/2016,ADULT SOCIAL CARE,Mosaic Clubhouse,PRIVATE CONTRACTORS PAYMENT - OTHER," 39,291.67 ",Social Community Care Supplies & Service.Adult.Mental Health Services,Q2
06/09/2016,ADULT SOCIAL CARE,Mosaic Clubhouse,PRIVATE CONTRACTORS PAYMENT - OTHER," 39,291.67 ",Social Community Care Supplies & Service.Adult.Mental Health Services,Q2
10/08/2016,FINANCE,PricewaterhouseCoopers LLP,AUDIT FEES," 39,255.00 ",Financial Services.Audit.NA,Q2
12/09/2016,HOUSING SERVICES (HRA),Apollo Property Services Group Ltd,OPEN SPACES WORKS," 39,193.37 ","Works - Construction, Repair & Maint.Open Spaces.Repair & Maintenance",Q2
28/09/2016,CHILDREN'S SERVICES,London Borough of Wandsworth_d,RESIDENTIAL PLACEMENTS - PRIVATE CONTRACTORS PAYMENT," 39,130.00 ",Social Community Care Supplies & Service.Children.Residential Care,Q2
28/09/2016,BUSINESS TRANSFORMATION,Swiss Post Solutions Ltd,PRINTING," 38,855.00 ",Facilities & Management Services.Printing.NA,Q2
08/09/2016,CAPITAL CC,Ark Build Plc,"MAINTENANCE - EQUIPMENT, FURNITURE AND MATERIALS"," 38,559.26 ","Works - Construction, Repair & Maint.Roads.NA",Q2
09/09/2016,CAPITAL CC,Ark Build Plc,"MAINTENANCE - EQUIPMENT, FURNITURE AND MATERIALS"," 38,559.26 ","Works - Construction, Repair & Maint.Roads.NA",Q2
08/08/2016,CAPITAL CC,Pickfords Ltd,DIRECT TRANSPORT," 38,475.34 ",Public Transport.Haulage.NA,Q2
09/09/2016,PUBLIC HEALTH,Terence Higgins Enterprises,PAYMENT TO HEALTH AUTHORITIES," 38,309.50 ",Healthcare.Public Health.NA,Q2
07/07/2016,PUBLIC HEALTH,Brook Young People,PAYMENT TO HEALTH AUTHORITIES," 38,304.50 ",Healthcare.Public Health.NA,Q2
28/07/2016,HOUSING SERVICES (HRA),Oco Ltd_d,RESPONSIVE REPAIRS - MECHANICAL AND ELECTRICAL," 38,280.06 ",Building Construction Materials.Heating & Air Conditioning.NA,Q2
26/07/2016,HOUSING SERVICES (HRA),Oco Ltd_d,RESPONSIVE REPAIRS - MECHANICAL AND ELECTRICAL," 38,280.06 ",Building Construction Materials.Heating & Air Conditioning.NA,Q2
23/08/2016,HOUSING SERVICES (HRA),Oco Ltd_d,RESPONSIVE REPAIRS - MECHANICAL AND ELECTRICAL," 38,280.06 ",Building Construction Materials.Heating & Air Conditioning.NA,Q2
04/08/2016,CHILDREN'S SERVICES,Saint Michael's Fellowship,PRIVATE CONTRACTORS PAYMENT - OTHER," 38,244.00 ",Social Community Care Supplies & Service.Adult.Residential Care,Q2
15/08/2016,HOUSING SERVICES (HRA),Morrison Facilities Services Ltd_d,CLEANING SERVICES," 38,156.94 ",Cleaning & Janitorial.Cleaning Service.External,Q2
01/09/2016,HOUSING SERVICES (HRA),Morrison Facilities Services Ltd_d,CLEANING SERVICES," 38,050.63 ",Cleaning & Janitorial.Cleaning Service.External,Q2
23/09/2016,HOUSING SERVICES (HRA),Morrison Facilities Services Ltd_d,CLEANING SERVICES," 38,050.63 ",Cleaning & Janitorial.Cleaning Service.External,Q2
21/07/2016,"STRATEGIC HOUSING, REGENERATION & COMMUNITIES",Centrepoint Soho Ltd,PRIVATE CONTRACTORS PAYMENT - OTHER," 37,972.60 ",Social Community Care Supplies & Service.Adult.Sheltered Accommodation,Q2
08/08/2016,"STRATEGIC HOUSING, REGENERATION & COMMUNITIES",Centrepoint Soho Ltd,PRIVATE CONTRACTORS PAYMENT - OTHER," 37,972.60 ",Social Community Care Supplies & Service.Adult.Sheltered Accommodation,Q2
05/09/2016,CHILDREN'S SERVICES,Essex County Council,CONSULTANCY FEES," 37,800.00 ",Consultancy.Business.NA,Q2
13/07/2016,CHILDREN'S SERVICES,Saint Michael's Fellowship,PRIVATE CONTRACTORS PAYMENT - OTHER," 37,500.00 ",Social Community Care Supplies & Service.Adult.Residential Care,Q2
02/08/2016,PUBLIC HEALTH,The Metro Centre Ltd,PAYMENT TO HEALTH AUTHORITIES," 37,375.00 ",Healthcare.Public Health.NA,Q2
02/08/2016,PUBLIC HEALTH,The Metro Centre Ltd,PAYMENT TO HEALTH AUTHORITIES," 37,375.00 ",Healthcare.Public Health.NA,Q2
26/08/2016,FINANCE,EDF Energy Plc,ELECTRICITY," 37,012.31 ",Utilities.Electricity.NA,Q2
25/08/2016,"STRATEGIC HOUSING, REGENERATION & COMMUNITIES",M L Community Enterprise,PRIVATE CONTRACTORS PAYMENT - OTHER," 37,000.00 ",Social Community Care Supplies & Service.Children.Youth Offending Services,Q2
11/08/2016,"NEIGHBOURHOODS, ENVIRONMENT & EMPLOYMENT",London Councils,CONSULTANCY FEES," 36,986.00 ",Consultancy.Strategic Planning.NA,Q2
21/07/2016,"NEIGHBOURHOODS, ENVIRONMENT & EMPLOYMENT",F M Conway Ltd_d,"MAINTENANCE - EQUIPMENT, FURNITURE AND MATERIALS"," 36,968.85 ","Works - Construction, Repair & Maint.Roads.Repair & Maintenance",Q2
28/09/2016,CAPITAL CC,Apollo Property Services Group Ltd,"MAINTENANCE - EQUIPMENT, FURNITURE AND MATERIALS"," 36,759.96 ","Works - Construction, Repair & Maint.Buildings.Construction",Q2
13/09/2016,CAPITAL CC,Invicta Preservation Ltd_d,FACILITIES MANAGEMENT," 36,755.32 ","Works - Construction, Repair & Maint.Buildings.Repair & Maintenance",Q2
22/07/2016,BUSINESS & CUSTOMER SERVICES,Cofely Workplace Ltd,FACILITIES MANAGEMENT," 36,689.17 ","Works - Construction, Repair & Maint.Buildings.Repair & Maintenance",Q2
14/07/2016,"NEIGHBOURHOODS, ENVIRONMENT & EMPLOYMENT",Liberty Printers Ltd,PRINTING," 36,678.65 ",Facilities & Management Services.Printing.NA,Q2
21/07/2016,BUSINESS & CUSTOMER SERVICES,RME Services Ltd,FACILITIES MANAGEMENT," 36,300.00 ","Works - Construction, Repair & Maint.Buildings.Repair & Maintenance",Q2
21/07/2016,BUSINESS & CUSTOMER SERVICES,RME Services Ltd,FACILITIES MANAGEMENT," 36,300.00 ","Works - Construction, Repair & Maint.Buildings.Repair & Maintenance",Q2
21/07/2016,BUSINESS & CUSTOMER SERVICES,RME Services Ltd,FACILITIES MANAGEMENT," 36,300.00 ","Works - Construction, Repair & Maint.Buildings.Repair & Maintenance",Q2
21/07/2016,"PLANNING, TRANSPORT & DEVELOPMENT",Sustrans Ltd,PURCHASE OF VEHICLES RELATED COSTS," 36,135.78 ",Vehicle Management.Cycles.NA,Q2
16/09/2016,EDUCATION & LEARNING,Lambeth College,GRANTS AND CONTRIBUTIONS," 36,000.00 ",Financial Services.Grants.NA,Q2
27/09/2016,EDUCATION & LEARNING,Lambeth Elfrida Rathbone Society,RENTS PAYABLE," 36,000.00 ",Financial Services.Rents.NA,Q2
25/07/2016,"NEIGHBOURHOODS, ENVIRONMENT & EMPLOYMENT",Liberty Printers Ltd,PRINTING," 35,928.86 ",Facilities & Management Services.Printing.NA,Q2
14/07/2016,BUSINESS & CUSTOMER SERVICES,RME Services Ltd,FACILITIES MANAGEMENT," 35,625.00 ","Works - Construction, Repair & Maint.Buildings.Repair & Maintenance",Q2
26/08/2016,CHILDREN'S SERVICES,Inclusive Care Support Ltd,RENTS PAYABLE," 35,605.16 ",Social Community Care Supplies & Service.Children.Residential Care,Q2
24/08/2016,FINANCE,KPMG,AUDIT FEES," 35,376.00 ",Financial Services.Audit.NA,Q2
21/07/2016,ADULT SOCIAL CARE,Look Ahead Housing & Care Ltd,PRIVATE CONTRACTORS PAYMENT - OTHER," 35,155.08 ",Social Community Care Supplies & Service.Adult.Mental Health Services,Q2
08/08/2016,ADULT SOCIAL CARE,Look Ahead Housing & Care Ltd,PRIVATE CONTRACTORS PAYMENT - OTHER," 35,155.08 ",Social Community Care Supplies & Service.Adult.Mental Health Services,Q2
21/07/2016,ADULT SOCIAL CARE,Southside Partnership,PRIVATE CONTRACTORS PAYMENT - OTHER," 34,541.96 ",Social Community Care Supplies & Service.Adult.Residential Care,Q2
08/08/2016,ADULT SOCIAL CARE,Southside Partnership,PRIVATE CONTRACTORS PAYMENT - OTHER," 34,541.96 ",Social Community Care Supplies & Service.Adult.Residential Care,Q2
25/08/2016,CHILDREN'S SERVICES,The Lantern Community,RESIDENTIAL PLACEMENTS - PRIVATE CONTRACTORS PAYMENT," 34,412.50 ",Social Community Care Supplies & Service.Children.Residential Care,Q2
06/07/2016,EDUCATION & LEARNING,Civica UK Ltd,ICT MAINTENANCE AND SUPPORT," 34,311.24 ",Information Communication Technology.Services.Maintenance & Support,Q2
05/08/2016,EDUCATION & LEARNING,Civica UK Ltd,ICT MAINTENANCE AND SUPPORT," 34,311.24 ",Information Communication Technology.Services.Maintenance & Support,Q2
19/09/2016,EDUCATION & LEARNING,Civica UK Ltd,ICT MAINTENANCE AND SUPPORT," 34,311.24 ",Information Communication Technology.Services.Maintenance & Support,Q2
14/09/2016,PUBLIC HEALTH,Women In Prison,ASYLUM SEEKERS - PRIVATE CONTRACTORS PAYMENT," 34,292.37 ",Social Community Care Supplies & Service.Adult.Asylum Seekers Services,Q2
26/07/2016,HOUSING SERVICES (HRA),Anthony Gold Solicitors,LEGAL FEES," 34,275.98 ",Legal Services.Advocacy.NA,Q2
21/07/2016,"NEIGHBOURHOODS, ENVIRONMENT & EMPLOYMENT",F M Conway Ltd_d,"MAINTENANCE - EQUIPMENT, FURNITURE AND MATERIALS"," 34,215.64 ","Works - Construction, Repair & Maint.Roads.Repair & Maintenance",Q2
15/07/2016,PUBLIC HEALTH,Central & North West London NHS Foundation Trust,PAYMENT TO HEALTH AUTHORITIES," 34,045.65 ",Healthcare.Public Health.NA,Q2
18/07/2016,CAPITAL CC,PJB Technical Services Ltd,"MAINTENANCE - EQUIPMENT, FURNITURE AND MATERIALS"," 34,000.00 ","Works - Construction, Repair & Maint.Roads.Construction",Q2
28/07/2016,BUSINESS TRANSFORMATION,Specialist Computer Centers Plc,ICT SOFTWARE," 33,968.64 ",Information Communication Technology.Software.NA,Q2
26/08/2016,FINANCE,EDF Energy Plc,ELECTRICITY," 33,931.81 ",Utilities.Electricity.NA,Q2
25/07/2016,"NEIGHBOURHOODS, ENVIRONMENT & EMPLOYMENT",Western Riverside Waste Authority,WASTE DISPOSAL COSTS," 33,748.33 ",Environmental Services.Waste Management.NA,Q2
15/08/2016,CAPITAL CC,PJB Technical Services Ltd,"MAINTENANCE - EQUIPMENT, FURNITURE AND MATERIALS"," 33,500.00 ","Works - Construction, Repair & Maint.Roads.Construction",Q2
21/07/2016,ADULT SOCIAL CARE,Family Mosaic,PRIVATE CONTRACTORS PAYMENT - OTHER," 33,479.96 ",Social Community Care Supplies & Service.Adult.Mental Health Services,Q2
08/08/2016,ADULT SOCIAL CARE,Family Mosaic,PRIVATE CONTRACTORS PAYMENT - OTHER," 33,479.96 ",Social Community Care Supplies & Service.Adult.Mental Health Services,Q2
28/07/2016,PUBLIC HEALTH,Central & North West London NHS Foundation Trust,PAYMENT TO HEALTH AUTHORITIES," 33,445.67 ",Healthcare.Public Health.NA,Q2
10/08/2016,PUBLIC HEALTH,Central & North West London NHS Foundation Trust,PAYMENT TO HEALTH AUTHORITIES," 33,435.46 ",Healthcare.Public Health.NA,Q2
02/09/2016,CAPITAL CC,Apollo Property Services Group Ltd,"MAINTENANCE - EQUIPMENT, FURNITURE AND MATERIALS"," 33,417.80 ","Works - Construction, Repair & Maint.Buildings.Construction",Q2
28/07/2016,CAPITAL CC,Breyer Group Plc_d,"MAINTENANCE - EQUIPMENT, FURNITURE AND MATERIALS"," 33,386.81 ","Works - Construction, Repair & Maint.Buildings.Construction",Q2
31/08/2016,PUBLIC HEALTH,St George's Healthcare NHS Trust,PAYMENT TO HEALTH AUTHORITIES," 33,326.53 ",Healthcare.Public Health.NA,Q2
28/07/2016,PUBLIC HEALTH,Central & North West London NHS Foundation Trust,PAYMENT TO HEALTH AUTHORITIES," 33,262.24 ",Healthcare.Public Health.NA,Q2
29/09/2016,CHILDREN'S SERVICES,Compass Fostering London & Eastern Ltd,FOSTERING AGENCY PLACEMENTS - PRIVATE CONTRACTORS PAYMENT," 33,253.77 ",Social Community Care Supplies & Service.Children.Fostering,Q2
21/07/2016,"STRATEGIC HOUSING, REGENERATION & COMMUNITIES",Thames Reach,PRIVATE CONTRACTORS PAYMENT - OTHER," 33,227.32 ",Social Community Care Supplies & Service.Adult.Mental Health Services,Q2
08/08/2016,"STRATEGIC HOUSING, REGENERATION & COMMUNITIES",Thames Reach,PRIVATE CONTRACTORS PAYMENT - OTHER," 33,227.32 ",Social Community Care Supplies & Service.Adult.Mental Health Services,Q2
28/09/2016,CHILDREN'S SERVICES,Meadows Care Ltd,RESIDENTIAL PLACEMENTS - PRIVATE CONTRACTORS PAYMENT," 33,150.00 ",Social Community Care Supplies & Service.Adult.Residential Homes for Older People,Q2
03/08/2016,ADULT SOCIAL CARE,MiHomecare Ltd,DOMICILIARY CARE - THIRD PARTY," 32,984.28 ",Social Community Care Supplies & Service.Adult.Domiciliary Care,Q2
31/08/2016,ADULT SOCIAL CARE,Clareville Lodge,SUPPORTED OTHER ACCOMMODATION - PRIVATE CONTRACTORS PAYMENT," 32,966.53 ",Social Community Care Supplies & Service.Adult.Sheltered Accommodation,Q2
18/07/2016,ADULT SOCIAL CARE,Allied Healthcare (UK) Ltd,DOMICILIARY CARE - THIRD PARTY," 32,887.43 ",Social Community Care Supplies & Service.Adult.Domiciliary Care,Q2
05/08/2016,EDUCATION & LEARNING,Saint Mary's School,PROFESSIONAL SERVICES - GENERAL," 32,840.00 ",Education.School Services.NA,Q2
24/08/2016,ADULT SOCIAL CARE,MiHomecare Ltd,DOMICILIARY CARE - THIRD PARTY," 32,775.56 ",Social Community Care Supplies & Service.Adult.Domiciliary Care,Q2
31/08/2016,PUBLIC HEALTH,St George's Healthcare NHS Trust,PAYMENT TO HEALTH AUTHORITIES," 32,747.24 ",Healthcare.Public Health.NA,Q2
07/07/2016,PUBLIC HEALTH,Naz Project London,PAYMENT TO HEALTH AUTHORITIES," 32,738.92 ",Healthcare.Public Health.NA,Q2
14/09/2016,PUBLIC HEALTH,Naz Project London,PAYMENT TO HEALTH AUTHORITIES," 32,738.92 ",Healthcare.Public Health.NA,Q2
14/09/2016,PUBLIC HEALTH,Naz Project London,PAYMENT TO HEALTH AUTHORITIES," 32,738.92 ",Healthcare.Public Health.NA,Q2
12/09/2016,BUSINESS & CUSTOMER SERVICES,Cofely Workplace Ltd,FACILITIES MANAGEMENT," 32,415.91 ","Works - Construction, Repair & Maint.Buildings.Repair & Maintenance",Q2
30/09/2016,BUSINESS & CUSTOMER SERVICES,Cofely Workplace Ltd,FACILITIES MANAGEMENT," 32,415.91 ","Works - Construction, Repair & Maint.Buildings.Repair & Maintenance",Q2
22/07/2016,BUSINESS & CUSTOMER SERVICES,Cofely Workplace Ltd,FACILITIES MANAGEMENT," 32,413.56 ","Works - Construction, Repair & Maint.Buildings.Repair & Maintenance",Q2
13/09/2016,ADULT SOCIAL CARE,Allied Healthcare (UK) Ltd,DOMICILIARY CARE - THIRD PARTY," 32,375.20 ",Social Community Care Supplies & Service.Adult.Domiciliary Care,Q2
07/07/2016,CAPITAL CC,Apollo Property Services Group Ltd,"MAINTENANCE - EQUIPMENT, FURNITURE AND MATERIALS"," 32,277.83 ","Works - Construction, Repair & Maint.Buildings.Construction",Q2
23/08/2016,HOUSING SERVICES (HRA),Oco Ltd_d,CYCLICAL/PLANNED MAINTENANCE - MECHANICAL AND ELECTRICAL," 32,173.92 ",Building Construction Materials.Heating & Air Conditioning.NA,Q2
17/08/2016,"NEIGHBOURHOODS, ENVIRONMENT & EMPLOYMENT",Exclusive Leisure Ltd,OPEN SPACES WORKS," 32,031.00 ","Works - Construction, Repair & Maint.Open Spaces.Construction",Q2
22/07/2016,"NEIGHBOURHOODS, ENVIRONMENT & EMPLOYMENT",Single Homeless Project,PRIVATE CONTRACTORS PAYMENT - OTHER," 32,000.00 ",Social Community Care Supplies & Service.Adult.Homeless Support,Q2
21/07/2016,BUSINESS & CUSTOMER SERVICES,Interserve Consulting_d,CONSULTANCY FEES," 31,954.70 ","Works - Construction, Repair & Maint.Consultancy.NA",Q2
21/07/2016,BUSINESS & CUSTOMER SERVICES,Interserve Consulting_d,CONSULTANCY FEES," 31,954.70 ","Works - Construction, Repair & Maint.Consultancy.NA",Q2
08/08/2016,ADULT SOCIAL CARE,MiHomecare Ltd,DOMICILIARY CARE - THIRD PARTY," 31,680.60 ",Social Community Care Supplies & Service.Adult.Domiciliary Care,Q2
15/08/2016,ADULT SOCIAL CARE,Allied Healthcare (UK) Ltd,DOMICILIARY CARE - THIRD PARTY," 31,611.10 ",Social Community Care Supplies & Service.Adult.Domiciliary Care,Q2
15/08/2016,ADULT SOCIAL CARE,Allied Healthcare (UK) Ltd,DOMICILIARY CARE - THIRD PARTY," 31,520.54 ",Social Community Care Supplies & Service.Adult.Domiciliary Care,Q2
04/07/2016,BUSINESS & CUSTOMER SERVICES,South London & Maudsley (nhs) Trust,CLEANING SERVICES," 31,477.25 ",Cleaning & Janitorial.Cleaning Service.Internal,Q2
21/09/2016,BUSINESS TRANSFORMATION,London Grid Ltd t/a London PSN,ICT MAINTENANCE AND SUPPORT," 31,408.00 ",Information Communication Technology.Services.NA,Q2
21/09/2016,BUSINESS TRANSFORMATION,London Grid Ltd t/a London PSN,ICT MAINTENANCE AND SUPPORT," 31,408.00 ",Information Communication Technology.Services.NA,Q2
15/09/2016,EDUCATION & LEARNING,Charlton Park Academy,PRIVATE CONTRACTORS PAYMENT - OTHER," 31,345.30 ",Social Community Care Supplies & Service.Children.Residential Care,Q2
12/08/2016,HOUSING SERVICES (HRA),Arcadis LLP,CONSULTANCY FEES," 31,340.14 ","Works - Construction, Repair & Maint.Consultancy.NA",Q2
08/07/2016,PUBLIC HEALTH,Royal Free London NHS Foundation Trust,PAYMENT TO HEALTH AUTHORITIES," 31,233.00 ",Healthcare.Public Health.NA,Q2
14/07/2016,"NEIGHBOURHOODS, ENVIRONMENT & EMPLOYMENT",Liberty Printers Ltd,PRINTING," 31,186.22 ",Facilities & Management Services.Printing.NA,Q2
12/08/2016,"NEIGHBOURHOODS, ENVIRONMENT & EMPLOYMENT",Liberty Printers Ltd,PRINTING," 31,186.22 ",Facilities & Management Services.Printing.NA,Q2
21/07/2016,ADULT SOCIAL CARE,Riverside ECHG,PRIVATE CONTRACTORS PAYMENT - OTHER," 31,114.24 ",Social Community Care Supplies & Service.Adult.Sheltered Accommodation,Q2
08/08/2016,ADULT SOCIAL CARE,Riverside ECHG,PRIVATE CONTRACTORS PAYMENT - OTHER," 31,114.24 ",Social Community Care Supplies & Service.Adult.Sheltered Accommodation,Q2
25/07/2016,CAPITAL CC,PJB Technical Services Ltd,"MAINTENANCE - EQUIPMENT, FURNITURE AND MATERIALS"," 31,000.00 ","Works - Construction, Repair & Maint.Roads.Construction",Q2
03/08/2016,ADULT SOCIAL CARE,MiHomecare Ltd,DOMICILIARY CARE - THIRD PARTY," 30,916.37 ",Social Community Care Supplies & Service.Adult.Domiciliary Care,Q2
13/09/2016,ADULT SOCIAL CARE,Allied Healthcare (UK) Ltd,DOMICILIARY CARE - THIRD PARTY," 30,911.38 ",Social Community Care Supplies & Service.Adult.Domiciliary Care,Q2
26/07/2016,ADULT SOCIAL CARE,Norcrest (2000) Home Ltd,SUPPORTED OTHER ACCOMMODATION - PRIVATE CONTRACTORS PAYMENT," 30,762.17 ",Social Community Care Supplies & Service.Adult.Sheltered Accommodation,Q2
10/08/2016,HOUSING SERVICES (HRA),Martin Arnold Ltd,CONSULTANCY FEES," 30,660.00 ",Consultancy.Technical & Feasibility.NA,Q2
17/08/2016,HOUSING SERVICES (HRA),Martin Arnold Ltd,CONSULTANCY FEES," 30,660.00 ",Consultancy.Technical & Feasibility.NA,Q2
18/07/2016,ADULT SOCIAL CARE,Allied Healthcare (UK) Ltd,DOMICILIARY CARE - THIRD PARTY," 30,624.14 ",Social Community Care Supplies & Service.Adult.Domiciliary Care,Q2
07/07/2016,CAPITAL CC,Apollo Property Services Group Ltd,"MAINTENANCE - EQUIPMENT, FURNITURE AND MATERIALS"," 30,531.34 ","Works - Construction, Repair & Maint.Buildings.Construction",Q2
12/08/2016,PUBLIC HEALTH,Quality Medical Solutions,PAYMENT TO HEALTH AUTHORITIES," 30,379.25 ",Healthcare.Public Health.NA,Q2
12/08/2016,PUBLIC HEALTH,Quality Medical Solutions,PAYMENT TO HEALTH AUTHORITIES," 30,379.25 ",Healthcare.Public Health.NA,Q2
21/07/2016,"STRATEGIC HOUSING, REGENERATION & COMMUNITIES",Look Ahead Housing & Care Ltd,PRIVATE CONTRACTORS PAYMENT - OTHER," 30,376.76 ",Social Community Care Supplies & Service.Adult.Mental Health Services,Q2
08/08/2016,"STRATEGIC HOUSING, REGENERATION & COMMUNITIES",Look Ahead Housing & Care Ltd,PRIVATE CONTRACTORS PAYMENT - OTHER," 30,376.76 ",Social Community Care Supplies & Service.Adult.Mental Health Services,Q2
26/08/2016,ADULT SOCIAL CARE,Choice Support,RESIDENTIAL PLACEMENTS - PRIVATE CONTRACTORS PAYMENT," 30,376.60 ",Social Community Care Supplies & Service.Adult.Residential Care,Q2
06/07/2016,ADULT SOCIAL CARE,The National Centre for Young People with Epilepsy,RESIDENTIAL PLACEMENTS - PRIVATE CONTRACTORS PAYMENT," 30,337.61 ",Education.Educational Placements.NA,Q2
02/08/2016,PUBLIC HEALTH,Equinox Care Ltd,PAYMENT TO HEALTH AUTHORITIES," 30,302.50 ",Healthcare.Public Health.NA,Q2
13/09/2016,PUBLIC HEALTH,Equinox Care Ltd,PAYMENT TO HEALTH AUTHORITIES," 30,302.50 ",Healthcare.Public Health.NA,Q2
25/07/2016,"NEIGHBOURHOODS, ENVIRONMENT & EMPLOYMENT",F M Conway Ltd_d,"MAINTENANCE - EQUIPMENT, FURNITURE AND MATERIALS"," 30,198.41 ","Works - Construction, Repair & Maint.Roads.Repair & Maintenance",Q2
12/07/2016,"NEIGHBOURHOODS, ENVIRONMENT & EMPLOYMENT",Bourne Amenity Ltd,OPEN SPACES WORKS," 30,079.20 ","Works - Construction, Repair & Maint.Open Spaces.Repair & Maintenance",Q2
20/07/2016,CAPITAL CC,F M Conway Ltd_d,"MAINTENANCE - EQUIPMENT, FURNITURE AND MATERIALS"," 30,068.91 ","Works - Construction, Repair & Maint.Roads.Repair & Maintenance",Q2
26/09/2016,CHILDREN'S SERVICES,Hempsall Consultancies Ltd,"PURCHASE - EQUIPMENT, FURNITURE AND MATERIALS"," 30,000.00 ",Domestic Goods.Commercial.NA,Q2
10/08/2016,FINANCE,PricewaterhouseCoopers LLP,AUDIT FEES," 30,000.00 ",Financial Services.Audit.NA,Q2
09/09/2016,PUBLIC HEALTH,Central & North West London NHS Foundation Trust,PAYMENT TO HEALTH AUTHORITIES," 29,902.17 ",Healthcare.Public Health.NA,Q2
26/08/2016,BUSINESS TRANSFORMATION,Virgin Media Business,LAND LINE TELEPHONE COSTS," 29,885.00 ",Information Communication Technology.Telecommunications.NA,Q2
26/07/2016,BUSINESS TRANSFORMATION,Telefonica (UK) Ltd,LAND LINE TELEPHONE COSTS," 29,756.18 ",Information Communication Technology.Telecommunications.NA,Q2
02/09/2016,"NEIGHBOURHOODS, ENVIRONMENT & EMPLOYMENT",Veolia Es Southwark Ltd,REFUSE COLLECTION," 29,721.47 ",Environmental Services.Waste Management.Waste Collection for Recycling,Q2
02/09/2016,"NEIGHBOURHOODS, ENVIRONMENT & EMPLOYMENT",F M Conway Ltd_d,"MAINTENANCE - EQUIPMENT, FURNITURE AND MATERIALS"," 29,654.90 ","Works - Construction, Repair & Maint.Roads.Repair & Maintenance",Q2
26/08/2016,CAPITAL CC,Arcadis LLP,CONSULTANCY FEES," 29,613.70 ","Works - Construction, Repair & Maint.Consultancy.NA",Q2
12/08/2016,"NEIGHBOURHOODS, ENVIRONMENT & EMPLOYMENT",Liberty Printers Ltd,PRINTING," 29,559.41 ",Facilities & Management Services.Printing.NA,Q2
02/09/2016,"NEIGHBOURHOODS, ENVIRONMENT & EMPLOYMENT",Veolia Es Southwark Ltd,REFUSE COLLECTION," 29,436.31 ",Environmental Services.Waste Management.Waste Collection for Recycling,Q2
30/08/2016,FINANCE,Energy Auditing Agency Ltd,CONSULTANCY FEES," 29,403.00 ",Consultancy.Business.NA,Q2
11/07/2016,BUSINESS TRANSFORMATION,Capgemini UK Plc,ICT MAINTENANCE AND SUPPORT," 29,390.13 ",Information Communication Technology.Services.Maintenance & Support,Q2
01/08/2016,BUSINESS TRANSFORMATION,Capgemini UK Plc,ICT MAINTENANCE AND SUPPORT," 29,390.13 ",Information Communication Technology.Services.Maintenance & Support,Q2
06/09/2016,BUSINESS TRANSFORMATION,Capgemini UK Plc,ICT MAINTENANCE AND SUPPORT," 29,390.13 ",Information Communication Technology.Services.Maintenance & Support,Q2
24/08/2016,CAPITAL CC,Potter Raper Partnership,CONSULTANCY FEES," 29,207.40 ",Consultancy.Technical & Feasibility.NA,Q2
24/08/2016,CAPITAL CC,Potter Raper Partnership,SURVEYS," 29,207.40 ","Works - Construction, Repair & Maint.Buildings.Surveys",Q2
30/08/2016,CHILDREN'S SERVICES,Penna Plc,"ADVERTISING, PUBLICITY AND MARKETING"," 29,203.08 ",Facilities & Management Services.Advertising.Promotional & Recruitment,Q2
15/09/2016,FINANCE,PricewaterhouseCoopers LLP,AUDIT FEES," 29,167.00 ",Financial Services.Audit.NA,Q2
19/09/2016,CAPITAL CC,Oco Ltd_d,BUILDING ALTERATIONS AND MATERIALS," 29,124.37 ",Building Construction Materials.Heating & Air Conditioning.NA,Q2
27/07/2016,BUSINESS TRANSFORMATION,British Telecommunications plc,LAND LINE TELEPHONE COSTS," 29,005.58 ",Information Communication Technology.Telecommunications.NA,Q2
25/08/2016,FINANCE,Valuation Office Agency (VOA),CONSULTANCY FEES," 29,000.00 ",Consultancy.Property.NA,Q2
29/07/2016,CHILDREN'S SERVICES,Freshstart Care Solutions Ltd,RENTS PAYABLE," 28,608.57 ",Social Community Care Supplies & Service.Children.Fostering,Q2
26/08/2016,CHILDREN'S SERVICES,Freshstart Care Solutions Ltd,RENTS PAYABLE," 28,608.57 ",Social Community Care Supplies & Service.Children.Residential Care,Q2
27/07/2016,ADULT SOCIAL CARE,Lloyd Park Nursing Home,NURSING HOMES - PRIVATE CONTRACTORS PAYMENT," 28,450.71 ",Social Community Care Supplies & Service.Adult.Residential Care,Q2
04/08/2016,CAPITAL CC,Soden Construction Ltd,"MAINTENANCE - EQUIPMENT, FURNITURE AND MATERIALS"," 28,429.00 ","Works - Construction, Repair & Maint.Buildings.Construction",Q2
28/09/2016,ADULT SOCIAL CARE,229 Mitcham Lane Ltd,RESIDENTIAL PLACEMENTS - PRIVATE CONTRACTORS PAYMENT," 28,385.28 ",Social Community Care Supplies & Service.Adult.Residential Care,Q2
13/09/2016,"NEIGHBOURHOODS, ENVIRONMENT & EMPLOYMENT",GoodPeople Business Ltd,PROFESSIONAL SERVICES - GENERAL," 28,362.25 ",Human Resources.Professional & Advisory Services.NA,Q2
28/07/2016,PUBLIC HEALTH,St George's Healthcare NHS Trust,PAYMENT TO HEALTH AUTHORITIES," 28,193.03 ",Healthcare.Public Health.NA,Q2
05/08/2016,CAPITAL CC,Mears Ltd,FACILITIES MANAGEMENT," 28,171.28 ","Works - Construction, Repair & Maint.Buildings.Repair & Maintenance",Q2
08/08/2016,HOUSING SERVICES (HRA),Mears Ltd,FACILITIES MANAGEMENT," 28,164.13 ","Works - Construction, Repair & Maint.Buildings.Repair & Maintenance",Q2
01/07/2016,ADULT SOCIAL CARE,MiHomecare Ltd,DOMICILIARY CARE - THIRD PARTY," 28,067.09 ",Social Community Care Supplies & Service.Adult.Domiciliary Care,Q2
25/08/2016,EDUCATION & LEARNING,Barnardo Services Ltd,PRIVATE CONTRACTORS PAYMENT - OTHER," 28,034.00 ",Social Community Care Supplies & Service.Children.NA,Q2
22/07/2016,"NEIGHBOURHOODS, ENVIRONMENT & EMPLOYMENT",GoodPeople Business Ltd,PROFESSIONAL SERVICES - GENERAL," 27,962.37 ",Human Resources.Professional & Advisory Services.NA,Q2
21/07/2016,"STRATEGIC HOUSING, REGENERATION & COMMUNITIES","Change, Grow, Live (CGL)",STREET POPULATION SERVICES - PRIVATE CONTRACTORS PAYMENT," 27,435.08 ",Healthcare.Public Health.NA,Q2
08/08/2016,"STRATEGIC HOUSING, REGENERATION & COMMUNITIES","Change, Grow, Live (CGL)",STREET POPULATION SERVICES - PRIVATE CONTRACTORS PAYMENT," 27,435.08 ",Healthcare.Public Health.NA,Q2
02/08/2016,"NEIGHBOURHOODS, ENVIRONMENT & EMPLOYMENT",Centre 70 Advice Centre,LEGAL FEES," 27,207.25 ",Legal Services.General Support.NA,Q2
15/09/2016,PUBLIC HEALTH,NHS Lambeth Clinical Commissioning Group,PAYMENT TO HEALTH AUTHORITIES," 27,148.24 ",Healthcare.Public Health.NA,Q2
21/07/2016,"STRATEGIC HOUSING, REGENERATION & COMMUNITIES",Saint Mungo Association,PRIVATE CONTRACTORS PAYMENT - OTHER," 27,139.96 ","Social Community Care Supplies & Service.Adult.Temporary Accommodation, Hostels",Q2
08/08/2016,"STRATEGIC HOUSING, REGENERATION & COMMUNITIES",Saint Mungo Association,PRIVATE CONTRACTORS PAYMENT - OTHER," 27,139.96 ","Social Community Care Supplies & Service.Adult.Temporary Accommodation, Hostels",Q2
17/08/2016,PUBLIC HEALTH,Barts Health NHS Trust,PAYMENT TO HEALTH AUTHORITIES," 27,118.74 ",Healthcare.Public Health.NA,Q2
15/08/2016,"PLANNING, TRANSPORT & DEVELOPMENT",F M Conway Ltd_d,"MAINTENANCE - EQUIPMENT, FURNITURE AND MATERIALS"," 27,030.98 ","Works - Construction, Repair & Maint.Roads.Repair & Maintenance",Q2
08/08/2016,CHILDREN'S SERVICES,Family Action,PRIVATE CONTRACTORS PAYMENT - OTHER," 27,000.00 ",Social Community Care Supplies & Service.Children.Childcare Services,Q2
09/08/2016,CHILDREN'S SERVICES,Family Action,PRIVATE CONTRACTORS PAYMENT - OTHER," 27,000.00 ",Social Community Care Supplies & Service.Children.Childcare Services,Q2
16/08/2016,CHILDREN'S SERVICES,Family Action,PRIVATE CONTRACTORS PAYMENT - OTHER," 27,000.00 ",Social Community Care Supplies & Service.Children.Childcare Services,Q2
26/08/2016,CHILDREN'S SERVICES,Destiny House Ltd,RESIDENTIAL PLACEMENTS - PRIVATE CONTRACTORS PAYMENT," 26,965.57 ",Social Community Care Supplies & Service.Children.Childcare Services,Q2
06/07/2016,CAPITAL CC,Russell Cawberry Ltd,"MAINTENANCE - EQUIPMENT, FURNITURE AND MATERIALS"," 26,836.25 ","Works - Construction, Repair & Maint.Buildings.Construction",Q2
21/07/2016,ADULT SOCIAL CARE,Southside Partnership,PRIVATE CONTRACTORS PAYMENT - OTHER," 26,807.68 ",Social Community Care Supplies & Service.Adult.Residential Care,Q2
08/08/2016,ADULT SOCIAL CARE,Southside Partnership,PRIVATE CONTRACTORS PAYMENT - OTHER," 26,807.68 ",Social Community Care Supplies & Service.Adult.Residential Care,Q2
28/09/2016,CHILDREN'S SERVICES,Inclusive Care Support Ltd,RENTS PAYABLE," 26,689.07 ",Social Community Care Supplies & Service.Children.Residential Care,Q2
21/07/2016,"NEIGHBOURHOODS, ENVIRONMENT & EMPLOYMENT",Veolia ES (UK) Ltd,WASTE DISPOSAL COSTS," 26,658.14 ",Environmental Services.Waste Management.NA,Q2
23/08/2016,"NEIGHBOURHOODS, ENVIRONMENT & EMPLOYMENT",Veolia ES (UK) Ltd,WASTE DISPOSAL COSTS," 26,658.14 ",Environmental Services.Waste Management.NA,Q2
21/09/2016,"NEIGHBOURHOODS, ENVIRONMENT & EMPLOYMENT",Veolia ES (UK) Ltd,WASTE DISPOSAL COSTS," 26,658.14 ",Environmental Services.Waste Management.NA,Q2
21/07/2016,"NEIGHBOURHOODS, ENVIRONMENT & EMPLOYMENT",Veolia ES (UK) Ltd,REFUSE COLLECTION," 26,462.00 ",Environmental Services.Waste Management.Waste Collection,Q2
23/08/2016,"NEIGHBOURHOODS, ENVIRONMENT & EMPLOYMENT",Veolia ES (UK) Ltd,REFUSE COLLECTION," 26,462.00 ",Environmental Services.Waste Management.Waste Collection,Q2
21/09/2016,"NEIGHBOURHOODS, ENVIRONMENT & EMPLOYMENT",Veolia ES (UK) Ltd,REFUSE COLLECTION," 26,462.00 ",Environmental Services.Waste Management.Waste Collection,Q2
09/09/2016,BUSINESS TRANSFORMATION,Telefonica (UK) Ltd,MOBILE PHONE COSTS," 26,354.46 ",Information Communication Technology.Telecommunications.Mobile,Q2
09/09/2016,PUBLIC HEALTH,Terence Higgins Enterprises,PAYMENT TO HEALTH AUTHORITIES," 26,343.50 ",Healthcare.Public Health.NA,Q2
07/07/2016,PUBLIC HEALTH,Cranstoun Drug Services,PAYMENT TO HEALTH AUTHORITIES," 26,250.00 ",Healthcare.Public Health.NA,Q2
18/08/2016,PUBLIC HEALTH,Cranstoun Drug Services,PAYMENT TO HEALTH AUTHORITIES," 26,250.00 ",Healthcare.Public Health.NA,Q2
21/07/2016,"NEIGHBOURHOODS, ENVIRONMENT & EMPLOYMENT",Veolia ES (UK) Ltd,WASTE DISPOSAL COSTS," 26,199.55 ",Environmental Services.Waste Management.NA,Q2
23/08/2016,"NEIGHBOURHOODS, ENVIRONMENT & EMPLOYMENT",Veolia ES (UK) Ltd,WASTE DISPOSAL COSTS," 26,199.55 ",Environmental Services.Waste Management.NA,Q2
21/09/2016,"NEIGHBOURHOODS, ENVIRONMENT & EMPLOYMENT",Veolia ES (UK) Ltd,WASTE DISPOSAL COSTS," 26,199.55 ",Environmental Services.Waste Management.NA,Q2
22/08/2016,"NEIGHBOURHOODS, ENVIRONMENT & EMPLOYMENT",Western Riverside Waste Authority,WASTE DISPOSAL COSTS," 26,191.62 ",Environmental Services.Waste Management.NA,Q2
01/09/2016,CAPITAL CC,F M Conway Ltd_d,"MAINTENANCE - EQUIPMENT, FURNITURE AND MATERIALS"," 26,081.70 ","Works - Construction, Repair & Maint.Roads.Repair & Maintenance",Q2
26/08/2016,ADULT SOCIAL CARE,Dunheved Lodge,RESIDENTIAL PLACEMENTS - PRIVATE CONTRACTORS PAYMENT," 26,080.00 ",Social Community Care Supplies & Service.Adult.Residential Care,Q2
27/07/2016,ADULT SOCIAL CARE,Precious Homes Ltd,RESIDENTIAL PLACEMENTS - PRIVATE CONTRACTORS PAYMENT," 26,036.41 ",Social Community Care Supplies & Service.Adult.Residential Care,Q2
26/08/2016,ADULT SOCIAL CARE,Precious Homes Ltd,RESIDENTIAL PLACEMENTS - PRIVATE CONTRACTORS PAYMENT," 26,036.41 ",Social Community Care Supplies & Service.Adult.Residential Care,Q2
08/08/2016,HOUSING SERVICES (HRA),Mears Ltd,FACILITIES MANAGEMENT," 25,914.11 ","Works - Construction, Repair & Maint.Buildings.Repair & Maintenance",Q2
21/09/2016,"NEIGHBOURHOODS, ENVIRONMENT & EMPLOYMENT",Veolia Es Southwark Ltd,REFUSE COLLECTION," 25,548.76 ",Environmental Services.Waste Management.Waste Collection for Recycling,Q2
12/09/2016,HOUSING SERVICES (HRA),Apollo Property Services Group Ltd,OPEN SPACES WORKS," 25,363.95 ","Works - Construction, Repair & Maint.Open Spaces.Repair & Maintenance",Q2
26/08/2016,ADULT SOCIAL CARE,Choice Support,RESIDENTIAL PLACEMENTS - PRIVATE CONTRACTORS PAYMENT," 25,296.18 ",Social Community Care Supplies & Service.Adult.Residential Care,Q2
12/08/2016,CHILDREN'S SERVICES,Servelec Synergy,ICT SOFTWARE," 25,261.00 ",Information Communication Technology.Software.Commercial Off-The-Shelf,Q2
26/09/2016,"NEIGHBOURHOODS, ENVIRONMENT & EMPLOYMENT",Western Riverside Waste Authority,WASTE DISPOSAL COSTS," 25,227.30 ",Environmental Services.Waste Management.NA,Q2
05/07/2016,HOUSING SERVICES (HRA),Precision Lift Services Ltd_d,RESPONSIVE REPAIRS - MECHANICAL AND ELECTRICAL," 25,208.23 ",Facilities & Management Services.Lifts.NA,Q2
19/08/2016,HOUSING SERVICES (HRA),Precision Lift Services Ltd_d,RESPONSIVE REPAIRS - MECHANICAL AND ELECTRICAL," 25,208.23 ",Facilities & Management Services.Lifts.NA,Q2
01/09/2016,HOUSING SERVICES (HRA),Precision Lift Services Ltd_d,RESPONSIVE REPAIRS - MECHANICAL AND ELECTRICAL," 25,208.23 ",Facilities & Management Services.Lifts.NA,Q2
28/09/2016,ADULT SOCIAL CARE,Precious Homes Ltd,RESIDENTIAL PLACEMENTS - PRIVATE CONTRACTORS PAYMENT," 25,196.53 ",Social Community Care Supplies & Service.Adult.Residential Care,Q2
04/07/2016,"NEIGHBOURHOODS, ENVIRONMENT & EMPLOYMENT",F M Conway Ltd_d,"MAINTENANCE - EQUIPMENT, FURNITURE AND MATERIALS"," 25,181.67 ","Works - Construction, Repair & Maint.Roads.Repair & Maintenance",Q2
26/08/2016,HOUSING SERVICES (HRA),Mears Ltd,FACILITIES MANAGEMENT," 25,155.84 ","Works - Construction, Repair & Maint.Buildings.Repair & Maintenance",Q2
29/09/2016,HOUSING SERVICES (HRA),Mears Ltd,FACILITIES MANAGEMENT," 25,155.84 ","Works - Construction, Repair & Maint.Buildings.Repair & Maintenance",Q2
02/08/2016,"NEIGHBOURHOODS, ENVIRONMENT & EMPLOYMENT",Furnace Managed Services Ltd,BEREAVEMENT SERVICES EQUIPMENT," 25,080.00 ",Cemetery & Crematorium.Equipment.NA,Q2
04/07/2016,PUBLIC HEALTH,Riverside Medical Centre Part of the Hurley Clinic,PAYMENT TO HEALTH AUTHORITIES," 25,059.07 ",Healthcare.Public Health.NA,Q2
20/07/2016,HOUSING SERVICES (HRA),Blenheim Gardens TMO,RESPONSIVE REPAIRS - BUILDING," 25,035.00 ",Housing Management.Arms Length Management Organisations.NA,Q2
26/08/2016,CHILDREN'S SERVICES,Capstone Foster Care (South East) Ltd,FOSTERING AGENCY PLACEMENTS - PRIVATE CONTRACTORS PAYMENT," 25,028.58 ",Social Community Care Supplies & Service.Children.Fostering,Q2
07/09/2016,CHILDREN'S SERVICES,Prof H Owen & D T Geiger_d,PROFESSIONAL SERVICES - GENERAL," 25,005.00 ",Education.Educational Placements.NA,Q2
17/08/2016,"NEIGHBOURHOODS, ENVIRONMENT & EMPLOYMENT",Tree Shepherd Ltd,CONSULTANCY FEES," 25,000.00 ",Consultancy.Management.Organisation & Planning,Q2
17/08/2016,"NEIGHBOURHOODS, ENVIRONMENT & EMPLOYMENT",Tree Shepherd Ltd,CONSULTANCY FEES," 25,000.00 ",Consultancy.Management.Organisation & Planning,Q2
24/08/2016,STRATEGY & COMMISSIONING - CHILDREN,Slade Gardens Community Play Association,PRIVATE CONTRACTORS PAYMENT - OTHER," 24,948.00 ",Social Community Care Supplies & Service.Children.Childcare Services,Q2
23/08/2016,STRATEGY & COMMISSIONING - CHILDREN,Springfield Community Flat,ARTS AND LEISURE COSTS," 24,948.00 ",Arts & Leisure Services.Sport & Fitness.NA,Q2
09/09/2016,STRATEGY & COMMISSIONING - CHILDREN,Triangle Adventure Playground Association,PRIVATE CONTRACTORS PAYMENT - OTHER," 24,948.00 ",Social Community Care Supplies & Service.Children.Childcare Services,Q2
28/09/2016,FINANCE,Corona Energy,GAS," 24,916.38 ",Utilities.Gas.NA,Q2
26/08/2016,BUSINESS TRANSFORMATION,Fotheringham Associates Ltd,CONSULTANCY FEES," 24,892.50 ",Information Communication Technology.Services.Consultancy,Q2
11/07/2016,"NEIGHBOURHOODS, ENVIRONMENT & EMPLOYMENT",Brixton Advice Centre,PRIVATE CONTRACTORS PAYMENT - OTHER," 24,807.25 ",Social Community Care Supplies & Service.Adult.Advice & Counselling Services,Q2
21/07/2016,"NEIGHBOURHOODS, ENVIRONMENT & EMPLOYMENT",F M Conway Ltd_d,"MAINTENANCE - EQUIPMENT, FURNITURE AND MATERIALS"," 24,798.23 ","Works - Construction, Repair & Maint.Roads.Repair & Maintenance",Q2
02/08/2016,PUBLIC HEALTH,The Metro Centre Ltd,PAYMENT TO HEALTH AUTHORITIES," 24,750.00 ",Healthcare.Public Health.NA,Q2
05/07/2016,EDUCATION & LEARNING,Cambian Autism Services Ltd,PROFESSIONAL SERVICES - GENERAL," 24,709.50 ",Education.School Services.NA,Q2
05/08/2016,BUSINESS TRANSFORMATION,Telefonica (UK) Ltd,MOBILE PHONE COSTS," 24,646.50 ",Information Communication Technology.Telecommunications.Mobile,Q2
05/08/2016,BUSINESS TRANSFORMATION,Telefonica (UK) Ltd,MOBILE PHONE COSTS," 24,591.72 ",Information Communication Technology.Telecommunications.Mobile,Q2
06/09/2016,EDUCATION & LEARNING,Saint Edward's School,PROFESSIONAL SERVICES - GENERAL," 24,543.00 ",Education.School Services.NA,Q2
02/08/2016,BUSINESS TRANSFORMATION,Telefonica (UK) Ltd,MOBILE PHONE COSTS," 24,535.71 ",Information Communication Technology.Telecommunications.Mobile,Q2
04/08/2016,CAPITAL CC,Soden Construction Ltd,"MAINTENANCE - EQUIPMENT, FURNITURE AND MATERIALS"," 24,422.15 ","Works - Construction, Repair & Maint.Buildings.Construction",Q2
12/07/2016,"NEIGHBOURHOODS, ENVIRONMENT & EMPLOYMENT",Lambeth Law Centre,PRIVATE CONTRACTORS PAYMENT - OTHER," 24,328.50 ",Social Community Care Supplies & Service.Adult.Advice & Counselling Services,Q2
12/09/2016,HOUSING SERVICES (HRA),Apollo Property Services Group Ltd,OPEN SPACES WORKS," 24,310.64 ","Works - Construction, Repair & Maint.Open Spaces.Repair & Maintenance",Q2
08/07/2016,"NEIGHBOURHOODS, ENVIRONMENT & EMPLOYMENT",Merton & Lambeth Citizens Advice Bureaux Ltd,LEGAL FEES," 24,173.50 ",Legal Services.General Support.NA,Q2
26/07/2016,ADULT SOCIAL CARE,Care Unlimited,SUPPORTED OTHER ACCOMMODATION - PRIVATE CONTRACTORS PAYMENT," 24,127.32 ",Social Community Care Supplies & Service.Adult.Nursing Homes,Q2
09/09/2016,CAPITAL CC,Piece Property Ltd,CONSULTANCY FEES," 24,030.00 ",Consultancy.Property.NA,Q2
09/09/2016,"NEIGHBOURHOODS, ENVIRONMENT & EMPLOYMENT",F M Conway Ltd_d,"MAINTENANCE - EQUIPMENT, FURNITURE AND MATERIALS"," 23,945.45 ","Works - Construction, Repair & Maint.Roads.Repair & Maintenance",Q2
27/07/2016,BUSINESS TRANSFORMATION,Virgin Media Business,LAND LINE TELEPHONE COSTS," 23,943.85 ",Information Communication Technology.Telecommunications.NA,Q2
12/09/2016,CHILDREN'S SERVICES,One One Coco,RESIDENTIAL PLACEMENTS - PRIVATE CONTRACTORS PAYMENT," 23,850.00 ",Social Community Care Supplies & Service.Children.Residential Care,Q2
09/09/2016,"NEIGHBOURHOODS, ENVIRONMENT & EMPLOYMENT",Veolia Es Southwark Ltd,REFUSE COLLECTION," 23,703.29 ",Environmental Services.Waste Management.Waste Collection for Recycling,Q2
09/09/2016,ADULT SOCIAL CARE,Sanctuary Care Ltd,DOMICILIARY CARE - THIRD PARTY," 23,655.27 ",Social Community Care Supplies & Service.Adult.Residential Care,Q2
08/09/2016,CAPITAL CC,Ark Build Plc,"MAINTENANCE - EQUIPMENT, FURNITURE AND MATERIALS"," 23,429.35 ","Works - Construction, Repair & Maint.Roads.NA",Q2
09/09/2016,CAPITAL CC,Ark Build Plc,"MAINTENANCE - EQUIPMENT, FURNITURE AND MATERIALS"," 23,429.35 ","Works - Construction, Repair & Maint.Roads.NA",Q2
07/07/2016,"NEIGHBOURHOODS, ENVIRONMENT & EMPLOYMENT",Baylis Landscape Contractors Ltd_d,OPEN SPACES WORKS," 23,425.30 ","Works - Construction, Repair & Maint.Open Spaces.Repair & Maintenance",Q2
01/08/2016,CAPITAL CC,John Rowan & Partners LLP,LEGAL FEES," 23,151.06 ",Legal Services.General Support.NA,Q2
09/09/2016,ADULT SOCIAL CARE,Sanctuary Care Ltd,DOMICILIARY CARE - THIRD PARTY," 23,136.62 ",Social Community Care Supplies & Service.Adult.Residential Care,Q2
02/08/2016,BUSINESS TRANSFORMATION,Telefonica (UK) Ltd,MOBILE PHONE COSTS," 23,092.72 ",Information Communication Technology.Telecommunications.Mobile,Q2
08/08/2016,BUSINESS & CUSTOMER SERVICES,Interserve Consulting_d,CONSULTANCY FEES," 23,065.21 ","Works - Construction, Repair & Maint.Consultancy.NA",Q2
06/07/2016,ADULT SOCIAL CARE,Apetito Ltd,MEALS ON WHEELS - PRIVATE CONTRACTORS PAYMENT," 23,017.36 ",Catering.Social Care.Meals On Wheels,Q2
26/07/2016,ADULT SOCIAL CARE,London Cyrenians Housing,SUPPORTED OTHER ACCOMMODATION - PRIVATE CONTRACTORS PAYMENT," 23,005.71 ",Social Community Care Supplies & Service.Adult.Residential Care,Q2
28/09/2016,HOUSING SERVICES (HRA),Judge & Priestley Solicitors,LEGAL FEES," 22,942.00 ",Legal Services.General Support.NA,Q2
19/08/2016,HOUSING SERVICES (HRA),Apex Lift & Escalator Engineers Ltd_d,RESPONSIVE REPAIRS - MECHANICAL AND ELECTRICAL," 22,910.86 ",Facilities & Management Services.Lifts.NA,Q2
19/08/2016,HOUSING SERVICES (HRA),Apex Lift & Escalator Engineers Ltd_d,RESPONSIVE REPAIRS - MECHANICAL AND ELECTRICAL," 22,910.86 ",Facilities & Management Services.Lifts.NA,Q2
28/09/2016,HOUSING SERVICES (HRA),Apex Lift & Escalator Engineers Ltd_d,RESPONSIVE REPAIRS - MECHANICAL AND ELECTRICAL," 22,910.86 ",Facilities & Management Services.Lifts.NA,Q2
29/09/2016,CHILDREN'S SERVICES,Integrated Services Programme,FOSTERING AGENCY PLACEMENTS - PRIVATE CONTRACTORS PAYMENT," 22,807.89 ",Social Community Care Supplies & Service.Children.Fostering,Q2
26/07/2016,CAPITAL CC,Oco Ltd_d,BUILDING ALTERATIONS AND MATERIALS," 22,647.73 ",Building Construction Materials.Heating & Air Conditioning.NA,Q2
02/08/2016,HOUSING SERVICES (HRA),Alphatrack Systems Ltd_d,RESPONSIVE REPAIRS - MECHANICAL AND ELECTRICAL," 22,632.52 ",Facilities & Management Services.Security.Closed-Circuit Television,Q2
19/08/2016,HOUSING SERVICES (HRA),Alphatrack Systems Ltd_d,RESPONSIVE REPAIRS - MECHANICAL AND ELECTRICAL," 22,632.52 ",Facilities & Management Services.Security.Closed-Circuit Television,Q2
31/08/2016,HOUSING SERVICES (HRA),Alphatrack Systems Ltd_d,RESPONSIVE REPAIRS - MECHANICAL AND ELECTRICAL," 22,632.52 ",Facilities & Management Services.Security.Closed-Circuit Television,Q2
27/09/2016,HOUSING SERVICES (HRA),Alphatrack Systems Ltd_d,RESPONSIVE REPAIRS - MECHANICAL AND ELECTRICAL," 22,632.52 ",Facilities & Management Services.Security.Closed-Circuit Television,Q2
21/07/2016,"STRATEGIC HOUSING, REGENERATION & COMMUNITIES",Evolve Housing & Support,PRIVATE CONTRACTORS PAYMENT - OTHER," 22,625.16 ",Facilities & Management Services.Room Hire.NA,Q2
08/08/2016,"STRATEGIC HOUSING, REGENERATION & COMMUNITIES",Evolve Housing & Support,PRIVATE CONTRACTORS PAYMENT - OTHER," 22,625.16 ",Facilities & Management Services.Room Hire.NA,Q2
06/09/2016,CAPITAL CC,Deceased Online Ltd,BEREAVEMENT SERVICES EQUIPMENT," 22,500.00 ",Cemetery & Crematorium.Burial & Cremation.NA,Q2
28/07/2016,BUSINESS TRANSFORMATION,Fotheringham Associates Ltd,CONSULTANCY FEES," 22,500.00 ",Information Communication Technology.Services.Consultancy,Q2
20/07/2016,"NEIGHBOURHOODS, ENVIRONMENT & EMPLOYMENT",Myatts Field Park Project Group,OPEN SPACES WORKS," 22,500.00 ","Works - Construction, Repair & Maint.Open Spaces.Repair & Maintenance",Q2
27/07/2016,"NEIGHBOURHOODS, ENVIRONMENT & EMPLOYMENT",West London Mission,PRIVATE CONTRACTORS PAYMENT - OTHER," 22,500.00 ",Social Community Care Supplies & Service.Adult.NA,Q2
28/09/2016,CHILDREN'S SERVICES,Freshstart Care Solutions Ltd,RENTS PAYABLE," 22,400.00 ",Social Community Care Supplies & Service.Children.Residential Care,Q2
29/07/2016,CHILDREN'S SERVICES,National Autistic Society,RESIDENTIAL PLACEMENTS - PRIVATE CONTRACTORS PAYMENT," 22,387.62 ",Social Community Care Supplies & Service.Adult.Day Care,Q2
26/08/2016,CHILDREN'S SERVICES,National Autistic Society,RESIDENTIAL PLACEMENTS - PRIVATE CONTRACTORS PAYMENT," 22,387.62 ",Social Community Care Supplies & Service.Adult.Day Care,Q2
27/09/2016,CAPITAL CC,Mears Ltd,FACILITIES MANAGEMENT," 22,323.97 ","Works - Construction, Repair & Maint.Buildings.Repair & Maintenance",Q2
28/09/2016,CAPITAL CC,Mears Ltd,FACILITIES MANAGEMENT," 22,187.05 ","Works - Construction, Repair & Maint.Buildings.Repair & Maintenance",Q2
09/09/2016,ADULT SOCIAL CARE,Sanctuary Care Ltd,DOMICILIARY CARE - THIRD PARTY," 22,143.35 ",Social Community Care Supplies & Service.Adult.Residential Care,Q2
13/09/2016,POLICY & COMMUNICATIONS,Greenbox Events Ltd,REFUSE COLLECTION," 22,063.00 ",Environmental Services.Waste Management.Waste Collection for Recycling,Q2
22/09/2016,"NEIGHBOURHOODS, ENVIRONMENT & EMPLOYMENT",Veolia ES (UK) Ltd,OPEN SPACES WORKS," 22,008.95 ","Works - Construction, Repair & Maint.Open Spaces.Repair & Maintenance",Q2
11/08/2016,"NEIGHBOURHOODS, ENVIRONMENT & EMPLOYMENT",Myatts Field Park Project Group,OPEN SPACES WORKS," 22,000.00 ","Works - Construction, Repair & Maint.Open Spaces.Repair & Maintenance",Q2
21/07/2016,PUBLIC HEALTH,The Corner Surgery,PAYMENT TO HEALTH AUTHORITIES," 22,000.00 ",Healthcare.Public Health.NA,Q2
27/07/2016,BUSINESS TRANSFORMATION,Virgin Media Business,LAND LINE TELEPHONE COSTS," 21,853.65 ",Information Communication Technology.Telecommunications.NA,Q2
27/07/2016,ADULT SOCIAL CARE,Precious Homes Ltd,RESIDENTIAL PLACEMENTS - PRIVATE CONTRACTORS PAYMENT," 21,830.64 ",Social Community Care Supplies & Service.Adult.Residential Care,Q2
26/08/2016,ADULT SOCIAL CARE,Precious Homes Ltd,RESIDENTIAL PLACEMENTS - PRIVATE CONTRACTORS PAYMENT," 21,830.64 ",Social Community Care Supplies & Service.Adult.Residential Care,Q2
02/08/2016,ADULT SOCIAL CARE,Apetito Ltd,MEALS ON WHEELS - PRIVATE CONTRACTORS PAYMENT," 21,811.03 ",Catering.Social Care.Meals On Wheels,Q2
27/07/2016,ADULT SOCIAL CARE,Tracs Ltd,SUPPORTED OTHER ACCOMMODATION - PRIVATE CONTRACTORS PAYMENT," 21,772.50 ",Social Community Care Supplies & Service.Adult.Sheltered Accommodation,Q2
29/09/2016,"NEIGHBOURHOODS, ENVIRONMENT & EMPLOYMENT",Look Ahead Housing & Care Ltd,PRIVATE CONTRACTORS PAYMENT - OTHER," 21,718.40 ",Social Community Care Supplies & Service.Adult.Advice & Counselling Services,Q2
06/07/2016,CAPITAL CC,George Browns Implements Ltd,VEHICLE LEASES," 21,700.00 ",Vehicle Management.Heavy Construction Equipment.Leasing,Q2
28/09/2016,CHILDREN'S SERVICES,National Autistic Society,RESIDENTIAL PLACEMENTS - PRIVATE CONTRACTORS PAYMENT," 21,665.45 ",Social Community Care Supplies & Service.Adult.Day Care,Q2
29/09/2016,CHILDREN'S SERVICES,By the Bridge,FOSTERING AGENCY PLACEMENTS - PRIVATE CONTRACTORS PAYMENT," 21,657.15 ",Social Community Care Supplies & Service.Disabled Children.Care Services,Q2
23/09/2016,CAPITAL CC,F M Conway Ltd_d,"MAINTENANCE - EQUIPMENT, FURNITURE AND MATERIALS"," 21,648.75 ","Works - Construction, Repair & Maint.Roads.Repair & Maintenance",Q2
29/09/2016,CHILDREN'S SERVICES,Help Me Grow,FOSTERING AGENCY PLACEMENTS - PRIVATE CONTRACTORS PAYMENT," 21,638.57 ",Social Community Care Supplies & Service.Children.Fostering,Q2
04/07/2016,"NEIGHBOURHOODS, ENVIRONMENT & EMPLOYMENT",F M Conway Ltd_d,"MAINTENANCE - EQUIPMENT, FURNITURE AND MATERIALS"," 21,631.63 ","Works - Construction, Repair & Maint.Roads.Repair & Maintenance",Q2
26/08/2016,CHILDREN'S SERVICES,Bryn Melyn Care Ltd,RESIDENTIAL PLACEMENTS - PRIVATE CONTRACTORS PAYMENT," 21,611.43 ",Social Community Care Supplies & Service.Children.Residential Care,Q2
26/07/2016,HOUSING SERVICES (HRA),Van Eaton Solicitors,LEGAL FEES," 21,500.00 ",Legal Services.Legal Opinion.NA,Q2
04/07/2016,BUSINESS & CUSTOMER SERVICES,Riverside Medical Centre Part of the Hurley Clinic,PAYMENT TO HEALTH AUTHORITIES," 21,383.45 ",Healthcare.Public Health.NA,Q2
27/07/2016,ADULT SOCIAL CARE,Precious Homes Ltd,RESIDENTIAL PLACEMENTS - PRIVATE CONTRACTORS PAYMENT," 21,259.49 ",Social Community Care Supplies & Service.Adult.Residential Care,Q2
26/08/2016,ADULT SOCIAL CARE,Precious Homes Ltd,RESIDENTIAL PLACEMENTS - PRIVATE CONTRACTORS PAYMENT," 21,259.49 ",Social Community Care Supplies & Service.Adult.Residential Care,Q2
29/07/2016,CHILDREN'S SERVICES,Pebbles Care Ltd,RESIDENTIAL PLACEMENTS - PRIVATE CONTRACTORS PAYMENT," 21,257.14 ",Social Community Care Supplies & Service.Children.Residential Care,Q2
15/07/2016,FINANCE,CIPFA Business Ltd,MEMBERSHIP AND SUBSCRIPTIONS," 21,234.00 ",Financial Services.Subscriptions.NA,Q2
21/07/2016,"STRATEGIC HOUSING, REGENERATION & COMMUNITIES",Saint Mungo Association,PRIVATE CONTRACTORS PAYMENT - OTHER," 21,186.88 ","Social Community Care Supplies & Service.Adult.Temporary Accommodation, Hostels",Q2
08/08/2016,"STRATEGIC HOUSING, REGENERATION & COMMUNITIES",Saint Mungo Association,PRIVATE CONTRACTORS PAYMENT - OTHER," 21,186.88 ","Social Community Care Supplies & Service.Adult.Temporary Accommodation, Hostels",Q2
28/09/2016,ADULT SOCIAL CARE,Precious Homes Ltd,RESIDENTIAL PLACEMENTS - PRIVATE CONTRACTORS PAYMENT," 21,126.43 ",Social Community Care Supplies & Service.Adult.Residential Care,Q2
19/07/2016,ADULT SOCIAL CARE,Allied Healthcare (UK) Ltd,DOMICILIARY CARE - THIRD PARTY," 21,024.16 ",Social Community Care Supplies & Service.Adult.Domiciliary Care,Q2
14/09/2016,ADULT SOCIAL CARE,Allied Healthcare (UK) Ltd,DOMICILIARY CARE - THIRD PARTY," 21,024.16 ",Social Community Care Supplies & Service.Adult.Domiciliary Care,Q2
24/08/2016,FINANCE,KPMG,AUDIT FEES," 21,000.00 ",Financial Services.Audit.NA,Q2
17/08/2016,"NEIGHBOURHOODS, ENVIRONMENT & EMPLOYMENT",Streatham Common Community Operations Ltd,OPEN SPACES WORKS," 21,000.00 ","Works - Construction, Repair & Maint.Open Spaces.Repair & Maintenance",Q2
26/08/2016,CHILDREN'S SERVICES,Seasons of Joy Children's Home Ltd,RESIDENTIAL PLACEMENTS - PRIVATE CONTRACTORS PAYMENT," 20,991.43 ",Social Community Care Supplies & Service.Children.Childcare Services,Q2
01/09/2016,ADULT SOCIAL CARE,Allied Healthcare (UK) Ltd,DOMICILIARY CARE - THIRD PARTY," 20,911.04 ",Social Community Care Supplies & Service.Adult.Domiciliary Care,Q2
26/08/2016,CAPITAL CC,Apollo Property Services Group Ltd,"MAINTENANCE - EQUIPMENT, FURNITURE AND MATERIALS"," 20,854.65 ","Works - Construction, Repair & Maint.Buildings.Construction",Q2
12/07/2016,CAPITAL CC,Focus Education (Lambeth) Ltd,PROFESSIONAL SERVICES - GENERAL," 20,782.75 ",Education.School Services.NA,Q2
03/08/2016,CAPITAL CC,Focus Education (Lambeth) Ltd,PROFESSIONAL SERVICES - GENERAL," 20,782.75 ",Education.School Services.NA,Q2
19/09/2016,MAJOR CAPITAL PROGRAMMES,Focus Education (Lambeth) Ltd,PROFESSIONAL SERVICES - GENERAL," 20,782.75 ",Education.School Services.NA,Q2
08/07/2016,HOUSING SERVICES (HRA),Pellings LLP,CONSULTANCY FEES," 20,766.55 ","Works - Construction, Repair & Maint.Consultancy.NA",Q2
28/09/2016,ADULT SOCIAL CARE,Precious Homes Ltd,RESIDENTIAL PLACEMENTS - PRIVATE CONTRACTORS PAYMENT," 20,573.70 ",Social Community Care Supplies & Service.Adult.Residential Care,Q2
28/09/2016,ADULT SOCIAL CARE,Apetito Ltd,MEALS ON WHEELS - PRIVATE CONTRACTORS PAYMENT," 20,527.73 ",Catering.Social Care.Meals On Wheels,Q2
02/09/2016,"NEIGHBOURHOODS, ENVIRONMENT & EMPLOYMENT",Veolia Es Southwark Ltd,REFUSE COLLECTION," 20,459.73 ",Environmental Services.Waste Management.Waste Collection for Recycling,Q2
21/07/2016,"NEIGHBOURHOODS, ENVIRONMENT & EMPLOYMENT",F M Conway Ltd_d,"MAINTENANCE - EQUIPMENT, FURNITURE AND MATERIALS"," 20,421.92 ","Works - Construction, Repair & Maint.Roads.Repair & Maintenance",Q2
29/07/2016,CHILDREN'S SERVICES,Cambian Childcare Ltd,RESIDENTIAL PLACEMENTS - PRIVATE CONTRACTORS PAYMENT," 20,371.43 ",Social Community Care Supplies & Service.Children.Residential Care,Q2
26/08/2016,CHILDREN'S SERVICES,Cambian Childcare Ltd,RESIDENTIAL PLACEMENTS - PRIVATE CONTRACTORS PAYMENT," 20,371.43 ",Social Community Care Supplies & Service.Children.Residential Care,Q2
07/07/2016,CAPITAL CC,Kier Construction Ltd,"MAINTENANCE - EQUIPMENT, FURNITURE AND MATERIALS"," 20,318.35 ","Works - Construction, Repair & Maint.Buildings.Construction",Q2
28/09/2016,CHILDREN'S SERVICES,Learning Unlimited,STAFF DEVELOPMENT AND TRAINING," 20,302.11 ",Human Resources.Training & Conferences.Conferences,Q2
08/07/2016,CAPITAL CC,Pellings LLP,CONSULTANCY FEES," 20,278.98 ","Works - Construction, Repair & Maint.Consultancy.NA",Q2
05/09/2016,MAJOR CAPITAL PROGRAMMES,Karibu Education Centre,PREMISES HIRE - FACILITIES," 20,168.50 ",Facilities & Management Services.Room Hire.NA,Q2
01/07/2016,BUSINESS & CUSTOMER SERVICES,Emmaus South Lambeth Community,PRIVATE CONTRACTORS PAYMENT - OTHER," 20,070.00 ",Social Community Care Supplies & Service.Adult.Homeless Support,Q2
29/07/2016,CHILDREN'S SERVICES,Esland North Ltd,RESIDENTIAL PLACEMENTS - PRIVATE CONTRACTORS PAYMENT," 20,039.29 ",Social Community Care Supplies & Service.Children.Residential Care,Q2
26/08/2016,CHILDREN'S SERVICES,Esland North Ltd,RESIDENTIAL PLACEMENTS - PRIVATE CONTRACTORS PAYMENT," 20,039.29 ",Social Community Care Supplies & Service.Children.Residential Care,Q2
25/08/2016,CAPITAL CC,Arcadis LLP,CONSULTANCY FEES," 20,034.17 ","Works - Construction, Repair & Maint.Consultancy.NA",Q2
13/09/2016,HOUSING SERVICES (HRA),Anthony Gold Solicitors,LEGAL FEES," 20,000.00 ",Legal Services.Advocacy.NA,Q2
05/09/2016,MAJOR CAPITAL PROGRAMMES,Karibu Education Centre,PREMISES HIRE - FACILITIES," 20,000.00 ",Facilities & Management Services.Room Hire.NA,Q2
06/09/2016,"STRATEGIC HOUSING, REGENERATION & COMMUNITIES (HRA)",Leigh Day,LEGAL FEES," 20,000.00 ",Legal Services.Legal Opinion.NA,Q2
08/09/2016,"STRATEGIC HOUSING, REGENERATION & COMMUNITIES",Newbridge Advisors LLP,HOTEL AND OTHER ACCOMMODATION COSTS," 20,000.00 ",Human Resources.Accommodation.NA,Q2
18/08/2016,CAPITAL CC,Norwood Forum,EVENTS," 20,000.00 ",Arts & Leisure Services.Events.NA,Q2
25/07/2016,"PLANNING, TRANSPORT & DEVELOPMENT",Sustrans Ltd,PURCHASE OF VEHICLES RELATED COSTS," 20,000.00 ",Vehicle Management.Cycles.NA,Q2
12/09/2016,HOUSING SERVICES (HRA),Apollo Property Services Group Ltd,OPEN SPACES WORKS," 19,999.38 ","Works - Construction, Repair & Maint.Open Spaces.Repair & Maintenance",Q2
12/09/2016,HOUSING SERVICES (HRA),Apollo Property Services Group Ltd,OPEN SPACES WORKS," 19,999.38 ","Works - Construction, Repair & Maint.Open Spaces.Repair & Maintenance",Q2
13/07/2016,CAPITAL CC,RME Services Ltd,FACILITIES MANAGEMENT," 19,950.00 ","Works - Construction, Repair & Maint.Buildings.Repair & Maintenance",Q2
18/08/2016,EDUCATION & LEARNING,A* Transport Ltd,DIRECT TRANSPORT," 19,937.00 ",Public Transport.Passenger Transport.NA,Q2
29/07/2016,CHILDREN'S SERVICES,Supporting Futures Ltd,RESIDENTIAL PLACEMENTS - PRIVATE CONTRACTORS PAYMENT," 19,928.57 ",Social Community Care Supplies & Service.Children.Residential Care,Q2
26/08/2016,CHILDREN'S SERVICES,Supporting Futures Ltd,RESIDENTIAL PLACEMENTS - PRIVATE CONTRACTORS PAYMENT," 19,928.57 ",Social Community Care Supplies & Service.Children.Residential Care,Q2
16/09/2016,ADULT SOCIAL CARE,Apetito Ltd,MEALS ON WHEELS - PRIVATE CONTRACTORS PAYMENT," 19,881.61 ",Catering.Social Care.Meals On Wheels,Q2
04/08/2016,CHILDREN'S SERVICES,Coram,ADOPTION ALLOWANCE - PRIVATE CONTRACTORS PAYMENT," 19,800.00 ",Social Community Care Supplies & Service.Children.Adoption Inter-Agency Fees,Q2
28/07/2016,CHILDREN'S SERVICES,London Borough of Southwark,STAFF RECRUITMENT COSTS," 19,800.00 ",Human Resources.Recruitment & Assessment.NA,Q2
02/08/2016,"NEIGHBOURHOODS, ENVIRONMENT & EMPLOYMENT",Royal Borough of Greenwich,BEREAVEMENT SERVICES EQUIPMENT," 19,773.53 ",Cemetery & Crematorium.Burial & Cremation.NA,Q2
02/08/2016,"NEIGHBOURHOODS, ENVIRONMENT & EMPLOYMENT",Royal Borough of Greenwich,BEREAVEMENT SERVICES EQUIPMENT," 19,773.53 ",Cemetery & Crematorium.Burial & Cremation.NA,Q2
28/09/2016,CHILDREN'S SERVICES,Cambian Childcare Ltd,RESIDENTIAL PLACEMENTS - PRIVATE CONTRACTORS PAYMENT," 19,714.28 ",Social Community Care Supplies & Service.Children.Residential Care,Q2
29/09/2016,CHILDREN'S SERVICES,By the Bridge,FOSTERING AGENCY PLACEMENTS - PRIVATE CONTRACTORS PAYMENT," 19,650.01 ",Social Community Care Supplies & Service.Disabled Children.Care Services,Q2
23/09/2016,"NEIGHBOURHOODS, ENVIRONMENT & EMPLOYMENT",Brixton BID Limited,CONSULTANCY FEES," 19,587.40 ",Consultancy.Strategic Planning.NA,Q2
29/07/2016,CHILDREN'S SERVICES,Liberty House,RESIDENTIAL PLACEMENTS - PRIVATE CONTRACTORS PAYMENT," 19,485.71 ",Social Community Care Supplies & Service.Children.Residential Care,Q2
21/07/2016,ADULT SOCIAL CARE,Thames Reach,PRIVATE CONTRACTORS PAYMENT - OTHER," 19,352.20 ",Social Community Care Supplies & Service.Adult.Mental Health Services,Q2
08/08/2016,ADULT SOCIAL CARE,Thames Reach,PRIVATE CONTRACTORS PAYMENT - OTHER," 19,352.20 ",Social Community Care Supplies & Service.Adult.Mental Health Services,Q2
28/09/2016,CHILDREN'S SERVICES,Supporting Futures Ltd,RESIDENTIAL PLACEMENTS - PRIVATE CONTRACTORS PAYMENT," 19,285.72 ",Social Community Care Supplies & Service.Children.Residential Care,Q2
18/08/2016,EDUCATION & LEARNING,A* Transport Ltd,DIRECT TRANSPORT," 19,273.50 ",Public Transport.Passenger Transport.NA,Q2
05/07/2016,"STRATEGIC HOUSING, REGENERATION & COMMUNITIES (HRA)",Pollard Thomas Edwards Architects,"MAINTENANCE - EQUIPMENT, FURNITURE AND MATERIALS"," 19,267.50 ","Works - Construction, Repair & Maint.Architect.NA",Q2
29/07/2016,CHILDREN'S SERVICES,Mcrae Residential Care Services,RESIDENTIAL PLACEMENTS - PRIVATE CONTRACTORS PAYMENT," 19,251.00 ",Social Community Care Supplies & Service.Children.Fostering,Q2
26/08/2016,CHILDREN'S SERVICES,Mcrae Residential Care Services,RESIDENTIAL PLACEMENTS - PRIVATE CONTRACTORS PAYMENT," 19,251.00 ",Social Community Care Supplies & Service.Children.Residential Care,Q2
28/07/2016,EDUCATION & LEARNING,All Behaviour Consultancy Ltd,PROFESSIONAL SERVICES - GENERAL," 19,232.25 ",Education.Educational Placements.NA,Q2
29/07/2016,CHILDREN'S SERVICES,3 Dimensions Care Ltd,RESIDENTIAL PLACEMENTS - PRIVATE CONTRACTORS PAYMENT," 19,228.86 ",Social Community Care Supplies & Service.Children.Fostering,Q2
26/08/2016,CHILDREN'S SERVICES,3 Dimensions Care Ltd,RESIDENTIAL PLACEMENTS - PRIVATE CONTRACTORS PAYMENT," 19,228.86 ",Social Community Care Supplies & Service.Children.Fostering,Q2
21/07/2016,ADULT SOCIAL CARE,Lambeth Mencap_d,FLOATING SUPPORT SERVICES - PRIVATE CONTRACTORS PAYMENT," 19,129.92 ",Social Community Care Supplies & Service.Adult.Domiciliary Care,Q2
08/08/2016,ADULT SOCIAL CARE,Lambeth Mencap_d,FLOATING SUPPORT SERVICES - PRIVATE CONTRACTORS PAYMENT," 19,129.92 ",Social Community Care Supplies & Service.Adult.Domiciliary Care,Q2
19/09/2016,"STRATEGIC HOUSING, REGENERATION & COMMUNITIES (HRA)",Pellings LLP,CONSULTANCY FEES," 19,052.67 ","Works - Construction, Repair & Maint.Consultancy.NA",Q2
12/09/2016,ADULT SOCIAL CARE,Apetito Ltd,MEALS ON WHEELS - PRIVATE CONTRACTORS PAYMENT," 19,046.77 ",Catering.Social Care.Meals On Wheels,Q2
05/07/2016,EDUCATION & LEARNING,A* Transport Ltd,DIRECT TRANSPORT," 19,009.50 ",Public Transport.Passenger Transport.NA,Q2
18/08/2016,EDUCATION & LEARNING,A* Transport Ltd,DIRECT TRANSPORT," 18,890.00 ",Public Transport.Passenger Transport.NA,Q2
15/08/2016,EDUCATION & LEARNING,The Key Support Services Ltd,MEMBERSHIP AND SUBSCRIPTIONS," 18,881.99 ",Financial Services.Subscriptions.NA,Q2
16/08/2016,CAPITAL CC,Pinsent Masons LLP,PROFESSIONAL SERVICES - GENERAL," 18,819.72 ",Legal Services.General Support.NA,Q2
18/08/2016,EDUCATION & LEARNING,A* Transport Ltd,DIRECT TRANSPORT," 18,804.50 ",Public Transport.Passenger Transport.NA,Q2
26/07/2016,ADULT SOCIAL CARE,Frontier Support Services Ltd,SUPPORTED OTHER ACCOMMODATION - PRIVATE CONTRACTORS PAYMENT," 18,788.44 ",Social Community Care Supplies & Service.Adult.Domiciliary Care,Q2
25/08/2016,ADULT SOCIAL CARE,Frontier Support Services Ltd,SUPPORTED OTHER ACCOMMODATION - PRIVATE CONTRACTORS PAYMENT," 18,788.44 ",Social Community Care Supplies & Service.Adult.Domiciliary Care,Q2
15/07/2016,PUBLIC HEALTH,North & East London CSU NHS,PAYMENT TO HEALTH AUTHORITIES," 18,750.00 ",Healthcare.Public Health.NA,Q2
18/08/2016,EDUCATION & LEARNING,A* Transport Ltd,DIRECT TRANSPORT," 18,724.50 ",Public Transport.Passenger Transport.NA,Q2
28/09/2016,CHILDREN'S SERVICES,Mcrae Residential Care Services,RESIDENTIAL PLACEMENTS - PRIVATE CONTRACTORS PAYMENT," 18,630.00 ",Social Community Care Supplies & Service.Children.Residential Care,Q2
28/09/2016,CHILDREN'S SERVICES,3 Dimensions Care Ltd,RESIDENTIAL PLACEMENTS - PRIVATE CONTRACTORS PAYMENT," 18,608.57 ",Social Community Care Supplies & Service.Children.Fostering,Q2
08/09/2016,PUBLIC HEALTH,ROI Consulting Ltd,CONSULTANCY FEES," 18,600.00 ",Consultancy.Management.NA,Q2
05/09/2016,EDUCATION & LEARNING,The Chelsea Group of Children Ltd,PROFESSIONAL SERVICES - GENERAL," 18,575.00 ",Education.School Services.NA,Q2
18/08/2016,EDUCATION & LEARNING,A* Transport Ltd,DIRECT TRANSPORT," 18,568.50 ",Public Transport.Passenger Transport.NA,Q2
18/08/2016,EDUCATION & LEARNING,A* Transport Ltd,DIRECT TRANSPORT," 18,520.50 ",Public Transport.Passenger Transport.NA,Q2
30/08/2016,CHILDREN'S SERVICES,Penna Plc,"ADVERTISING, PUBLICITY AND MARKETING"," 18,500.00 ",Facilities & Management Services.Advertising.Promotional & Recruitment,Q2
30/08/2016,CHILDREN'S SERVICES,Penna Plc,"ADVERTISING, PUBLICITY AND MARKETING"," 18,500.00 ",Facilities & Management Services.Advertising.Promotional & Recruitment,Q2
29/07/2016,BUSINESS TRANSFORMATION,PricewaterhouseCoopers LLP,AUDIT FEES," 18,500.00 ",Financial Services.Audit.NA,Q2
08/09/2016,EDUCATION & LEARNING,Frontline Data Ltd,ICT MAINTENANCE AND SUPPORT," 18,435.00 ",Information Communication Technology.Services.Website Development,Q2
22/07/2016,PUBLIC HEALTH,The Corner Surgery,PAYMENT TO HEALTH AUTHORITIES," 18,376.00 ",Healthcare.Public Health.NA,Q2
26/07/2016,EDUCATION & LEARNING,London Arts Base,LEGAL FEES," 18,370.00 ",Legal Services.Legal Opinion.NA,Q2
01/08/2016,CAPITAL CC,John Rowan & Partners LLP,LEGAL FEES," 18,357.37 ",Legal Services.General Support.NA,Q2
05/08/2016,EDUCATION & LEARNING,The Priory Lodge School,PROFESSIONAL SERVICES - GENERAL," 18,333.33 ",Education.Educational Placements.NA,Q2
05/08/2016,EDUCATION & LEARNING,The Priory Lodge School,PROFESSIONAL SERVICES - GENERAL," 18,333.33 ",Education.Educational Placements.NA,Q2
29/09/2016,CHILDREN'S SERVICES,Fostering Support Group,FOSTERING AGENCY PLACEMENTS - PRIVATE CONTRACTORS PAYMENT," 18,327.20 ",Social Community Care Supplies & Service.Children.Fostering,Q2
12/09/2016,HOUSING SERVICES (HRA),Martin Arnold Ltd,CONSULTANCY FEES," 18,315.00 ",Consultancy.Technical & Feasibility.NA,Q2
18/08/2016,EDUCATION & LEARNING,A* Transport Ltd,DIRECT TRANSPORT," 18,271.00 ",Public Transport.Passenger Transport.NA,Q2
30/09/2016,CAPITAL CC,Ingleton Wood LLP,CONSULTANCY FEES," 18,242.75 ",Consultancy.Business.NA,Q2
12/08/2016,CAPITAL CC,John Rowan & Partners LLP,LEGAL FEES," 18,222.86 ",Legal Services.General Support.NA,Q2
28/09/2016,ADULT SOCIAL CARE,Frontier Support Services Ltd,SUPPORTED OTHER ACCOMMODATION - PRIVATE CONTRACTORS PAYMENT," 18,182.35 ",Social Community Care Supplies & Service.Adult.Domiciliary Care,Q2
12/08/2016,CAPITAL CC,Baily Garner LLP,FACILITIES MANAGEMENT," 18,141.70 ","Works - Construction, Repair & Maint.Buildings.Repair & Maintenance",Q2
21/07/2016,BUSINESS TRANSFORMATION,Specialist Computer Centers Plc,ICT SOFTWARE," 18,133.80 ",Information Communication Technology.Software.NA,Q2
29/07/2016,CHILDREN'S SERVICES,Cambian SignPost Ltd,RESIDENTIAL PLACEMENTS - PRIVATE CONTRACTORS PAYMENT," 18,045.72 ",Social Community Care Supplies & Service.Children.Residential Care,Q2
26/08/2016,CHILDREN'S SERVICES,Cambian SignPost Ltd,RESIDENTIAL PLACEMENTS - PRIVATE CONTRACTORS PAYMENT," 18,045.72 ",Social Community Care Supplies & Service.Children.Residential Care,Q2
03/08/2016,CAPITAL CC,Arcadis LLP,CONSULTANCY FEES," 18,000.00 ","Works - Construction, Repair & Maint.Consultancy.NA",Q2
02/09/2016,BUSINESS & CUSTOMER SERVICES,Callcredit Ltd,AUDIT FEES," 18,000.00 ",Financial Services.Audit.NA,Q2
19/07/2016,PUBLIC HEALTH,Barts Health NHS Trust,PAYMENT TO HEALTH AUTHORITIES," 17,983.32 ",Healthcare.Public Health.NA,Q2
19/07/2016,PUBLIC HEALTH,Barts Health NHS Trust,PAYMENT TO HEALTH AUTHORITIES," 17,983.32 ",Healthcare.Public Health.NA,Q2
19/07/2016,PUBLIC HEALTH,Barts Health NHS Trust,PAYMENT TO HEALTH AUTHORITIES," 17,983.32 ",Healthcare.Public Health.NA,Q2
29/07/2016,CHILDREN'S SERVICES,Freshstart Care Solutions Ltd,RENTS PAYABLE," 17,970.70 ",Social Community Care Supplies & Service.Children.Fostering,Q2
26/08/2016,CHILDREN'S SERVICES,Freshstart Care Solutions Ltd,RENTS PAYABLE," 17,970.70 ",Social Community Care Supplies & Service.Children.Residential Care,Q2
25/07/2016,CAPITAL CC,Pellings LLP,CONSULTANCY FEES," 17,959.25 ","Works - Construction, Repair & Maint.Consultancy.NA",Q2
14/07/2016,"STRATEGIC HOUSING, REGENERATION & COMMUNITIES (HRA)",Pellings LLP,CONSULTANCY FEES," 17,959.25 ","Works - Construction, Repair & Maint.Consultancy.NA",Q2
26/08/2016,CHILDREN'S SERVICES,Orange Grove Fostercare Ltd,FOSTERING AGENCY PLACEMENTS - PRIVATE CONTRACTORS PAYMENT," 17,922.86 ",Social Community Care Supplies & Service.Children.Fostering,Q2
18/08/2016,EDUCATION & LEARNING,A* Transport Ltd,DIRECT TRANSPORT," 17,877.00 ",Public Transport.Passenger Transport.NA,Q2
18/08/2016,EDUCATION & LEARNING,A* Transport Ltd,DIRECT TRANSPORT," 17,847.00 ",Public Transport.Passenger Transport.NA,Q2
26/07/2016,PUBLIC HEALTH,Imperial College Healthcare NHS Trust,PAYMENT TO HEALTH AUTHORITIES," 17,805.00 ",Healthcare.Public Health.NA,Q2
26/07/2016,PUBLIC HEALTH,Imperial College Healthcare NHS Trust,PAYMENT TO HEALTH AUTHORITIES," 17,805.00 ",Healthcare.Public Health.NA,Q2
26/07/2016,HOUSING SERVICES (HRA),Centre 70 Advice Centre,LEGAL FEES," 17,700.00 ",Legal Services.General Support.NA,Q2
26/08/2016,CHILDREN'S SERVICES,Parkview Care Broadstairs Ltd,RESIDENTIAL PLACEMENTS - PRIVATE CONTRACTORS PAYMENT," 17,692.14 ",Social Community Care Supplies & Service.Children.Childcare Services,Q2
20/09/2016,HOUSING SERVICES (HRA),BMG Research,"ADVERTISING, PUBLICITY AND MARKETING"," 17,489.88 ",Facilities & Management Services.Public Relations & Image.NA,Q2
09/09/2016,ADULT SOCIAL CARE,Sanctuary Care Ltd,DOMICILIARY CARE - THIRD PARTY," 17,462.18 ",Social Community Care Supplies & Service.Adult.Residential Care,Q2
29/07/2016,CHILDREN'S SERVICES,Quality Protects Children Ltd,RESIDENTIAL PLACEMENTS - PRIVATE CONTRACTORS PAYMENT," 17,448.57 ",Social Community Care Supplies & Service.Children.Residential Care,Q2
26/08/2016,CHILDREN'S SERVICES,Quality Protects Children Ltd,RESIDENTIAL PLACEMENTS - PRIVATE CONTRACTORS PAYMENT," 17,448.57 ",Social Community Care Supplies & Service.Children.Residential Care,Q2
29/09/2016,CHILDREN'S SERVICES,Brighter Futures Foster Care Ltd,FOSTERING AGENCY PLACEMENTS - PRIVATE CONTRACTORS PAYMENT," 17,398.00 ",Social Community Care Supplies & Service.Children.Fostering,Q2
28/09/2016,CHILDREN'S SERVICES,Freshstart Care Solutions Ltd,RENTS PAYABLE," 17,391.00 ",Social Community Care Supplies & Service.Children.Residential Care,Q2
17/08/2016,CAPITAL CC,Kier Construction Ltd,FACILITIES MANAGEMENT," 17,314.72 ","Works - Construction, Repair & Maint.Buildings.Repair & Maintenance",Q2
25/07/2016,CAPITAL CC,Pellings LLP,CONSULTANCY FEES," 17,292.86 ","Works - Construction, Repair & Maint.Consultancy.NA",Q2
14/07/2016,"STRATEGIC HOUSING, REGENERATION & COMMUNITIES (HRA)",Pellings LLP,CONSULTANCY FEES," 17,292.86 ","Works - Construction, Repair & Maint.Consultancy.NA",Q2
29/07/2016,CHILDREN'S SERVICES,Keys 16 Plus Independent Living Services Ltd,RESIDENTIAL PLACEMENTS - PRIVATE CONTRACTORS PAYMENT," 17,271.43 ",Social Community Care Supplies & Service.Adult.Sheltered Accommodation,Q2
26/08/2016,CHILDREN'S SERVICES,Keys 16 Plus Independent Living Services Ltd,RESIDENTIAL PLACEMENTS - PRIVATE CONTRACTORS PAYMENT," 17,271.43 ",Social Community Care Supplies & Service.Adult.Sheltered Accommodation,Q2
11/07/2016,"NEIGHBOURHOODS, ENVIRONMENT & EMPLOYMENT",Brixton BID Limited,CONSULTANCY FEES," 17,250.00 ",Consultancy.Business.NA,Q2
28/09/2016,CHILDREN'S SERVICES,Parkview Care Broadstairs Ltd,RESIDENTIAL PLACEMENTS - PRIVATE CONTRACTORS PAYMENT," 17,121.43 ",Social Community Care Supplies & Service.Children.Childcare Services,Q2
27/07/2016,ADULT SOCIAL CARE,The Hesley Group Ltd,RESIDENTIAL PLACEMENTS - PRIVATE CONTRACTORS PAYMENT," 17,067.71 ",Social Community Care Supplies & Service.Adult.Residential Care,Q2
26/08/2016,ADULT SOCIAL CARE,The Hesley Group Ltd,RESIDENTIAL PLACEMENTS - PRIVATE CONTRACTORS PAYMENT," 17,067.71 ",Social Community Care Supplies & Service.Adult.Residential Care,Q2
29/09/2016,CHILDREN'S SERVICES,Saint Christopher's Fellowship,FOSTERING AGENCY PLACEMENTS - PRIVATE CONTRACTORS PAYMENT," 17,048.57 ",Social Community Care Supplies & Service.Children.Fostering,Q2
11/07/2016,BUSINESS TRANSFORMATION,Vodafone Ltd,LAND LINE TELEPHONE COSTS," 16,973.73 ",Information Communication Technology.Telecommunications.NA,Q2
29/07/2016,CHILDREN'S SERVICES,Cambian Childcare Ltd,RESIDENTIAL PLACEMENTS - PRIVATE CONTRACTORS PAYMENT," 16,952.57 ",Social Community Care Supplies & Service.Children.Residential Care,Q2
26/08/2016,CHILDREN'S SERVICES,Cambian Childcare Ltd,RESIDENTIAL PLACEMENTS - PRIVATE CONTRACTORS PAYMENT," 16,952.57 ",Social Community Care Supplies & Service.Children.Residential Care,Q2
29/09/2016,CHILDREN'S SERVICES,Compass Fostering London & Eastern Ltd,FOSTERING AGENCY PLACEMENTS - PRIVATE CONTRACTORS PAYMENT," 16,942.68 ",Social Community Care Supplies & Service.Children.Fostering,Q2
06/07/2016,HOUSING SERVICES (HRA),TV Edwards LLP,LEGAL FEES," 16,930.00 ",Legal Services.Advocacy.NA,Q2
28/09/2016,CHILDREN'S SERVICES,Quality Protects Children Ltd,RESIDENTIAL PLACEMENTS - PRIVATE CONTRACTORS PAYMENT," 16,885.72 ",Social Community Care Supplies & Service.Children.Residential Care,Q2
25/08/2016,ADULT SOCIAL CARE,The Priory Group ( Egerton Road ),RESIDENTIAL PLACEMENTS - PRIVATE CONTRACTORS PAYMENT," 16,843.85 ",Social Community Care Supplies & Service.Adult.Residential Care,Q2
01/08/2016,CAPITAL CC,John Rowan & Partners LLP,LEGAL FEES," 16,811.47 ",Legal Services.General Support.NA,Q2
28/07/2016,BUSINESS TRANSFORMATION,Fotheringham Associates Ltd,CONSULTANCY FEES," 16,800.00 ",Information Communication Technology.Services.Consultancy,Q2
27/07/2016,CAPITAL CC,T Brown Group Ltd_d,BUILDING ALTERATIONS AND MATERIALS," 16,797.56 ",Building Construction Materials.Heating & Air Conditioning.NA,Q2
28/09/2016,CHILDREN'S SERVICES,Keys 16 Plus Independent Living Services Ltd,RESIDENTIAL PLACEMENTS - PRIVATE CONTRACTORS PAYMENT," 16,714.28 ",Social Community Care Supplies & Service.Adult.Sheltered Accommodation,Q2
15/08/2016,ADULT SOCIAL CARE,Sanctuary Care Ltd,DOMICILIARY CARE - THIRD PARTY," 16,641.80 ",Social Community Care Supplies & Service.Adult.Residential Care,Q2
06/09/2016,EDUCATION & LEARNING,The Frederick Hugh Trust,PROFESSIONAL SERVICES - GENERAL," 16,633.33 ",Education.School Services.NA,Q2
01/07/2016,EDUCATION & LEARNING,Eagle House School,PROFESSIONAL SERVICES - GENERAL," 16,618.33 ",Education.School Services.NA,Q2
01/07/2016,EDUCATION & LEARNING,Eagle House School,PROFESSIONAL SERVICES - GENERAL," 16,618.33 ",Education.School Services.NA,Q2
01/07/2016,EDUCATION & LEARNING,Eagle House School,PROFESSIONAL SERVICES - GENERAL," 16,618.33 ",Education.School Services.NA,Q2
01/07/2016,EDUCATION & LEARNING,Eagle House School,PROFESSIONAL SERVICES - GENERAL," 16,618.33 ",Education.School Services.NA,Q2
01/07/2016,EDUCATION & LEARNING,Eagle House School,PROFESSIONAL SERVICES - GENERAL," 16,618.33 ",Education.School Services.NA,Q2
01/07/2016,EDUCATION & LEARNING,Eagle House School,PROFESSIONAL SERVICES - GENERAL," 16,618.33 ",Education.School Services.NA,Q2
01/07/2016,EDUCATION & LEARNING,Eagle House School,PROFESSIONAL SERVICES - GENERAL," 16,618.33 ",Education.School Services.NA,Q2
01/07/2016,EDUCATION & LEARNING,Eagle House School,PROFESSIONAL SERVICES - GENERAL," 16,618.33 ",Education.School Services.NA,Q2
01/07/2016,EDUCATION & LEARNING,Eagle House School,PROFESSIONAL SERVICES - GENERAL," 16,618.33 ",Education.School Services.NA,Q2
01/07/2016,EDUCATION & LEARNING,Eagle House School,PROFESSIONAL SERVICES - GENERAL," 16,618.33 ",Education.School Services.NA,Q2
01/07/2016,EDUCATION & LEARNING,Eagle House School,PROFESSIONAL SERVICES - GENERAL," 16,618.33 ",Education.School Services.NA,Q2
06/09/2016,EDUCATION & LEARNING,Eagle House School,PROFESSIONAL SERVICES - GENERAL," 16,618.33 ",Education.School Services.NA,Q2
06/09/2016,EDUCATION & LEARNING,Eagle House School,PROFESSIONAL SERVICES - GENERAL," 16,618.33 ",Education.School Services.NA,Q2
06/09/2016,EDUCATION & LEARNING,Eagle House School,PROFESSIONAL SERVICES - GENERAL," 16,618.33 ",Education.School Services.NA,Q2
06/09/2016,EDUCATION & LEARNING,Eagle House School,PROFESSIONAL SERVICES - GENERAL," 16,618.33 ",Education.School Services.NA,Q2
06/09/2016,EDUCATION & LEARNING,Eagle House School,PROFESSIONAL SERVICES - GENERAL," 16,618.33 ",Education.School Services.NA,Q2
06/09/2016,EDUCATION & LEARNING,Eagle House School,PROFESSIONAL SERVICES - GENERAL," 16,618.33 ",Education.School Services.NA,Q2
06/09/2016,EDUCATION & LEARNING,Eagle House School,PROFESSIONAL SERVICES - GENERAL," 16,618.33 ",Education.School Services.NA,Q2
06/09/2016,EDUCATION & LEARNING,Eagle House School,PROFESSIONAL SERVICES - GENERAL," 16,618.33 ",Education.School Services.NA,Q2
06/09/2016,EDUCATION & LEARNING,Eagle House School,PROFESSIONAL SERVICES - GENERAL," 16,618.33 ",Education.School Services.NA,Q2
06/09/2016,EDUCATION & LEARNING,Eagle House School,PROFESSIONAL SERVICES - GENERAL," 16,618.33 ",Education.School Services.NA,Q2
06/09/2016,EDUCATION & LEARNING,Eagle House School,PROFESSIONAL SERVICES - GENERAL," 16,618.33 ",Education.School Services.NA,Q2
06/09/2016,EDUCATION & LEARNING,Eagle House School,PROFESSIONAL SERVICES - GENERAL," 16,618.33 ",Education.School Services.NA,Q2
06/09/2016,EDUCATION & LEARNING,Eagle House School,PROFESSIONAL SERVICES - GENERAL," 16,618.33 ",Education.School Services.NA,Q2
06/09/2016,EDUCATION & LEARNING,Eagle House School,PROFESSIONAL SERVICES - GENERAL," 16,618.33 ",Education.School Services.NA,Q2
06/09/2016,EDUCATION & LEARNING,Eagle House School,PROFESSIONAL SERVICES - GENERAL," 16,618.33 ",Education.School Services.NA,Q2
06/09/2016,EDUCATION & LEARNING,Eagle House School,PROFESSIONAL SERVICES - GENERAL," 16,618.33 ",Education.School Services.NA,Q2
28/09/2016,FINANCE,Corona Energy,GAS," 16,592.16 ",Utilities.Gas.NA,Q2
28/09/2016,ADULT SOCIAL CARE,The Hesley Group Ltd,RESIDENTIAL PLACEMENTS - PRIVATE CONTRACTORS PAYMENT," 16,517.15 ",Social Community Care Supplies & Service.Adult.Residential Care,Q2
23/09/2016,INVESTMENT & GROWTH,London South Bank University,STAFF DEVELOPMENT AND TRAINING," 16,500.00 ",Human Resources.Training & Conferences.Training,Q2
23/08/2016,"NEIGHBOURHOODS, ENVIRONMENT & EMPLOYMENT",Mayor's Office for Policing and Crime,SECURITY SERVICES (EXCLUDING PREMISES)," 16,500.00 ",Facilities & Management Services.Security.NA,Q2
23/08/2016,"NEIGHBOURHOODS, ENVIRONMENT & EMPLOYMENT",Mayor's Office for Policing and Crime,SECURITY SERVICES (EXCLUDING PREMISES)," 16,500.00 ",Facilities & Management Services.Security.NA,Q2
25/08/2016,"NEIGHBOURHOODS, ENVIRONMENT & EMPLOYMENT",Mayor's Office for Policing and Crime,SECURITY SERVICES (EXCLUDING PREMISES)," 16,500.00 ",Facilities & Management Services.Security.NA,Q2
21/07/2016,"STRATEGIC HOUSING, REGENERATION & COMMUNITIES",NACRO,PRIVATE CONTRACTORS PAYMENT - OTHER," 16,462.48 ",Social Community Care Supplies & Service.Adult.NA,Q2
08/08/2016,"STRATEGIC HOUSING, REGENERATION & COMMUNITIES",NACRO,PRIVATE CONTRACTORS PAYMENT - OTHER," 16,462.48 ",Social Community Care Supplies & Service.Adult.NA,Q2
28/09/2016,CHILDREN'S SERVICES,Cambian Childcare Ltd,RESIDENTIAL PLACEMENTS - PRIVATE CONTRACTORS PAYMENT," 16,405.72 ",Social Community Care Supplies & Service.Children.Residential Care,Q2
29/07/2016,CHILDREN'S SERVICES,Kedleston Schools (London) Ltd,RESIDENTIAL PLACEMENTS - PRIVATE CONTRACTORS PAYMENT," 16,385.71 ",Social Community Care Supplies & Service.Children.Residential Care,Q2
20/07/2016,CAPITAL CC,F M Conway Ltd_d,"MAINTENANCE - EQUIPMENT, FURNITURE AND MATERIALS"," 16,311.80 ","Works - Construction, Repair & Maint.Roads.Repair & Maintenance",Q2
28/09/2016,ADULT SOCIAL CARE,Bishops Gate nd Priory,RESIDENTIAL PLACEMENTS - PRIVATE CONTRACTORS PAYMENT," 16,300.50 ",Social Community Care Supplies & Service.Adult.Residential Care,Q2
01/07/2016,EDUCATION & LEARNING,Eagle House School,PROFESSIONAL SERVICES - GENERAL," 16,239.33 ",Education.School Services.NA,Q2
20/07/2016,CAPITAL CC,F M Conway Ltd_d,"MAINTENANCE - EQUIPMENT, FURNITURE AND MATERIALS"," 16,231.13 ","Works - Construction, Repair & Maint.Roads.Design",Q2
23/08/2016,"NEIGHBOURHOODS, ENVIRONMENT & EMPLOYMENT",Pinsent Masons LLP,LEGAL FEES," 16,218.60 ",Legal Services.General Support.NA,Q2
03/08/2016,CAPITAL CC,Mears Ltd,FACILITIES MANAGEMENT," 16,209.11 ","Works - Construction, Repair & Maint.Buildings.Repair & Maintenance",Q2
27/07/2016,BUSINESS TRANSFORMATION,Virgin Media Business,LAND LINE TELEPHONE COSTS," 16,197.09 ",Information Communication Technology.Telecommunications.NA,Q2
27/07/2016,BUSINESS TRANSFORMATION,Virgin Media Business,LAND LINE TELEPHONE COSTS," 16,197.09 ",Information Communication Technology.Telecommunications.NA,Q2
27/07/2016,BUSINESS TRANSFORMATION,Virgin Media Business,LAND LINE TELEPHONE COSTS," 16,197.09 ",Information Communication Technology.Telecommunications.NA,Q2
27/07/2016,BUSINESS TRANSFORMATION,Virgin Media Business,LAND LINE TELEPHONE COSTS," 16,197.09 ",Information Communication Technology.Telecommunications.NA,Q2
02/09/2016,BUSINESS TRANSFORMATION,Virgin Media Business,LAND LINE TELEPHONE COSTS," 16,197.09 ",Information Communication Technology.Telecommunications.NA,Q2
21/07/2016,"STRATEGIC HOUSING, REGENERATION & COMMUNITIES",Eurovia Infrastructure Ltd_d,SECURITY SERVICES (EXCLUDING PREMISES)," 16,175.72 ",Facilities & Management Services.Security.Closed-Circuit Television,Q2
22/08/2016,"STRATEGIC HOUSING, REGENERATION & COMMUNITIES",Eurovia Infrastructure Ltd_d,SECURITY SERVICES (EXCLUDING PREMISES)," 16,175.72 ",Facilities & Management Services.Security.Closed-Circuit Television,Q2
28/09/2016,"STRATEGIC HOUSING, REGENERATION & COMMUNITIES",Eurovia Infrastructure Ltd_d,SECURITY SERVICES (EXCLUDING PREMISES)," 16,175.72 ",Facilities & Management Services.Security.Closed-Circuit Television,Q2
23/09/2016,CHILDREN'S SERVICES,Stockwell Partnership,PRIVATE CONTRACTORS PAYMENT - OTHER," 16,116.00 ",Social Community Care Supplies & Service.Children.NA,Q2
27/07/2016,ADULT SOCIAL CARE,Clifton Manor,RESIDENTIAL PLACEMENTS - PRIVATE CONTRACTORS PAYMENT," 16,085.79 ",Social Community Care Supplies & Service.Adult.Residential Care,Q2
29/07/2016,CHILDREN'S SERVICES,Hillcrest Children Services Ltd,RESIDENTIAL PLACEMENTS - PRIVATE CONTRACTORS PAYMENT," 16,031.43 ",Social Community Care Supplies & Service.Children.Residential Care,Q2
26/08/2016,CHILDREN'S SERVICES,Hillcrest Children Services Ltd,RESIDENTIAL PLACEMENTS - PRIVATE CONTRACTORS PAYMENT," 16,031.43 ",Social Community Care Supplies & Service.Children.Residential Care,Q2
07/07/2016,CAPITAL CC,Network Rail Infrastructure Ltd,VEHICLE REPAIRS AND MAINTENANCE," 16,009.14 ",Public Transport.Maintenance.NA,Q2
14/07/2016,HOUSING SERVICES (HRA),KNK Building Services Ltd,FACILITIES MANAGEMENT," 16,001.75 ","Works - Construction, Repair & Maint.Buildings.Repair & Maintenance",Q2
07/07/2016,CAPITAL CC,Apollo Property Services Group Ltd,"MAINTENANCE - EQUIPMENT, FURNITURE AND MATERIALS"," 16,000.00 ","Works - Construction, Repair & Maint.Buildings.Construction",Q2
30/08/2016,HOUSING SERVICES (HRA),Loughborough EMB Ltd,RENTS PAYABLE," 16,000.00 ",Housing Management.Arms Length Management Organisations.NA,Q2
30/08/2016,HOUSING SERVICES (HRA),Loughborough EMB Ltd,RENTS PAYABLE," 16,000.00 ",Housing Management.Arms Length Management Organisations.NA,Q2
08/09/2016,CAPITAL CC,Mears Ltd,FACILITIES MANAGEMENT," 15,987.79 ","Works - Construction, Repair & Maint.Buildings.Repair & Maintenance",Q2
09/08/2016,POLICY & COMMUNICATIONS,Loos for Do's,ARTS AND LEISURE COSTS," 15,977.50 ",Arts & Leisure Services.Organised Activities.NA,Q2
26/07/2016,ADULT SOCIAL CARE,Autus Court (Precious Homes Ltd),RESIDENTIAL PLACEMENTS - PRIVATE CONTRACTORS PAYMENT," 15,976.07 ",Social Community Care Supplies & Service.Adult.Residential Care,Q2
25/08/2016,ADULT SOCIAL CARE,Autus Court (Precious Homes Ltd),RESIDENTIAL PLACEMENTS - PRIVATE CONTRACTORS PAYMENT," 15,976.07 ",Social Community Care Supplies & Service.Adult.Residential Care,Q2
16/09/2016,CAPITAL CC,Atkins Ltd,BUILDING ALTERATIONS AND MATERIALS," 15,901.34 ",Consultancy.Business.NA,Q2
08/08/2016,BUSINESS TRANSFORMATION,Oracle Corporation UK Ltd,ICT SOFTWARE," 15,878.49 ",Information Communication Technology.Software.NA,Q2
17/08/2016,POLICY & COMMUNICATIONS,UK Specialist Ambulance Services Ltd,DIRECT TRANSPORT," 15,868.50 ",Public Transport.Passenger Transport.NA,Q2
09/08/2016,EDUCATION & LEARNING,Eagle House School,PROFESSIONAL SERVICES - GENERAL," 15,867.33 ",Education.School Services.NA,Q2
01/07/2016,EDUCATION & LEARNING,Eagle House School,PROFESSIONAL SERVICES - GENERAL," 15,867.33 ",Education.School Services.NA,Q2
01/07/2016,EDUCATION & LEARNING,Eagle House School,PROFESSIONAL SERVICES - GENERAL," 15,867.33 ",Education.School Services.NA,Q2
19/08/2016,EDUCATION & LEARNING,Eagle House School,PROFESSIONAL SERVICES - GENERAL," 15,867.33 ",Education.School Services.NA,Q2
29/09/2016,CHILDREN'S SERVICES,Saint Christopher's Fellowship,FOSTERING AGENCY PLACEMENTS - PRIVATE CONTRACTORS PAYMENT," 15,846.43 ",Social Community Care Supplies & Service.Children.Fostering,Q2
29/09/2016,CHILDREN'S SERVICES,Saint Christopher's Fellowship,FOSTERING AGENCY PLACEMENTS - PRIVATE CONTRACTORS PAYMENT," 15,846.43 ",Social Community Care Supplies & Service.Children.Fostering,Q2
29/09/2016,CHILDREN'S SERVICES,Saint Christopher's Fellowship,FOSTERING AGENCY PLACEMENTS - PRIVATE CONTRACTORS PAYMENT," 15,846.43 ",Social Community Care Supplies & Service.Children.Fostering,Q2
07/09/2016,CAPITAL CC,Frankham Consultancy Group Ltd,CONSULTANCY FEES," 15,788.83 ","Works - Construction, Repair & Maint.Consultancy.NA",Q2
18/08/2016,HOUSING SERVICES (HRA),High Trees Community Development Trust,PROFESSIONAL SERVICES - GENERAL," 15,750.00 ",Education.Adult & Further Education Services.NA,Q2
27/07/2016,ADULT SOCIAL CARE,The Rathbone Centre,SUPPORTED OTHER ACCOMMODATION - PRIVATE CONTRACTORS PAYMENT," 15,703.94 ",Social Community Care Supplies & Service.Adult.Domiciliary Care,Q2
26/08/2016,ADULT SOCIAL CARE,The Rathbone Centre,SUPPORTED OTHER ACCOMMODATION - PRIVATE CONTRACTORS PAYMENT," 15,703.94 ",Social Community Care Supplies & Service.Adult.Domiciliary Care,Q2
19/07/2016,HOUSING SERVICES (HRA),Judge & Priestley Solicitors,LEGAL FEES," 15,678.55 ",Legal Services.General Support.NA,Q2
23/09/2016,BUSINESS & CUSTOMER SERVICES,Brixton BID Limited,GENERAL OFFICE EXPENSES," 15,639.30 ",Consultancy.Business.NA,Q2
09/09/2016,ADULT SOCIAL CARE,Sanctuary Care Ltd,DOMICILIARY CARE - THIRD PARTY," 15,621.39 ",Social Community Care Supplies & Service.Adult.Residential Care,Q2
29/07/2016,CHILDREN'S SERVICES,Ethelbert Specialist Homes Ltd,RESIDENTIAL PLACEMENTS - PRIVATE CONTRACTORS PAYMENT," 15,595.48 ",Social Community Care Supplies & Service.Children.Residential Care,Q2
26/08/2016,CHILDREN'S SERVICES,Ethelbert Specialist Homes Ltd,RESIDENTIAL PLACEMENTS - PRIVATE CONTRACTORS PAYMENT," 15,595.48 ",Social Community Care Supplies & Service.Children.Residential Care,Q2
11/08/2016,EDUCATION & LEARNING,Askews and Holts Library Services Ltd,PROFESSIONAL SERVICES - GENERAL," 15,530.00 ",Education.Library Services.NA,Q2
28/09/2016,CHILDREN'S SERVICES,Hillcrest Children Services Ltd,RESIDENTIAL PLACEMENTS - PRIVATE CONTRACTORS PAYMENT," 15,514.28 ",Social Community Care Supplies & Service.Children.Residential Care,Q2
29/07/2016,CHILDREN'S SERVICES,Merryvale Children's Home,RESIDENTIAL PLACEMENTS - PRIVATE CONTRACTORS PAYMENT," 15,500.00 ",Social Community Care Supplies & Service.Children.Residential Care,Q2
29/07/2016,CHILDREN'S SERVICES,Merryvale Children's Home,RESIDENTIAL PLACEMENTS - PRIVATE CONTRACTORS PAYMENT," 15,500.00 ",Social Community Care Supplies & Service.Children.Residential Care,Q2
29/07/2016,CHILDREN'S SERVICES,Merryvale Children's Home,RESIDENTIAL PLACEMENTS - PRIVATE CONTRACTORS PAYMENT," 15,500.00 ",Social Community Care Supplies & Service.Children.Residential Care,Q2
26/08/2016,CHILDREN'S SERVICES,Merryvale Children's Home,RESIDENTIAL PLACEMENTS - PRIVATE CONTRACTORS PAYMENT," 15,500.00 ",Social Community Care Supplies & Service.Children.Residential Care,Q2
26/08/2016,CHILDREN'S SERVICES,Merryvale Children's Home,RESIDENTIAL PLACEMENTS - PRIVATE CONTRACTORS PAYMENT," 15,500.00 ",Social Community Care Supplies & Service.Children.Residential Care,Q2
01/09/2016,EDUCATION & LEARNING,Octavia House Schools Ltd,PROFESSIONAL SERVICES - GENERAL," 15,500.00 ",Education.School Services.NA,Q2
01/09/2016,EDUCATION & LEARNING,Octavia House Schools Ltd,PROFESSIONAL SERVICES - GENERAL," 15,500.00 ",Education.School Services.NA,Q2
29/07/2016,CHILDREN'S SERVICES,Sherico Care Services Ltd,RESIDENTIAL PLACEMENTS - PRIVATE CONTRACTORS PAYMENT," 15,500.00 ",Social Community Care Supplies & Service.Children.Residential Care,Q2
28/09/2016,ADULT SOCIAL CARE,Autus Court (Precious Homes Ltd),RESIDENTIAL PLACEMENTS - PRIVATE CONTRACTORS PAYMENT," 15,460.72 ",Social Community Care Supplies & Service.Adult.Residential Care,Q2
22/07/2016,HOUSING SERVICES (HRA),T Brown Group Ltd_d,RESPONSIVE REPAIRS - MECHANICAL AND ELECTRICAL," 15,457.90 ",Building Construction Materials.Heating & Air Conditioning.NA,Q2
19/07/2016,HOUSING SERVICES (HRA),Judge & Priestley Solicitors,LEGAL FEES," 15,438.00 ",Legal Services.General Support.NA,Q2
24/08/2016,SENIOR MANAGEMENT - ADULTS & PUBLIC HEALTH,NHS Lambeth Clinical Commissioning Group,PAYMENT TO HEALTH AUTHORITIES," 15,417.44 ",Healthcare.Public Health.NA,Q2
25/08/2016,ADULT SOCIAL CARE,The Hesley Group Ltd,RESIDENTIAL PLACEMENTS - PRIVATE CONTRACTORS PAYMENT," 15,389.29 ",Social Community Care Supplies & Service.Adult.Residential Care,Q2
15/09/2016,CAPITAL CC,Jvm Ltd (Stuf),PRIVATE CONTRACTORS PAYMENT - OTHER," 15,367.50 ",Housing Management.Tenants Associations.NA,Q2
17/08/2016,PUBLIC HEALTH,Croydon Health Services NHS Trust,PAYMENT TO HEALTH AUTHORITIES," 15,279.13 ",Healthcare.Public Health.NA,Q2
29/09/2016,CHILDREN'S SERVICES,Sunbeam Fostering Agency Ltd,FOSTERING AGENCY PLACEMENTS - PRIVATE CONTRACTORS PAYMENT," 15,278.15 ",Social Community Care Supplies & Service.Children.Fostering,Q2
28/09/2016,EDUCATION & LEARNING,A* Transport Ltd,DIRECT TRANSPORT," 15,277.00 ",Public Transport.Passenger Transport.NA,Q2
11/07/2016,EDUCATION & LEARNING,Kelly Executive,CLIENT TRANSPORT," 15,265.00 ",Public Transport.Taxi Services.NA,Q2
28/09/2016,ADULT SOCIAL CARE,The Rathbone Centre,SUPPORTED OTHER ACCOMMODATION - PRIVATE CONTRACTORS PAYMENT," 15,197.35 ",Social Community Care Supplies & Service.Adult.Domiciliary Care,Q2
29/07/2016,CHILDREN'S SERVICES,Hillcrest Children Services Ltd,RESIDENTIAL PLACEMENTS - PRIVATE CONTRACTORS PAYMENT," 15,145.71 ",Social Community Care Supplies & Service.Children.Residential Care,Q2
26/08/2016,CHILDREN'S SERVICES,Hillcrest Children Services Ltd,RESIDENTIAL PLACEMENTS - PRIVATE CONTRACTORS PAYMENT," 15,145.71 ",Social Community Care Supplies & Service.Children.Residential Care,Q2
26/08/2016,ADULT SOCIAL CARE,Kingsmead Nursing Home,RESIDENTIAL PLACEMENTS - PRIVATE CONTRACTORS PAYMENT," 15,119.94 ",Social Community Care Supplies & Service.Adult.Residential Care,Q2
21/07/2016,ADULT SOCIAL CARE,One Housing Group,FLOATING SUPPORT SERVICES - PRIVATE CONTRACTORS PAYMENT," 15,101.76 ",Social Community Care Supplies & Service.Adult.Sheltered Accommodation,Q2
08/08/2016,ADULT SOCIAL CARE,One Housing Group,FLOATING SUPPORT SERVICES - PRIVATE CONTRACTORS PAYMENT," 15,101.76 ",Social Community Care Supplies & Service.Adult.Sheltered Accommodation,Q2
28/09/2016,CHILDREN'S SERVICES,Ethelbert Specialist Homes Ltd,RESIDENTIAL PLACEMENTS - PRIVATE CONTRACTORS PAYMENT," 15,092.40 ",Social Community Care Supplies & Service.Children.Residential Care,Q2
26/08/2016,ADULT SOCIAL CARE,Albany Lodge Nursing Home,NURSING HOMES - PRIVATE CONTRACTORS PAYMENT," 15,076.29 ",Social Community Care Supplies & Service.Adult.Residential Care,Q2
05/07/2016,"STRATEGIC HOUSING, REGENERATION & COMMUNITIES",Jashman Consulting Ltd,PAYMENT TO HEALTH AUTHORITIES," 15,064.35 ",Healthcare.Public Health.NA,Q2
29/07/2016,CHILDREN'S SERVICES,Cambian Childcare Ltd,RESIDENTIAL PLACEMENTS - PRIVATE CONTRACTORS PAYMENT," 15,053.47 ",Social Community Care Supplies & Service.Children.Residential Care,Q2
26/08/2016,CHILDREN'S SERVICES,Cambian Childcare Ltd,RESIDENTIAL PLACEMENTS - PRIVATE CONTRACTORS PAYMENT," 15,053.47 ",Social Community Care Supplies & Service.Children.Residential Care,Q2
29/07/2016,CAPITAL CC,Faithful & Gould,CONSULTANCY FEES," 15,031.06 ",Consultancy.Procurement.NA,Q2
29/09/2016,CAPITAL CC,Pinsent Masons LLP,BUILDING ALTERATIONS AND MATERIALS," 15,015.73 ",Legal Services.General Support.NA,Q2
21/07/2016,"STRATEGIC HOUSING, REGENERATION & COMMUNITIES",Saint Mungo Association,PRIVATE CONTRACTORS PAYMENT - OTHER," 15,007.48 ","Social Community Care Supplies & Service.Adult.Temporary Accommodation, Hostels",Q2
08/08/2016,"STRATEGIC HOUSING, REGENERATION & COMMUNITIES",Saint Mungo Association,PRIVATE CONTRACTORS PAYMENT - OTHER," 15,007.48 ","Social Community Care Supplies & Service.Adult.Temporary Accommodation, Hostels",Q2
04/07/2016,PUBLIC HEALTH,Imperial College London (ICL),PAYMENT TO HEALTH AUTHORITIES," 15,000.00 ",Healthcare.Public Health.NA,Q2
28/09/2016,CHILDREN'S SERVICES,Merryvale Children's Home,RESIDENTIAL PLACEMENTS - PRIVATE CONTRACTORS PAYMENT," 15,000.00 ",Social Community Care Supplies & Service.Children.Residential Care,Q2
28/09/2016,CHILDREN'S SERVICES,Merryvale Children's Home,RESIDENTIAL PLACEMENTS - PRIVATE CONTRACTORS PAYMENT," 15,000.00 ",Social Community Care Supplies & Service.Children.Residential Care,Q2
05/08/2016,EDUCATION & LEARNING,The Priory Lodge School,PROFESSIONAL SERVICES - GENERAL," 15,000.00 ",Education.Educational Placements.NA,Q2
05/08/2016,EDUCATION & LEARNING,The Priory Lodge School,PROFESSIONAL SERVICES - GENERAL," 15,000.00 ",Education.Educational Placements.NA,Q2
05/08/2016,EDUCATION & LEARNING,The Priory Lodge School,PROFESSIONAL SERVICES - GENERAL," 15,000.00 ",Education.Educational Placements.NA,Q2
05/07/2016,EDUCATION & LEARNING,Kelly Executive,CLIENT TRANSPORT," 14,989.00 ",Public Transport.Taxi Services.NA,Q2
26/07/2016,ADULT SOCIAL CARE,Cognithan Ltd,RESIDENTIAL PLACEMENTS - PRIVATE CONTRACTORS PAYMENT," 14,928.57 ",Social Community Care Supplies & Service.Adult.Nursing Homes,Q2
28/09/2016,ADULT SOCIAL CARE,The Hesley Group Ltd,RESIDENTIAL PLACEMENTS - PRIVATE CONTRACTORS PAYMENT," 14,892.85 ",Social Community Care Supplies & Service.Adult.Residential Care,Q2
01/08/2016,PUBLIC HEALTH,Aurora Project Lambeth_d,PAYMENT TO HEALTH AUTHORITIES," 14,882.00 ",Healthcare.Public Health.NA,Q2
19/07/2016,ADULT SOCIAL CARE,Kingsmead Nursing Home,RESIDENTIAL PLACEMENTS - PRIVATE CONTRACTORS PAYMENT," 14,876.07 ",Social Community Care Supplies & Service.Adult.Residential Care,Q2
18/07/2016,EDUCATION & LEARNING,Kelly Executive,CLIENT TRANSPORT," 14,871.00 ",Public Transport.Taxi Services.NA,Q2
29/07/2016,CHILDREN'S SERVICES,Supporting Futures Ltd,RESIDENTIAL PLACEMENTS - PRIVATE CONTRACTORS PAYMENT," 14,835.71 ",Social Community Care Supplies & Service.Children.Residential Care,Q2
26/08/2016,CHILDREN'S SERVICES,Supporting Futures Ltd,RESIDENTIAL PLACEMENTS - PRIVATE CONTRACTORS PAYMENT," 14,835.71 ",Social Community Care Supplies & Service.Children.Residential Care,Q2
05/09/2016,BUSINESS TRANSFORMATION,Virgin Media Business,LAND LINE TELEPHONE COSTS," 14,780.00 ",Information Communication Technology.Telecommunications.NA,Q2
05/07/2016,EDUCATION & LEARNING,A* Transport Ltd,DIRECT TRANSPORT," 14,730.50 ",Public Transport.Passenger Transport.NA,Q2
29/09/2016,CHILDREN'S SERVICES,Children of All Nations,FOSTERING AGENCY PLACEMENTS - PRIVATE CONTRACTORS PAYMENT," 14,717.14 ",Social Community Care Supplies & Service.Children.Fostering,Q2
21/07/2016,"NEIGHBOURHOODS, ENVIRONMENT & EMPLOYMENT",Veolia ES (UK) Ltd,REFUSE COLLECTION," 14,703.14 ",Environmental Services.Waste Management.Waste Collection,Q2
23/08/2016,"NEIGHBOURHOODS, ENVIRONMENT & EMPLOYMENT",Veolia ES (UK) Ltd,REFUSE COLLECTION," 14,703.14 ",Environmental Services.Waste Management.Waste Collection,Q2
21/09/2016,"NEIGHBOURHOODS, ENVIRONMENT & EMPLOYMENT",Veolia ES (UK) Ltd,REFUSE COLLECTION," 14,703.14 ",Environmental Services.Waste Management.Waste Collection,Q2
06/09/2016,CAPITAL CC,Frankham Consultancy Group Ltd,BUILDING ALTERATIONS AND MATERIALS," 14,692.18 ","Works - Construction, Repair & Maint.Consultancy.NA",Q2
28/09/2016,CHILDREN'S SERVICES,Hillcrest Children Services Ltd,RESIDENTIAL PLACEMENTS - PRIVATE CONTRACTORS PAYMENT," 14,657.15 ",Social Community Care Supplies & Service.Children.Residential Care,Q2
18/07/2016,EDUCATION & LEARNING,Healthcare & Transport Services,CLIENT TRANSPORT," 14,646.14 ",Public Transport.Taxi Services.NA,Q2
27/07/2016,ADULT SOCIAL CARE,Sense,RESIDENTIAL PLACEMENTS - PRIVATE CONTRACTORS PAYMENT," 14,642.05 ",Social Community Care Supplies & Service.Adult.Residential Care,Q2
29/09/2016,ADULT SOCIAL CARE,Sense,RESIDENTIAL PLACEMENTS - PRIVATE CONTRACTORS PAYMENT," 14,642.05 ",Social Community Care Supplies & Service.Adult.Residential Care,Q2
28/09/2016,CHILDREN'S SERVICES,Cambian Childcare Ltd,RESIDENTIAL PLACEMENTS - PRIVATE CONTRACTORS PAYMENT," 14,567.87 ",Social Community Care Supplies & Service.Children.Residential Care,Q2
19/09/2016,"NEIGHBOURHOODS, ENVIRONMENT & EMPLOYMENT",PAYE Stonework & Restoration Ltd,"MAINTENANCE - EQUIPMENT, FURNITURE AND MATERIALS"," 14,555.99 ","Works - Construction, Repair & Maint.Architect.NA",Q2
12/09/2016,BUSINESS & CUSTOMER SERVICES,Cofely Workplace Ltd,SECURITY SERVICES (EXCLUDING PREMISES)," 14,517.23 ",Financial Services.Cash Collection.NA,Q2
30/09/2016,BUSINESS & CUSTOMER SERVICES,Cofely Workplace Ltd,SECURITY SERVICES (EXCLUDING PREMISES)," 14,517.23 ",Financial Services.Cash Collection.NA,Q2
22/07/2016,BUSINESS & CUSTOMER SERVICES,Cofely Workplace Ltd,SECURITY SERVICES (EXCLUDING PREMISES)," 14,516.18 ",Financial Services.Cash Collection.NA,Q2
21/07/2016,CORPORATE AFFAIRS,Xpress Software Solutions Ltd,LEGAL FEES," 14,500.00 ",Legal Services.Election Services.NA,Q2
28/07/2016,BUSINESS TRANSFORMATION,Swiss Post Solutions Ltd,PRINTING," 14,498.09 ",Facilities & Management Services.Printing.NA,Q2
30/08/2016,CHILDREN'S SERVICES,Penna Plc,"ADVERTISING, PUBLICITY AND MARKETING"," 14,487.50 ",Facilities & Management Services.Advertising.Promotional & Recruitment,Q2
21/09/2016,CAPITAL CC,Apollo Property Services Group Ltd,"MAINTENANCE - EQUIPMENT, FURNITURE AND MATERIALS"," 14,427.60 ","Works - Construction, Repair & Maint.Buildings.Construction",Q2
20/09/2016,POLICY & COMMUNICATIONS,BMG Research,"ADVERTISING, PUBLICITY AND MARKETING"," 14,415.00 ",Facilities & Management Services.Public Relations & Image.NA,Q2
28/09/2016,POLICY & COMMUNICATIONS,BMG Research,"ADVERTISING, PUBLICITY AND MARKETING"," 14,415.00 ",Facilities & Management Services.Public Relations & Image.NA,Q2
08/09/2016,CHILDREN'S SERVICES,Penna Plc,"ADVERTISING, PUBLICITY AND MARKETING"," 14,400.00 ",Facilities & Management Services.Advertising.Promotional & Recruitment,Q2
19/07/2016,BUSINESS & CUSTOMER SERVICES,Cofely Workplace Ltd,SECURITY SERVICES (EXCLUDING PREMISES)," 14,393.45 ",Financial Services.Cash Collection.NA,Q2
29/07/2016,CHILDREN'S SERVICES,Quality Protects Children Ltd,RESIDENTIAL PLACEMENTS - PRIVATE CONTRACTORS PAYMENT," 14,392.86 ",Social Community Care Supplies & Service.Children.Residential Care,Q2
29/07/2016,CHILDREN'S SERVICES,Quality Protects Children Ltd,RESIDENTIAL PLACEMENTS - PRIVATE CONTRACTORS PAYMENT," 14,392.86 ",Social Community Care Supplies & Service.Children.Residential Care,Q2
29/07/2016,CHILDREN'S SERVICES,Quality Protects Children Ltd,RESIDENTIAL PLACEMENTS - PRIVATE CONTRACTORS PAYMENT," 14,392.86 ",Social Community Care Supplies & Service.Children.Residential Care,Q2
29/07/2016,CHILDREN'S SERVICES,Quality Protects Children Ltd,RESIDENTIAL PLACEMENTS - PRIVATE CONTRACTORS PAYMENT," 14,392.86 ",Social Community Care Supplies & Service.Children.Residential Care,Q2
26/08/2016,CHILDREN'S SERVICES,Quality Protects Children Ltd,RESIDENTIAL PLACEMENTS - PRIVATE CONTRACTORS PAYMENT," 14,392.86 ",Social Community Care Supplies & Service.Children.Residential Care,Q2
26/08/2016,CHILDREN'S SERVICES,Quality Protects Children Ltd,RESIDENTIAL PLACEMENTS - PRIVATE CONTRACTORS PAYMENT," 14,392.86 ",Social Community Care Supplies & Service.Children.Residential Care,Q2
26/08/2016,CHILDREN'S SERVICES,Quality Protects Children Ltd,RESIDENTIAL PLACEMENTS - PRIVATE CONTRACTORS PAYMENT," 14,392.86 ",Social Community Care Supplies & Service.Children.Residential Care,Q2
26/08/2016,CHILDREN'S SERVICES,Quality Protects Children Ltd,RESIDENTIAL PLACEMENTS - PRIVATE CONTRACTORS PAYMENT," 14,392.86 ",Social Community Care Supplies & Service.Children.Residential Care,Q2
28/09/2016,CHILDREN'S SERVICES,Supporting Futures Ltd,RESIDENTIAL PLACEMENTS - PRIVATE CONTRACTORS PAYMENT," 14,357.15 ",Social Community Care Supplies & Service.Children.Residential Care,Q2
01/09/2016,PUBLIC HEALTH,Equinox Care Ltd,PAYMENT TO HEALTH AUTHORITIES," 14,355.00 ",Healthcare.Public Health.NA,Q2
19/07/2016,BUSINESS TRANSFORMATION,Softcat Ltd,ICT MAINTENANCE AND SUPPORT," 14,301.00 ",Information Communication Technology.Services.Application Service Provision,Q2
09/08/2016,INVESTMENT & GROWTH,London Borough of Wandsworth_d,DIRECT TRANSPORT," 14,300.00 ",Public Transport.Passenger Transport.NA,Q2
28/09/2016,EDUCATION & LEARNING,Kelly Executive,CLIENT TRANSPORT," 14,298.00 ",Public Transport.Taxi Services.NA,Q2
24/08/2016,SENIOR MANAGEMENT - ADULTS & PUBLIC HEALTH,NHS Lambeth Clinical Commissioning Group,PAYMENT TO HEALTH AUTHORITIES," 14,275.40 ",Healthcare.Public Health.NA,Q2
11/08/2016,"NEIGHBOURHOODS, ENVIRONMENT & EMPLOYMENT",NSL Services Group Ltd,CONSULTANCY FEES," 14,264.23 ",Consultancy.Business.NA,Q2
16/08/2016,CAPITAL CC,John Rowan & Partners LLP,LEGAL FEES," 14,253.44 ",Legal Services.General Support.NA,Q2
26/07/2016,"STRATEGIC HOUSING, REGENERATION & COMMUNITIES (HRA)",Eversheds LLP,LEGAL FEES," 14,197.80 ",Legal Services.General Support.NA,Q2
30/09/2016,FINANCE,Lambert Smith Hampton Group Ltd,CONSULTANCY FEES," 14,172.70 ",Consultancy.Technical & Feasibility.NA,Q2
29/07/2016,CHILDREN'S SERVICES,Freshstart Care Solutions Ltd,RENTS PAYABLE," 14,171.42 ",Social Community Care Supplies & Service.Children.Fostering,Q2
26/08/2016,ADULT SOCIAL CARE,Sense,RESIDENTIAL PLACEMENTS - PRIVATE CONTRACTORS PAYMENT," 14,169.73 ",Social Community Care Supplies & Service.Adult.Residential Care,Q2
28/09/2016,EDUCATION & LEARNING,Kelly Executive,CLIENT TRANSPORT," 14,164.00 ",Public Transport.Taxi Services.NA,Q2
01/07/2016,BUSINESS & CUSTOMER SERVICES,"Smith, Mrs. Maureen_d",LEGAL FEES," 14,157.00 ",Legal Services.General Support.NA,Q2
13/09/2016,ADULT SOCIAL CARE,Norfolk County Council,DAYCARE - PRIVATE CONTRACTORS PAYMENT," 14,149.94 ",Social Community Care Supplies & Service.Adult.Day Care,Q2
24/08/2016,CAPITAL CC,Potter Raper Partnership,CONSULTANCY FEES," 14,131.80 ",Consultancy.Technical & Feasibility.NA,Q2
24/08/2016,CAPITAL CC,Potter Raper Partnership,SURVEYS," 14,131.80 ","Works - Construction, Repair & Maint.Buildings.Surveys",Q2
21/07/2016,"STRATEGIC HOUSING, REGENERATION & COMMUNITIES",Solace Women's Aid,PRIVATE CONTRACTORS PAYMENT - OTHER," 14,127.36 ",Social Community Care Supplies & Service.Adult.Advice & Counselling Services,Q2
08/08/2016,"STRATEGIC HOUSING, REGENERATION & COMMUNITIES",Solace Women's Aid,PRIVATE CONTRACTORS PAYMENT - OTHER," 14,127.36 ",Social Community Care Supplies & Service.Adult.Advice & Counselling Services,Q2
04/07/2016,EDUCATION & LEARNING,Healthcare & Transport Services,CLIENT TRANSPORT," 14,052.97 ",Public Transport.Taxi Services.NA,Q2
06/09/2016,EDUCATION & LEARNING,Phoenix Place,PROFESSIONAL SERVICES - GENERAL," 14,016.00 ",Education.Educational Placements.NA,Q2
12/08/2016,CAPITAL CC,John Rowan & Partners LLP,LEGAL FEES," 14,004.80 ",Legal Services.General Support.NA,Q2
03/08/2016,CHILDREN'S SERVICES,Barnardo Services Ltd,PRIVATE CONTRACTORS PAYMENT - OTHER," 14,000.00 ",Social Community Care Supplies & Service.Children.NA,Q2
08/09/2016,"STRATEGIC HOUSING, REGENERATION & COMMUNITIES",Newbridge Advisors LLP,HOTEL AND OTHER ACCOMMODATION COSTS," 14,000.00 ",Human Resources.Accommodation.NA,Q2
01/07/2016,PUBLIC HEALTH,Omnicom Media Group UK Ltd,PAYMENT TO HEALTH AUTHORITIES," 14,000.00 ",Healthcare.Public Health.NA,Q2
21/07/2016,ADULT SOCIAL CARE,Age UK Lambeth,FLOATING SUPPORT SERVICES - PRIVATE CONTRACTORS PAYMENT," 13,992.80 ",Social Community Care Supplies & Service.Adult.NA,Q2
08/08/2016,ADULT SOCIAL CARE,Age UK Lambeth,FLOATING SUPPORT SERVICES - PRIVATE CONTRACTORS PAYMENT," 13,992.80 ",Social Community Care Supplies & Service.Adult.NA,Q2
07/09/2016,"NEIGHBOURHOODS, ENVIRONMENT & EMPLOYMENT",NSL Services Group Ltd,CONSULTANCY FEES," 13,979.47 ",Consultancy.Business.NA,Q2
29/07/2016,CHILDREN'S SERVICES,Quality Protects Children Ltd,RESIDENTIAL PLACEMENTS - PRIVATE CONTRACTORS PAYMENT," 13,950.00 ",Social Community Care Supplies & Service.Children.Residential Care,Q2
26/08/2016,CHILDREN'S SERVICES,Quality Protects Children Ltd,RESIDENTIAL PLACEMENTS - PRIVATE CONTRACTORS PAYMENT," 13,950.00 ",Social Community Care Supplies & Service.Children.Residential Care,Q2
28/09/2016,CHILDREN'S SERVICES,Penna Plc,"ADVERTISING, PUBLICITY AND MARKETING"," 13,945.25 ",Facilities & Management Services.Advertising.Promotional & Recruitment,Q2
28/09/2016,CHILDREN'S SERVICES,Quality Protects Children Ltd,RESIDENTIAL PLACEMENTS - PRIVATE CONTRACTORS PAYMENT," 13,928.57 ",Social Community Care Supplies & Service.Children.Residential Care,Q2
28/09/2016,CHILDREN'S SERVICES,Quality Protects Children Ltd,RESIDENTIAL PLACEMENTS - PRIVATE CONTRACTORS PAYMENT," 13,928.57 ",Social Community Care Supplies & Service.Children.Residential Care,Q2
28/09/2016,CHILDREN'S SERVICES,Quality Protects Children Ltd,RESIDENTIAL PLACEMENTS - PRIVATE CONTRACTORS PAYMENT," 13,928.57 ",Social Community Care Supplies & Service.Children.Residential Care,Q2
28/09/2016,CHILDREN'S SERVICES,Quality Protects Children Ltd,RESIDENTIAL PLACEMENTS - PRIVATE CONTRACTORS PAYMENT," 13,928.57 ",Social Community Care Supplies & Service.Children.Residential Care,Q2
01/07/2016,ADULT SOCIAL CARE,Lambeth Mencap_d,DOMICILIARY CARE - THIRD PARTY," 13,926.70 ",Social Community Care Supplies & Service.Adult.Domiciliary Care,Q2
18/07/2016,BUSINESS & CUSTOMER SERVICES,South Bank Bid Ltd,GENERAL OFFICE EXPENSES," 13,923.60 ",Financial Services.Council Tax & Business Rates.NA,Q2
26/07/2016,EDUCATION & LEARNING,Kelly Executive,CLIENT TRANSPORT," 13,911.00 ",Public Transport.Taxi Services.NA,Q2
12/08/2016,ADULT SOCIAL CARE,BDC - NORTHERN HOUSE,RESPITE CARE - PRIVATE CONTRACTORS PAYMENT," 13,896.61 ",Social Community Care Supplies & Service.Adult.Residential Care,Q2
27/09/2016,HOUSING SERVICES (HRA),Mears Ltd,RESPONSIVE REPAIRS - BUILDING," 13,893.80 ","Works - Construction, Repair & Maint.Buildings.Repair & Maintenance",Q2
13/09/2016,HOUSING SERVICES (HRA),T Loughman & Co Ltd,OPEN SPACES WORKS," 13,793.17 ","Works - Construction, Repair & Maint.Open Spaces.Construction",Q2
27/09/2016,SENIOR MANAGEMENT - NEIGHBOURHOODS & GROWTH,Gatenby Sanderson Ltd,AGENCY STAFF," 13,750.00 ",Human Resources.Temporary & Agency Staff.Professional,Q2
11/07/2016,EDUCATION & LEARNING,Healthcare & Transport Services,CLIENT TRANSPORT," 13,742.25 ",Public Transport.Taxi Services.NA,Q2
23/09/2016,BUSINESS & CUSTOMER SERVICES,Waterloo Quarter Business Alliance,GENERAL OFFICE EXPENSES," 13,729.02 ",Financial Services.Grants.NA,Q2
26/08/2016,FINANCE,EDF Energy Plc,ELECTRICITY," 13,727.64 ",Utilities.Electricity.NA,Q2
05/07/2016,EDUCATION & LEARNING,Cambian Autism Services Ltd,PROFESSIONAL SERVICES - GENERAL," 13,727.50 ",Education.School Services.NA,Q2
29/09/2016,CHILDREN'S SERVICES,National Fostering Agency,FOSTERING AGENCY PLACEMENTS - PRIVATE CONTRACTORS PAYMENT," 13,680.86 ",Social Community Care Supplies & Service.Children.Fostering,Q2
30/08/2016,EDUCATION & LEARNING,Centre Academy,PROFESSIONAL SERVICES - GENERAL," 13,666.00 ",Education.School Services.NA,Q2
02/08/2016,FINANCE,EDF Energy Plc,ELECTRICITY," 13,661.66 ",Utilities.Electricity.NA,Q2
26/07/2016,HOUSING SERVICES (HRA),Anthony Gold Solicitors,LEGAL FEES," 13,659.54 ",Legal Services.Advocacy.NA,Q2
27/07/2016,ADULT SOCIAL CARE,Precious Homes Ltd,RESIDENTIAL PLACEMENTS - PRIVATE CONTRACTORS PAYMENT," 13,654.13 ",Social Community Care Supplies & Service.Adult.Residential Care,Q2
26/08/2016,ADULT SOCIAL CARE,Precious Homes Ltd,RESIDENTIAL PLACEMENTS - PRIVATE CONTRACTORS PAYMENT," 13,654.13 ",Social Community Care Supplies & Service.Adult.Residential Care,Q2
21/07/2016,ADULT SOCIAL CARE,Sanctuary Carr-Gomm,PRIVATE CONTRACTORS PAYMENT - OTHER," 13,650.00 ","Social Community Care Supplies & Service.Adult.Temporary Accommodation, Long Stay",Q2
08/08/2016,ADULT SOCIAL CARE,Sanctuary Carr-Gomm,PRIVATE CONTRACTORS PAYMENT - OTHER," 13,650.00 ","Social Community Care Supplies & Service.Adult.Temporary Accommodation, Long Stay",Q2
26/08/2016,BUSINESS TRANSFORMATION,Swiss Post Solutions Ltd,PRINTING," 13,648.72 ",Facilities & Management Services.Printing.NA,Q2
26/08/2016,ADULT SOCIAL CARE,Precious Homes Ltd,RESIDENTIAL PLACEMENTS - PRIVATE CONTRACTORS PAYMENT," 13,602.62 ",Social Community Care Supplies & Service.Adult.Residential Care,Q2
08/08/2016,CORPORATE AFFAIRS,Bevan Brittan,LEGAL FEES," 13,600.00 ",Legal Services.General Support.NA,Q2
09/08/2016,BUSINESS TRANSFORMATION,Pythagoras Communications Ltd,ICT MAINTENANCE AND SUPPORT," 13,600.00 ",Information Communication Technology.Services.Maintenance & Support,Q2
20/09/2016,"NEIGHBOURHOODS, ENVIRONMENT & EMPLOYMENT",Forster Lamond Ltd,CONSULTANCY FEES," 13,573.91 ",Consultancy.Management.Organisation & Planning,Q2
10/08/2016,POLICY & COMMUNICATIONS,Security Force Management Ltd,ARTS AND LEISURE COSTS," 13,546.71 ",Arts & Leisure Services.Organised Activities.NA,Q2
07/07/2016,ADULT SOCIAL CARE,Sanctuary Care Ltd,DOMICILIARY CARE - THIRD PARTY," 13,517.20 ",Social Community Care Supplies & Service.Adult.Residential Care,Q2
06/07/2016,CHILDREN'S SERVICES,Saint Michael's Fellowship,SECTION 17 - PRIVATE CONTRACTORS PAYMENT," 13,516.00 ",Social Community Care Supplies & Service.Children.NA,Q2
28/09/2016,CHILDREN'S SERVICES,Quality Protects Children Ltd,RESIDENTIAL PLACEMENTS - PRIVATE CONTRACTORS PAYMENT," 13,500.00 ",Social Community Care Supplies & Service.Children.Residential Care,Q2
02/09/2016,HUMAN RESOURCES & ORGANISATIONAL DEVELOPMENT,The Dartington Hall Trust,MEMBERSHIP AND SUBSCRIPTIONS," 13,500.00 ",Financial Services.Subscriptions.NA,Q2
30/08/2016,CHILDREN'S SERVICES,Penna Plc,"ADVERTISING, PUBLICITY AND MARKETING"," 13,484.20 ",Facilities & Management Services.Advertising.Promotional & Recruitment,Q2
27/07/2016,ADULT SOCIAL CARE,Curocare Ltd,NURSING HOMES - PRIVATE CONTRACTORS PAYMENT," 13,471.71 ",Social Community Care Supplies & Service.Adult.Residential Care,Q2
26/08/2016,ADULT SOCIAL CARE,Curocare Ltd,NURSING HOMES - PRIVATE CONTRACTORS PAYMENT," 13,471.71 ",Social Community Care Supplies & Service.Adult.Residential Care,Q2
27/07/2016,ADULT SOCIAL CARE,High Quality Lifestyles,RESIDENTIAL PLACEMENTS - PRIVATE CONTRACTORS PAYMENT," 13,454.00 ",Social Community Care Supplies & Service.Adult.Residential Care,Q2
26/08/2016,ADULT SOCIAL CARE,High Quality Lifestyles,RESIDENTIAL PLACEMENTS - PRIVATE CONTRACTORS PAYMENT," 13,454.00 ",Social Community Care Supplies & Service.Adult.Residential Care,Q2
06/09/2016,EDUCATION & LEARNING,The Frederick Hugh Trust,PROFESSIONAL SERVICES - GENERAL," 13,414.78 ",Education.School Services.NA,Q2
03/08/2016,HOUSING SERVICES (HRA),Centre 70 Advice Centre,LEGAL FEES," 13,412.50 ",Legal Services.General Support.NA,Q2
30/09/2016,BUSINESS & CUSTOMER SERVICES,Cofely Workplace Ltd,CLEANING SERVICES," 13,408.83 ",Cleaning & Janitorial.Cleaning Service.Internal,Q2
28/09/2016,BUSINESS TRANSFORMATION,Swiss Post Solutions Ltd,PRINTING," 13,403.33 ",Facilities & Management Services.Printing.NA,Q2
27/07/2016,ADULT SOCIAL CARE,Precious Homes Ltd,RESIDENTIAL PLACEMENTS - PRIVATE CONTRACTORS PAYMENT," 13,372.62 ",Social Community Care Supplies & Service.Adult.Residential Care,Q2
28/09/2016,CAPITAL CC,Pinsent Masons LLP,BUILDING ALTERATIONS AND MATERIALS," 13,312.50 ",Legal Services.General Support.NA,Q2
26/07/2016,ADULT SOCIAL CARE,Cognithan Ltd,SUPPORTED OTHER ACCOMMODATION - PRIVATE CONTRACTORS PAYMENT," 13,235.71 ",Social Community Care Supplies & Service.Adult.Nursing Homes,Q2
28/07/2016,"NEIGHBOURHOODS, ENVIRONMENT & EMPLOYMENT",Pay By Phone,LAND LINE TELEPHONE COSTS," 13,235.18 ",Information Communication Technology.Telecommunications.NA,Q2
28/09/2016,ADULT SOCIAL CARE,Precious Homes Ltd,RESIDENTIAL PLACEMENTS - PRIVATE CONTRACTORS PAYMENT," 13,213.67 ",Social Community Care Supplies & Service.Adult.Residential Care,Q2
20/07/2016,CAPITAL CC,F M Conway Ltd_d,"MAINTENANCE - EQUIPMENT, FURNITURE AND MATERIALS"," 13,206.87 ","Works - Construction, Repair & Maint.Roads.Repair & Maintenance",Q2
09/09/2016,ADULT SOCIAL CARE,Sanctuary Care Ltd,DOMICILIARY CARE - THIRD PARTY," 13,204.03 ",Social Community Care Supplies & Service.Adult.Residential Care,Q2
09/09/2016,ADULT SOCIAL CARE,Sanctuary Care Ltd,DOMICILIARY CARE - THIRD PARTY," 13,175.78 ",Social Community Care Supplies & Service.Adult.Residential Care,Q2
28/09/2016,ADULT SOCIAL CARE,Precious Homes Ltd,RESIDENTIAL PLACEMENTS - PRIVATE CONTRACTORS PAYMENT," 13,163.83 ",Social Community Care Supplies & Service.Adult.Residential Care,Q2
29/07/2016,BUSINESS TRANSFORMATION,Virgin Media Business,LAND LINE TELEPHONE COSTS," 13,125.95 ",Information Communication Technology.Telecommunications.NA,Q2
26/08/2016,CHILDREN'S SERVICES,Oasis Young People's Care Services (UK) Ltd,RESIDENTIAL PLACEMENTS - PRIVATE CONTRACTORS PAYMENT," 13,108.57 ",Social Community Care Supplies & Service.Children.Childcare Services,Q2
20/09/2016,BUSINESS & CUSTOMER SERVICES,Emmaus South Lambeth Community,PRIVATE CONTRACTORS PAYMENT - OTHER," 13,105.00 ",Social Community Care Supplies & Service.Adult.Homeless Support,Q2
01/08/2016,CAPITAL CC,John Rowan & Partners LLP,LEGAL FEES," 13,086.17 ",Legal Services.General Support.NA,Q2
28/09/2016,PUBLIC HEALTH,"Binfield, Miss Michelle",PAYMENT TO HEALTH AUTHORITIES," 13,079.05 ",Healthcare.Services.NA,Q2
26/08/2016,CHILDREN'S SERVICES,The Adolescent and Children's Trust (TACT),FOSTERING AGENCY PLACEMENTS - PRIVATE CONTRACTORS PAYMENT," 13,064.71 ",Social Community Care Supplies & Service.Children.NA,Q2
29/07/2016,CHILDREN'S SERVICES,Southern Adolescent Care Services Ltd,RESIDENTIAL PLACEMENTS - PRIVATE CONTRACTORS PAYMENT," 13,064.29 ",Social Community Care Supplies & Service.Children.Residential Care,Q2
08/08/2016,"NEIGHBOURHOODS, ENVIRONMENT & EMPLOYMENT",Alexandra Rose Charities,CONSULTANCY FEES," 13,062.50 ",Consultancy.Business.NA,Q2
28/09/2016,ADULT SOCIAL CARE,Dunheved Lodge,RESIDENTIAL PLACEMENTS - PRIVATE CONTRACTORS PAYMENT," 13,040.00 ",Social Community Care Supplies & Service.Adult.Residential Care,Q2
28/09/2016,ADULT SOCIAL CARE,Curocare Ltd,NURSING HOMES - PRIVATE CONTRACTORS PAYMENT," 13,037.15 ",Social Community Care Supplies & Service.Adult.Residential Care,Q2
16/08/2016,INVESTMENT & GROWTH,AECOM Infrastructure & Environment UK Ltd,CONSULTANCY FEES," 13,025.00 ",Consultancy.Technical & Feasibility.NA,Q2
28/09/2016,ADULT SOCIAL CARE,High Quality Lifestyles,RESIDENTIAL PLACEMENTS - PRIVATE CONTRACTORS PAYMENT," 13,020.00 ",Social Community Care Supplies & Service.Adult.Residential Care,Q2
21/07/2016,"STRATEGIC HOUSING, REGENERATION & COMMUNITIES",Thames Reach,STREET POPULATION SERVICES - PRIVATE CONTRACTORS PAYMENT," 13,009.40 ",Social Community Care Supplies & Service.Adult.Mental Health Services,Q2
08/08/2016,"STRATEGIC HOUSING, REGENERATION & COMMUNITIES",Thames Reach,STREET POPULATION SERVICES - PRIVATE CONTRACTORS PAYMENT," 13,009.40 ",Social Community Care Supplies & Service.Adult.Mental Health Services,Q2
13/09/2016,HOUSING SERVICES (HRA),Anthony Gold Solicitors,LEGAL FEES," 13,000.00 ",Legal Services.Advocacy.NA,Q2
14/07/2016,HOUSING SERVICES (HRA),John Rowan & Partners LLP,LEGAL FEES," 13,000.00 ",Legal Services.General Support.NA,Q2
01/09/2016,EDUCATION & LEARNING,Octavia House Schools Ltd,PROFESSIONAL SERVICES - GENERAL," 13,000.00 ",Education.School Services.NA,Q2
05/09/2016,EDUCATION & LEARNING,Octavia House Schools Ltd,PROFESSIONAL SERVICES - GENERAL," 13,000.00 ",Education.School Services.NA,Q2
01/09/2016,EDUCATION & LEARNING,Octavia House Schools Ltd,PROFESSIONAL SERVICES - GENERAL," 13,000.00 ",Education.School Services.NA,Q2
01/09/2016,EDUCATION & LEARNING,Octavia House Schools Ltd,PROFESSIONAL SERVICES - GENERAL," 13,000.00 ",Education.School Services.NA,Q2
01/09/2016,EDUCATION & LEARNING,Octavia House Schools Ltd,PROFESSIONAL SERVICES - GENERAL," 13,000.00 ",Education.School Services.NA,Q2
01/09/2016,EDUCATION & LEARNING,Octavia House Schools Ltd,PROFESSIONAL SERVICES - GENERAL," 13,000.00 ",Education.School Services.NA,Q2
01/09/2016,EDUCATION & LEARNING,Octavia House Schools Ltd,PROFESSIONAL SERVICES - GENERAL," 13,000.00 ",Education.School Services.NA,Q2
01/09/2016,EDUCATION & LEARNING,Octavia House Schools Ltd,PROFESSIONAL SERVICES - GENERAL," 13,000.00 ",Education.School Services.NA,Q2
01/09/2016,EDUCATION & LEARNING,Octavia House Schools Ltd,PROFESSIONAL SERVICES - GENERAL," 13,000.00 ",Education.School Services.NA,Q2
01/09/2016,EDUCATION & LEARNING,Octavia House Schools Ltd,PROFESSIONAL SERVICES - GENERAL," 13,000.00 ",Education.School Services.NA,Q2
01/09/2016,EDUCATION & LEARNING,Octavia House Schools Ltd,PROFESSIONAL SERVICES - GENERAL," 13,000.00 ",Education.School Services.NA,Q2
01/09/2016,EDUCATION & LEARNING,Octavia House Schools Ltd,PROFESSIONAL SERVICES - GENERAL," 13,000.00 ",Education.School Services.NA,Q2
01/09/2016,EDUCATION & LEARNING,Octavia House Schools Ltd,PROFESSIONAL SERVICES - GENERAL," 13,000.00 ",Education.School Services.NA,Q2
01/09/2016,EDUCATION & LEARNING,Octavia House Schools Ltd,PROFESSIONAL SERVICES - GENERAL," 13,000.00 ",Education.School Services.NA,Q2
01/09/2016,EDUCATION & LEARNING,Octavia House Schools Ltd,PROFESSIONAL SERVICES - GENERAL," 13,000.00 ",Education.School Services.NA,Q2
01/09/2016,EDUCATION & LEARNING,Octavia House Schools Ltd,PROFESSIONAL SERVICES - GENERAL," 13,000.00 ",Education.School Services.NA,Q2
01/09/2016,EDUCATION & LEARNING,Octavia House Schools Ltd,PROFESSIONAL SERVICES - GENERAL," 13,000.00 ",Education.School Services.NA,Q2
01/09/2016,EDUCATION & LEARNING,Octavia House Schools Ltd,PROFESSIONAL SERVICES - GENERAL," 13,000.00 ",Education.School Services.NA,Q2
01/09/2016,EDUCATION & LEARNING,Octavia House Schools Ltd,PROFESSIONAL SERVICES - GENERAL," 13,000.00 ",Education.School Services.NA,Q2
01/09/2016,EDUCATION & LEARNING,Octavia House Schools Ltd,PROFESSIONAL SERVICES - GENERAL," 13,000.00 ",Education.School Services.NA,Q2
01/09/2016,EDUCATION & LEARNING,Octavia House Schools Ltd,PROFESSIONAL SERVICES - GENERAL," 13,000.00 ",Education.School Services.NA,Q2
01/09/2016,EDUCATION & LEARNING,Octavia House Schools Ltd,PROFESSIONAL SERVICES - GENERAL," 13,000.00 ",Education.School Services.NA,Q2
23/09/2016,INVESTMENT & GROWTH,WYG Environment Planning Transport Ltd,CONSULTANCY FEES," 13,000.00 ",Consultancy.Strategic Planning.NA,Q2
14/07/2016,"NEIGHBOURHOODS, ENVIRONMENT & EMPLOYMENT",NSL Services Group Ltd,CONSULTANCY FEES," 12,977.43 ",Consultancy.Business.NA,Q2
02/08/2016,FINANCE,EDF Energy Plc,ELECTRICITY," 12,956.40 ",Utilities.Electricity.NA,Q2
26/08/2016,ADULT SOCIAL CARE,Windmill Care Centre,NURSING CARE INCOME," 12,919.50 ",Social Community Care Supplies & Service.Adult.Residential Care,Q2
15/07/2016,HUMAN RESOURCES & ORGANISATIONAL DEVELOPMENT,Thirsty Horses,ICT SOFTWARE," 12,910.00 ",Information Communication Technology.Software.NA,Q2
27/07/2016,ADULT SOCIAL CARE,Lifeways Community Care Ltd,SUPPORTED OTHER ACCOMMODATION - PRIVATE CONTRACTORS PAYMENT," 12,852.29 ",Social Community Care Supplies & Service.Adult.Sheltered Accommodation,Q2
26/08/2016,ADULT SOCIAL CARE,Lifeways Community Care Ltd,SUPPORTED OTHER ACCOMMODATION - PRIVATE CONTRACTORS PAYMENT," 12,852.29 ",Social Community Care Supplies & Service.Adult.Sheltered Accommodation,Q2
29/07/2016,CHILDREN'S SERVICES,3C's Creating Care Choices Ltd,RESIDENTIAL PLACEMENTS - PRIVATE CONTRACTORS PAYMENT," 12,842.86 ",Social Community Care Supplies & Service.Children.Residential Care,Q2
26/08/2016,CHILDREN'S SERVICES,3C's Creating Care Choices Ltd,RESIDENTIAL PLACEMENTS - PRIVATE CONTRACTORS PAYMENT," 12,842.86 ",Social Community Care Supplies & Service.Children.Residential Care,Q2
02/09/2016,HUMAN RESOURCES & ORGANISATIONAL DEVELOPMENT,The Dartington Hall Trust,MEMBERSHIP AND SUBSCRIPTIONS," 12,834.00 ",Financial Services.Subscriptions.NA,Q2
29/07/2016,CHILDREN'S SERVICES,Ethelbert Specialist Homes Ltd,RESIDENTIAL PLACEMENTS - PRIVATE CONTRACTORS PAYMENT," 12,716.91 ",Social Community Care Supplies & Service.Children.Residential Care,Q2
26/08/2016,CHILDREN'S SERVICES,Ethelbert Specialist Homes Ltd,RESIDENTIAL PLACEMENTS - PRIVATE CONTRACTORS PAYMENT," 12,716.91 ",Social Community Care Supplies & Service.Children.Residential Care,Q2
22/08/2016,"NEIGHBOURHOODS, ENVIRONMENT & EMPLOYMENT",London Sport Ltd,ARTS AND LEISURE COSTS," 12,691.66 ",Arts & Leisure Services.Sport & Fitness.NA,Q2
22/08/2016,POLICY & COMMUNICATIONS,Centre Stage,ARTS AND LEISURE COSTS," 12,690.00 ",Arts & Leisure Services.Performing Arts.NA,Q2
28/09/2016,CHILDREN'S SERVICES,Oasis Young People's Care Services (UK) Ltd,RESIDENTIAL PLACEMENTS - PRIVATE CONTRACTORS PAYMENT," 12,685.72 ",Social Community Care Supplies & Service.Children.Childcare Services,Q2
21/07/2016,"STRATEGIC HOUSING, REGENERATION & COMMUNITIES",Thames Reach,PRIVATE CONTRACTORS PAYMENT - OTHER," 12,679.60 ",Social Community Care Supplies & Service.Adult.Mental Health Services,Q2
08/08/2016,"STRATEGIC HOUSING, REGENERATION & COMMUNITIES",Thames Reach,PRIVATE CONTRACTORS PAYMENT - OTHER," 12,679.60 ",Social Community Care Supplies & Service.Adult.Mental Health Services,Q2
09/08/2016,EDUCATION & LEARNING,Healthcare & Transport Services,CLIENT TRANSPORT," 12,665.97 ",Public Transport.Taxi Services.NA,Q2
29/07/2016,CHILDREN'S SERVICES,Freshstart Care Solutions Ltd,RENTS PAYABLE," 12,656.41 ",Social Community Care Supplies & Service.Children.Fostering,Q2
26/08/2016,CHILDREN'S SERVICES,Freshstart Care Solutions Ltd,RENTS PAYABLE," 12,656.41 ",Social Community Care Supplies & Service.Children.Residential Care,Q2
26/08/2016,"NEIGHBOURHOODS, ENVIRONMENT & EMPLOYMENT",Pay By Phone,LAND LINE TELEPHONE COSTS," 12,629.27 ",Information Communication Technology.Telecommunications.NA,Q2
01/07/2016,BUSINESS & CUSTOMER SERVICES,Emmaus South Lambeth Community,PRIVATE CONTRACTORS PAYMENT - OTHER," 12,580.00 ",Social Community Care Supplies & Service.Adult.Homeless Support,Q2
04/08/2016,CHILDREN'S SERVICES,Ventures (UK) Support Services,RENTS PAYABLE," 12,571.43 ",Social Community Care Supplies & Service.Adult.NA,Q2
21/09/2016,HUMAN RESOURCES & ORGANISATIONAL DEVELOPMENT,Green Park,STAFF RECRUITMENT COSTS," 12,564.00 ",Human Resources.Recruitment & Assessment.NA,Q2
13/07/2016,PUBLIC HEALTH,Crown Dale Medical Centre,PAYMENT TO HEALTH AUTHORITIES," 12,500.00 ",Healthcare.Public Health.NA,Q2
28/09/2016,PUBLIC HEALTH,Imperial College London (ICL),PAYMENT TO HEALTH AUTHORITIES," 12,500.00 ",Healthcare.Public Health.NA,Q2
12/07/2016,FINANCE,TLT LLP,LEGAL FEES," 12,500.00 ",Legal Services.Advocacy.NA,Q2
05/09/2016,BUSINESS TRANSFORMATION,Virgin Media Business,LAND LINE TELEPHONE COSTS," 12,500.00 ",Information Communication Technology.Telecommunications.NA,Q2
07/09/2016,CHILDREN'S SERVICES,SP Homes t/a S Mulberry House,RESIDENTIAL PLACEMENTS - PRIVATE CONTRACTORS PAYMENT," 12,485.71 ",Social Community Care Supplies & Service.Adult.Sheltered Accommodation,Q2
27/07/2016,ADULT SOCIAL CARE,Sense,RESIDENTIAL PLACEMENTS - PRIVATE CONTRACTORS PAYMENT," 12,482.95 ",Social Community Care Supplies & Service.Adult.Residential Care,Q2
29/09/2016,ADULT SOCIAL CARE,Sense,RESIDENTIAL PLACEMENTS - PRIVATE CONTRACTORS PAYMENT," 12,482.95 ",Social Community Care Supplies & Service.Adult.Residential Care,Q2
24/08/2016,BUSINESS TRANSFORMATION,Insight Direct (UK) Ltd,ICT HARDWARE," 12,472.00 ",Information Communication Technology.Hardware.NA,Q2
16/08/2016,CHILDREN'S SERVICES,Safehaven Management Ltd,RENTS PAYABLE," 12,469.98 ",Social Community Care Supplies & Service.Children.Childcare Services,Q2
28/09/2016,ADULT SOCIAL CARE,Lifeways Community Care Ltd,SUPPORTED OTHER ACCOMMODATION - PRIVATE CONTRACTORS PAYMENT," 12,437.70 ",Social Community Care Supplies & Service.Adult.Sheltered Accommodation,Q2
28/09/2016,CHILDREN'S SERVICES,3C's Creating Care Choices Ltd,RESIDENTIAL PLACEMENTS - PRIVATE CONTRACTORS PAYMENT," 12,428.57 ",Social Community Care Supplies & Service.Children.Residential Care,Q2
29/07/2016,FINANCE,Stark Software International Ltd,ELECTRICITY," 12,410.11 ",Utilities.Electricity.NA,Q2
13/07/2016,ADULT SOCIAL CARE,Tunstall Group Ltd,PRIVATE CONTRACTORS PAYMENT - OTHER," 12,387.95 ",Social Community Care Supplies & Service.Adult.Residential Care,Q2
21/07/2016,POLICY & COMMUNICATIONS,Event Wizards Ltd,EVENTS," 12,375.00 ",Arts & Leisure Services.Events.NA,Q2
15/08/2016,POLICY & COMMUNICATIONS,Event Wizards Ltd,EVENTS," 12,375.00 ",Arts & Leisure Services.Events.NA,Q2
26/08/2016,CHILDREN'S SERVICES,Pebbles Care Ltd,RESIDENTIAL PLACEMENTS - PRIVATE CONTRACTORS PAYMENT," 12,342.86 ",Social Community Care Supplies & Service.Children.Residential Care,Q2
28/09/2016,CHILDREN'S SERVICES,Ethelbert Specialist Homes Ltd,RESIDENTIAL PLACEMENTS - PRIVATE CONTRACTORS PAYMENT," 12,306.68 ",Social Community Care Supplies & Service.Children.Residential Care,Q2
28/09/2016,"NEIGHBOURHOODS, ENVIRONMENT & EMPLOYMENT",Pay By Phone,LAND LINE TELEPHONE COSTS," 12,270.14 ",Information Communication Technology.Telecommunications.NA,Q2
01/07/2016,PUBLIC HEALTH,London Borough of Ealing,PAYMENT TO HEALTH AUTHORITIES," 12,270.00 ",Healthcare.Public Health.NA,Q2
21/07/2016,"STRATEGIC HOUSING, REGENERATION & COMMUNITIES",Thames Reach,STREET POPULATION SERVICES - PRIVATE CONTRACTORS PAYMENT," 12,257.80 ",Social Community Care Supplies & Service.Adult.Mental Health Services,Q2
08/08/2016,"STRATEGIC HOUSING, REGENERATION & COMMUNITIES",Thames Reach,STREET POPULATION SERVICES - PRIVATE CONTRACTORS PAYMENT," 12,257.80 ",Social Community Care Supplies & Service.Adult.Mental Health Services,Q2
28/09/2016,CHILDREN'S SERVICES,Freshstart Care Solutions Ltd,RENTS PAYABLE," 12,248.15 ",Social Community Care Supplies & Service.Children.Residential Care,Q2
19/08/2016,CAPITAL CC,T Brown Group Ltd_d,BUILDING ALTERATIONS AND MATERIALS," 12,218.60 ",Building Construction Materials.Heating & Air Conditioning.NA,Q2
04/08/2016,PUBLIC HEALTH,Wispville Ltd,PAYMENT TO HEALTH AUTHORITIES," 12,121.00 ",Healthcare.Public Health.NA,Q2
22/07/2016,"NEIGHBOURHOODS, ENVIRONMENT & EMPLOYMENT",F M Conway Ltd_d,"MAINTENANCE - EQUIPMENT, FURNITURE AND MATERIALS"," 12,090.30 ","Works - Construction, Repair & Maint.Roads.Repair & Maintenance",Q2
